Department Family,Entity,Date of Payment,Expense Type,Expense Area,Supplier,Voluntary & Community Sector,SME Class,Sole Trader,Transaction number,Narrative,Postal Code,Amount in Sterling,Grant?
Communities & Local Government,DCLG,02/04/2013,Current Grants to Non Profit Bodies,Localism,CHURCH URBAN FUND,,Small,,2100228218,Near Neighbours Initiative Grant Payment,SW1P 3AZ,"634,944.00",Yes
Communities & Local Government,DCLG,02/04/2013,Grant in Aid to NDPBs (non budget),Neighbourhoods,HOMES & COMMUNITIES AGENCY,,Public Bodies,,2100228958,Weekly HCA Grant in Aid Claim,NE11 0NA,"60,000,000.00",Yes
Communities & Local Government,DCLG,02/04/2013,Revenue Support grant payable,Localism,ADUR DC,,,,5000222694,Grant Payable by Exchequer,BN43 6PR,"444,838.00",Yes
Communities & Local Government,DCLG,02/04/2013,Revenue Support grant payable,Localism,ALLERDALE BOROUGH COUNCIL,,,,5000222696,Grant Payable by Exchequer,CA14 3YJ,"759,880.00",Yes
Communities & Local Government,DCLG,02/04/2013,Revenue Support grant payable,Localism,AMBER VALLEY BC,,,,5000222698,Grant Payable by Exchequer,DE5 3WZ,"740,482.00",Yes
Communities & Local Government,DCLG,02/04/2013,Revenue Support grant payable,Localism,ARUN DC,,,,5000222700,Grant Payable by Exchequer,BN17 5LF,"923,503.00",Yes
Communities & Local Government,DCLG,02/04/2013,Revenue Support grant payable,Localism,ASHFIELD DC,,,,5000222702,Grant Payable by Exchequer,NG17 8DA,"807,609.00",Yes
Communities & Local Government,DCLG,02/04/2013,Revenue Support grant payable,Localism,ASHFORD BC,,,,5000222704,Grant Payable by Exchequer,TN23 1PL,"661,268.00",Yes
Communities & Local Government,DCLG,02/04/2013,Revenue Support grant payable,Localism,AVON FIRE AUTHORITY,,,,5000222706,Grant Payable by Exchequer,BS1 6EU,"2,506,468.00",Yes
Communities & Local Government,DCLG,02/04/2013,Revenue Support grant payable,Localism,AYLESBURY VALE DC,,,,5000222708,Grant Payable by Exchequer,HP20 1SD,"1,002,614.00",Yes
Communities & Local Government,DCLG,02/04/2013,Revenue Support grant payable,Localism,BABERGH DC,,,,5000222710,Grant Payable by Exchequer,IP7 6SJ,"538,365.00",Yes
Communities & Local Government,DCLG,02/04/2013,Revenue Support grant payable,Localism,BARKING & DAGENHAM LB,,Public Bodies,,5000222712,Grant Payable by Exchequer,RM10 7BY,"11,993,696.00",Yes
Communities & Local Government,DCLG,02/04/2013,Revenue Support grant payable,Localism,BARNET LBC,,,,5000222714,Grant Payable by Exchequer,NW4 4BG,"17,352,174.00",Yes
Communities & Local Government,DCLG,02/04/2013,Revenue Support grant payable,Localism,BARNSLEY MBC,,Public Bodies,,5000222716,Grant Payable by Exchequer,S70 2AQ,"13,083,372.00",Yes
Communities & Local Government,DCLG,02/04/2013,Revenue Support grant payable,Localism,BARROW BC,,,,5000222718,Grant Payable by Exchequer,LA14 2LD,"650,515.00",Yes
Communities & Local Government,DCLG,02/04/2013,Revenue Support grant payable,Localism,BASILDON DC,,,,5000222720,Grant Payable by Exchequer,SS14 0DF,"1,435,205.00",Yes
Communities & Local Government,DCLG,02/04/2013,Revenue Support grant payable,Localism,BASINGSTOKE & DEANE BC,,,,5000222722,Grant Payable by Exchequer,RG21 2AJ,"701,379.00",Yes
Communities & Local Government,DCLG,02/04/2013,Revenue Support grant payable,Localism,BASSETLAW DC,,,,5000222724,Grant Payable by Exchequer,S80 2AH,"843,157.00",Yes
Communities & Local Government,DCLG,02/04/2013,Revenue Support grant payable,Localism,BATH & NORTH EAST SOMERSET DC,,,,5000222726,Grant Payable by Exchequer,BA1 5AW,"8,034,712.00",Yes
Communities & Local Government,DCLG,02/04/2013,Revenue Support grant payable,Localism,BEDFORD BOROUGH COUNCIL,,,,5000222846,Grant Payable by Exchequer,MK40 1SJ,"10,200,421.00",Yes
Communities & Local Government,DCLG,02/04/2013,Revenue Support grant payable,Localism,BEDS & LUTON FIRE & RESCUE SERVICE,,,,5000222728,Grant Payable by Exchequer,MK42 7NR,"1,625,266.00",Yes
Communities & Local Government,DCLG,02/04/2013,Revenue Support grant payable,Localism,BEXLEY LB,,,,5000222732,Grant Payable by Exchequer,DA8 1TL,"10,025,130.00",Yes
Communities & Local Government,DCLG,02/04/2013,Revenue Support grant payable,Localism,BIRMINGHAM CITY CNCL,,,,5000222734,Grant Payable by Exchequer,B3 3AB,"74,460,611.00",Yes
Communities & Local Government,DCLG,02/04/2013,Revenue Support grant payable,Localism,BLABY DC,,,,5000222736,Grant Payable by Exchequer,LE9 5EP,"561,408.00",Yes
Communities & Local Government,DCLG,02/04/2013,Revenue Support grant payable,Localism,BLACKBURN WITH DARWEN BC,,,,5000222738,Grant Payable by Exchequer,BB1 7DY,"10,241,145.00",Yes
Communities & Local Government,DCLG,02/04/2013,Revenue Support grant payable,Localism,BLACKPOOL BC,,,,5000222740,Grant Payable by Exchequer,FY1 1NA,"11,100,697.00",Yes
Communities & Local Government,DCLG,02/04/2013,Revenue Support grant payable,Localism,BOLSOVER DC,,Large,,5000222742,Grant Payable by Exchequer,S44 6NF,"672,478.00",Yes
Communities & Local Government,DCLG,02/04/2013,Revenue Support grant payable,Localism,BOLTON MBC,,,,5000222744,Grant Payable by Exchequer,BL1 1RU,"15,662,535.00",Yes
Communities & Local Government,DCLG,02/04/2013,Revenue Support grant payable,Localism,BOSTON BC,,,,5000222746,Grant Payable by Exchequer,PE21 8QR,"561,861.00",Yes
Communities & Local Government,DCLG,02/04/2013,Revenue Support grant payable,Localism,BOURNEMOUTH DC,,,,5000222748,Grant Payable by Exchequer,BH2 6EB,"8,645,253.00",Yes
Communities & Local Government,DCLG,02/04/2013,Revenue Support grant payable,Localism,BRACKNELL FOREST DC,,,,5000222750,Grant Payable by Exchequer,RG12 1AQ,"4,973,026.00",Yes
Communities & Local Government,DCLG,02/04/2013,Revenue Support grant payable,Localism,BRADFORD MBC,,,,5000222752,Grant Payable by Exchequer,BD1 1HX,"28,947,087.00",Yes
Communities & Local Government,DCLG,02/04/2013,Revenue Support grant payable,Localism,BRAINTREE DC,,,,5000222754,Grant Payable by Exchequer,CM7 6HB,"877,749.00",Yes
Communities & Local Government,DCLG,02/04/2013,Revenue Support grant payable,Localism,BRECKLAND DC,,,,5000222756,Grant Payable by Exchequer,NR19 1EE,"823,032.00",Yes
Communities & Local Government,DCLG,02/04/2013,Revenue Support grant payable,Localism,BRENT LB,,,,5000222758,Grant Payable by Exchequer,HA9 9EZ,"18,359,032.00",Yes
Communities & Local Government,DCLG,02/04/2013,Revenue Support grant payable,Localism,BRENTWOOD BC,,,,5000222760,Grant Payable by Exchequer,CM15 8AY,"417,673.00",Yes
Communities & Local Government,DCLG,02/04/2013,Revenue Support grant payable,Localism,BRIGHTON & HOVE CITY COUNCIL,,,,5000222762,Grant Payable by Exchequer,BN3 2SR,"14,885,839.00",Yes
Communities & Local Government,DCLG,02/04/2013,Revenue Support grant payable,Localism,BRISTOL CITY CNCL,,,,5000222764,Grant Payable by Exchequer,BS99 7BL,"25,675,655.00",Yes
Communities & Local Government,DCLG,02/04/2013,Revenue Support grant payable,Localism,BROADLAND DC,,,,5000222766,Grant Payable by Exchequer,NR7 0DU,"660,791.00",Yes
Communities & Local Government,DCLG,02/04/2013,Revenue Support grant payable,Localism,BROMLEY LB,,,,5000222768,Grant Payable by Exchequer,BR1 3UH,"12,210,745.00",Yes
Communities & Local Government,DCLG,02/04/2013,Revenue Support grant payable,Localism,BROMSGROVE DC,,,,5000222770,Grant Payable by Exchequer,B60 1AA,"477,619.00",Yes
Communities & Local Government,DCLG,02/04/2013,Revenue Support grant payable,Localism,BROXBOURNE BOROUGH COUNCIL,,,,5000222772,Grant Payable by Exchequer,EN8 9GX,"489,345.00",Yes
Communities & Local Government,DCLG,02/04/2013,Revenue Support grant payable,Localism,BROXTOWE BC,,,,5000222774,Grant Payable by Exchequer,NG9 1AB,"665,830.00",Yes
Communities & Local Government,DCLG,02/04/2013,Revenue Support grant payable,Localism,BUCKINGHAMSHIRE CC,,,,5000222778,Grant Payable by Exchequer,HP20 1UD,"19,479,187.00",Yes
Communities & Local Government,DCLG,02/04/2013,Revenue Support grant payable,Localism,BUCKS & MILTON KEYNES FIRE AUTH,,,,5000222776,Grant Payable by Exchequer,HP20 1BD,"1,407,441.00",Yes
Communities & Local Government,DCLG,02/04/2013,Revenue Support grant payable,Localism,BURNLEY BC,,,,5000222780,Grant Payable by Exchequer,BB11 1JA,"886,449.00",Yes
Communities & Local Government,DCLG,02/04/2013,Revenue Support grant payable,Localism,BURY MBC,,,,5000222782,Grant Payable by Exchequer,BL9 0SP,"9,064,368.00",Yes
Communities & Local Government,DCLG,02/04/2013,Revenue Support grant payable,Localism,CALDERDALE MBC,,,,5000222784,Grant Payable by Exchequer,HX1 1YP,"10,629,996.00",Yes
Communities & Local Government,DCLG,02/04/2013,Revenue Support grant payable,Localism,CAMBRIDGE CITY COUNCIL,,,,5000222786,Grant Payable by Exchequer,CB2 3NA,"887,963.00",Yes
Communities & Local Government,DCLG,02/04/2013,Revenue Support grant payable,Localism,CAMBRIDGESHIRE COUNTY CNCL,,,,5000222790,Grant Payable by Exchequer,CB3 0AP,"20,754,423.00",Yes
Communities & Local Government,DCLG,02/04/2013,Revenue Support grant payable,Localism,CAMBS & PETERBOROUGH FIRE AUTHORITY,,,,5000222788,Grant Payable by Exchequer,PE29 2NA,"1,539,434.00",Yes
Communities & Local Government,DCLG,02/04/2013,Revenue Support grant payable,Localism,CAMDEN LONDON BOROUGH,,,,5000222793,Grant Payable by Exchequer,WC1H 8NG,"19,017,061.00",Yes
Communities & Local Government,DCLG,02/04/2013,Revenue Support grant payable,Localism,CANNOCK CHASE DC,,,,5000222795,Grant Payable by Exchequer,WS11 1BG,"699,860.00",Yes
Communities & Local Government,DCLG,02/04/2013,Revenue Support grant payable,Localism,CANTERBURY CITY CNCL,,,,5000222797,Grant Payable by Exchequer,CT1 1YW,"1,077,136.00",Yes
Communities & Local Government,DCLG,02/04/2013,Revenue Support grant payable,Localism,CARLISLE CITY CNCL,,,,5000222799,Grant Payable by Exchequer,CA3 8QG,"693,274.00",Yes
Communities & Local Government,DCLG,02/04/2013,Revenue Support grant payable,Localism,CASTLE POINT BC,,,,5000222801,Grant Payable by Exchequer,SS7 1TF,"569,714.00",Yes
Communities & Local Government,DCLG,02/04/2013,Revenue Support grant payable,Localism,CENTRAL BEDFORDSHIRE COUNCIL,,,,5000222830,Grant Payable by Exchequer,SG17 5TQ,"10,211,143.00",Yes
Communities & Local Government,DCLG,02/04/2013,Revenue Support grant payable,Localism,CHARNWOOD BC,,,,5000222803,Grant Payable by Exchequer,LE11 2TU,"986,461.00",Yes
Communities & Local Government,DCLG,02/04/2013,Revenue Support grant payable,Localism,CHELMSFORD BC,,,,5000222805,Grant Payable by Exchequer,CM1 1JE,"857,914.00",Yes
Communities & Local Government,DCLG,02/04/2013,Revenue Support grant payable,Localism,CHELTENHAM BC,,,,5000222807,Grant Payable by Exchequer,GL50 1PW,"652,953.00",Yes
Communities & Local Government,DCLG,02/04/2013,Revenue Support grant payable,Localism,CHERWELL DC,,,,5000222809,Grant Payable by Exchequer,OX15 4AA,"877,556.00",Yes
Communities & Local Government,DCLG,02/04/2013,Revenue Support grant payable,Localism,CHESHIRE EAST COUNCIL,,,,5000222832,Grant Payable by Exchequer,CH1 1SG,"10,707,495.00",Yes
Communities & Local Government,DCLG,02/04/2013,Revenue Support grant payable,Localism,CHESHIRE FIRE AUTHORITY,,,,5000222811,Grant Payable by Exchequer,CW7 2FQ,"2,590,024.00",Yes
Communities & Local Government,DCLG,02/04/2013,Revenue Support grant payable,Localism,CHESHIRE WEST AND CHESTER,,Large,,5000222834,Grant Payable by Exchequer,CH1 2NP,"12,168,347.00",Yes
Communities & Local Government,DCLG,02/04/2013,Revenue Support grant payable,Localism,CHESTERFIELD BC,,,,5000222813,Grant Payable by Exchequer,S40 1LP,"701,244.00",Yes
Communities & Local Government,DCLG,02/04/2013,Revenue Support grant payable,Localism,CHICHESTER DC,,,,5000222815,Grant Payable by Exchequer,PO19 1TY,"566,862.00",Yes
Communities & Local Government,DCLG,02/04/2013,Revenue Support grant payable,Localism,CHILTERN DC,,,,5000222817,Grant Payable by Exchequer,HP6 5AW,"506,464.00",Yes
Communities & Local Government,DCLG,02/04/2013,Revenue Support grant payable,Localism,CHORLEY DC,,,,5000222819,Grant Payable by Exchequer,PR7 1DP,"675,842.00",Yes
Communities & Local Government,DCLG,02/04/2013,Revenue Support grant payable,Localism,CHRISTCHURCH BC,,,,5000222821,Grant Payable by Exchequer,BH23 1AZ,"250,586.00",Yes
Communities & Local Government,DCLG,02/04/2013,Revenue Support grant payable,Localism,CITY OF LINCOLN COUNCIL,,,,5000222953,Grant Payable by Exchequer,LN1 1DB,"792,845.00",Yes
Communities & Local Government,DCLG,02/04/2013,Revenue Support grant payable,Localism,CITY OF WAKEFIELD MDC,,,,5000222751,Grant Payable by Exchequer,WF1 2QW,"16,576,315.00",Yes
Communities & Local Government,DCLG,02/04/2013,Revenue Support grant payable,Localism,CLEVELAND FIRE AUTHORITY,,,,5000222827,Grant Payable by Exchequer,TS25 5TB,"1,946,694.00",Yes
Communities & Local Government,DCLG,02/04/2013,Revenue Support grant payable,Localism,CO DURHAM & DARLINGTON FIRE AND RES,,,,5000222862,Grant Payable by Exchequer,DH1 5UE,"1,793,032.00",Yes
Communities & Local Government,DCLG,02/04/2013,Revenue Support grant payable,Localism,COLCHESTER BC,,,,5000222829,Grant Payable by Exchequer,CO3 3WG,"994,308.00",Yes
Communities & Local Government,DCLG,02/04/2013,Revenue Support grant payable,Localism,COPELAND BC,,,,5000222831,Grant Payable by Exchequer,CA28 7NY,"524,208.00",Yes
Communities & Local Government,DCLG,02/04/2013,Revenue Support grant payable,Localism,CORBY BC,,,,5000222833,Grant Payable by Exchequer,NN17 1GD,"439,541.00",Yes
Communities & Local Government,DCLG,02/04/2013,Revenue Support grant payable,Localism,CORNWALL COUNCIL,,,,5000222836,Grant Payable by Exchequer,TR1 3AY,"30,671,751.00",Yes
Communities & Local Government,DCLG,02/04/2013,Revenue Support grant payable,Localism,CORPORATION OF LONDON,,,,5000222823,Grant Payable by Exchequer,EC2P 2EJ,"3,102,488.00",Yes
Communities & Local Government,DCLG,02/04/2013,Revenue Support grant payable,Localism,COTSWOLD DC,,,,5000222835,Grant Payable by Exchequer,GL7 1PX,"513,763.00",Yes
Communities & Local Government,DCLG,02/04/2013,Revenue Support grant payable,Localism,COVENTRY CITY CNCL,,,,5000222837,Grant Payable by Exchequer,CV1 2QL,"18,582,037.00",Yes
Communities & Local Government,DCLG,02/04/2013,Revenue Support grant payable,Localism,CRAVEN DISTRICT COUNCIL,,,,5000222839,Grant Payable by Exchequer,BD23 1PS,"373,947.00",Yes
Communities & Local Government,DCLG,02/04/2013,Revenue Support grant payable,Localism,CRAWLEY BC,,,,5000222841,Grant Payable by Exchequer,RH10 1UZ,"757,245.00",Yes
Communities & Local Government,DCLG,02/04/2013,Revenue Support grant payable,Localism,CROYDON LB,,,,5000222843,Grant Payable by Exchequer,CR9 3JS,"18,638,820.00",Yes
Communities & Local Government,DCLG,02/04/2013,Revenue Support grant payable,Localism,CUMBRIA COUNTY CNCL,,,,5000222845,Grant Payable by Exchequer,CA3 8NA,"26,250,702.00",Yes
Communities & Local Government,DCLG,02/04/2013,Revenue Support grant payable,Localism,DACORUM BC,,,,5000222847,Grant Payable by Exchequer,HP1 1HH,"693,327.00",Yes
Communities & Local Government,DCLG,02/04/2013,Revenue Support grant payable,Localism,DARLINGTON BC,,,,5000222848,Grant Payable by Exchequer,TS19 1JA,"5,766,235.00",Yes
Communities & Local Government,DCLG,02/04/2013,Revenue Support grant payable,Localism,DARTFORD BC,,,,5000222849,Grant Payable by Exchequer,DA1 1DR,"624,106.00",Yes
Communities & Local Government,DCLG,02/04/2013,Revenue Support grant payable,Localism,DAVENTRY DC,,,,5000222850,Grant Payable by Exchequer,NN11 5AF,"486,677.00",Yes
Communities & Local Government,DCLG,02/04/2013,Revenue Support grant payable,Localism,DERBY CITY CNCL,,,,5000222851,Grant Payable by Exchequer,DE1 2FS,"13,263,954.00",Yes
Communities & Local Government,DCLG,02/04/2013,Revenue Support grant payable,Localism,DERBYSHIRE COUNTYCOUNCIL,,,,5000222853,Grant Payable by Exchequer,DE4 3AH,"35,824,308.00",Yes
Communities & Local Government,DCLG,02/04/2013,Revenue Support grant payable,Localism,DERBYSHIRE DALES DC,,,,5000222854,Grant Payable by Exchequer,DE4 3NN,"421,666.00",Yes
Communities & Local Government,DCLG,02/04/2013,Revenue Support grant payable,Localism,DERBYSHIRE FIRE AUTHORITY,,,,5000222852,Grant Payable by Exchequer,DE55 1RH,"2,261,292.00",Yes
Communities & Local Government,DCLG,02/04/2013,Revenue Support grant payable,Localism,DEVON & SOMERSET FIRE & RESCUE SERV,,,,5000222856,Grant Payable by Exchequer,EX3 0NW,"4,357,206.00",Yes
Communities & Local Government,DCLG,02/04/2013,Revenue Support grant payable,Localism,DEVON COUNTY CNCL,,,,5000222855,Grant Payable by Exchequer,EX2 4QJ,"34,817,029.00",Yes
Communities & Local Government,DCLG,02/04/2013,Revenue Support grant payable,Localism,DONCASTER MBC,,,,5000222857,Grant Payable by Exchequer,DN1 3QA,"17,548,768.00",Yes
Communities & Local Government,DCLG,02/04/2013,Revenue Support grant payable,Localism,DORSET COUNTY CNCL,,,,5000222858,Grant Payable by Exchequer,DT1 1XJ,"17,549,395.00",Yes
Communities & Local Government,DCLG,02/04/2013,Revenue Support grant payable,Localism,DORSET FIRE AUTHORITY,,,,5000222859,Grant Payable by Exchequer,DT1 1FB,"1,565,072.00",Yes
Communities & Local Government,DCLG,02/04/2013,Revenue Support grant payable,Localism,DOVER DC,,,,5000222860,Grant Payable by Exchequer,CT16 3PD,"770,151.00",Yes
Communities & Local Government,DCLG,02/04/2013,Revenue Support grant payable,Localism,DUDLEY MBC,,,,5000222861,Grant Payable by Exchequer,DY1 1HF,"15,827,593.00",Yes
Communities & Local Government,DCLG,02/04/2013,Revenue Support grant payable,Localism,DURHAM COUNTY COUNCIL,,,,5000222838,Grant Payable by Exchequer,DH1 5UE,"32,044,933.00",Yes
Communities & Local Government,DCLG,02/04/2013,Revenue Support grant payable,Localism,EALING LB,,,,5000222863,Grant Payable by Exchequer,W5 2BY,"17,718,442.00",Yes
Communities & Local Government,DCLG,02/04/2013,Revenue Support grant payable,Localism,EAST CAMBRIDGESHIRE DC,,,,5000222864,Grant Payable by Exchequer,CB7 4PL,"566,701.00",Yes
Communities & Local Government,DCLG,02/04/2013,Revenue Support grant payable,Localism,EAST DEVON DC,,,,5000222865,Grant Payable by Exchequer,EX10 8HL,"671,431.00",Yes
Communities & Local Government,DCLG,02/04/2013,Revenue Support grant payable,Localism,EAST DORSET DC,,,,5000222866,Grant Payable by Exchequer,BH21 4HN,"438,379.00",Yes
Communities & Local Government,DCLG,02/04/2013,Revenue Support grant payable,Localism,EAST HAMPSHIRE DC,,,,5000222867,Grant Payable by Exchequer,GU31 4EX,"518,524.00",Yes
Communities & Local Government,DCLG,02/04/2013,Revenue Support grant payable,Localism,EAST HERTFORDSHIRE DC,,,,5000222868,Grant Payable by Exchequer,SG13 8EQ,"744,125.00",Yes
Communities & Local Government,DCLG,02/04/2013,Revenue Support grant payable,Localism,EAST LINDSEY DC,,,,5000222869,Grant Payable by Exchequer,LN11 8UP,"1,144,518.00",Yes
Communities & Local Government,DCLG,02/04/2013,Revenue Support grant payable,Localism,EAST NORTHAMPTONSHIRE COUNCIL,,,,5000222870,Grant Payable by Exchequer,NN14 4LZ,"553,791.00",Yes
Communities & Local Government,DCLG,02/04/2013,Revenue Support grant payable,Localism,EAST RIDING OF YORKS,,,,5000222871,Grant Payable by Exchequer,HU17 9AB,"15,726,682.00",Yes
Communities & Local Government,DCLG,02/04/2013,Revenue Support grant payable,Localism,EAST STAFFORDSHIRE BC,,,,5000222872,Grant Payable by Exchequer,DE14 2EB,"735,188.00",Yes
Communities & Local Government,DCLG,02/04/2013,Revenue Support grant payable,Localism,EAST SUSSEX COUNTY CNCL,,,,5000222873,Grant Payable by Exchequer,BN7 1SF,"28,752,495.00",Yes
Communities & Local Government,DCLG,02/04/2013,Revenue Support grant payable,Localism,EAST SUSSEX FIRE & RESCUE SERVICE,,,,5000222874,Grant Payable by Exchequer,BN21 1EU,"2,293,772.00",Yes
Communities & Local Government,DCLG,02/04/2013,Revenue Support grant payable,Localism,EASTBOURNE BC,,,,5000222875,Grant Payable by Exchequer,BN21 4TW,"839,259.00",Yes
Communities & Local Government,DCLG,02/04/2013,Revenue Support grant payable,Localism,EASTLEIGH BOROUGH COUNCIL,,,,5000222876,Grant Payable by Exchequer,SO5 9YN,"650,361.00",Yes
Communities & Local Government,DCLG,02/04/2013,Revenue Support grant payable,Localism,EDEN DC,,,,5000222877,Grant Payable by Exchequer,CA11 7QF,"394,248.00",Yes
Communities & Local Government,DCLG,02/04/2013,Revenue Support grant payable,Localism,ELMBRIDGE BOROUGH COUNCIL,,,,5000222878,Grant Payable by Exchequer,KT10 9SD,"738,971.00",Yes
Communities & Local Government,DCLG,02/04/2013,Revenue Support grant payable,Localism,ENFIELD LB,,,,5000222879,Grant Payable by Exchequer,EN1 3XF,"18,668,997.00",Yes
Communities & Local Government,DCLG,02/04/2013,Revenue Support grant payable,Localism,EPPING FOREST DC,,,,5000222880,Grant Payable by Exchequer,CM16 4BZ,"838,314.00",Yes
Communities & Local Government,DCLG,02/04/2013,Revenue Support grant payable,Localism,EPSOM & EWELL BC,,,,5000222881,Grant Payable by Exchequer,KT18 5BY,"357,380.00",Yes
Communities & Local Government,DCLG,02/04/2013,Revenue Support grant payable,Localism,EREWASH BC,,,,5000222882,Grant Payable by Exchequer,DE7 5RP,"690,976.00",Yes
Communities & Local Government,DCLG,02/04/2013,Revenue Support grant payable,Localism,ESSEX COUNTY CNCL,,,,5000222883,Grant Payable by Exchequer,CM1 1JZ,"63,784,857.00",Yes
Communities & Local Government,DCLG,02/04/2013,Revenue Support grant payable,Localism,ESSEX FIRE AUTHORITY,,,,5000222884,Grant Payable by Exchequer,CM8 3HB,"4,518,387.00",Yes
Communities & Local Government,DCLG,02/04/2013,Revenue Support grant payable,Localism,EXETER CITY CNCL,,,,5000222885,Grant Payable by Exchequer,EX1 1JN,"768,473.00",Yes
Communities & Local Government,DCLG,02/04/2013,Revenue Support grant payable,Localism,FAREHAM BC,,,,5000222886,Grant Payable by Exchequer,PO16 7PU,"485,481.00",Yes
Communities & Local Government,DCLG,02/04/2013,Revenue Support grant payable,Localism,FENLAND DC,,,,5000222887,Grant Payable by Exchequer,PE15 8NQ,"850,678.00",Yes
Communities & Local Government,DCLG,02/04/2013,Revenue Support grant payable,Localism,FOREST HEATH DISTRICT COUNCIL,,,,5000222888,Grant Payable by Exchequer,IP28 7EY,"416,587.00",Yes
Communities & Local Government,DCLG,02/04/2013,Revenue Support grant payable,Localism,FOREST OF DEAN DC,,,,5000222889,Grant Payable by Exchequer,GL16 8HG,"595,672.00",Yes
Communities & Local Government,DCLG,02/04/2013,Revenue Support grant payable,Localism,FYLDE BC,,,,5000222890,Grant Payable by Exchequer,FY8 1LW,"444,731.00",Yes
Communities & Local Government,DCLG,02/04/2013,Revenue Support grant payable,Localism,GATESHEAD MBC,,,,5000222891,Grant Payable by Exchequer,NE8 1HH,"13,436,036.00",Yes
Communities & Local Government,DCLG,02/04/2013,Revenue Support grant payable,Localism,GEDLING BC,,,,5000222892,Grant Payable by Exchequer,NG5 6LU,"639,492.00",Yes
Communities & Local Government,DCLG,02/04/2013,Revenue Support grant payable,Localism,GLOUCESTER CITY CNCL,,,,5000222894,Grant Payable by Exchequer,GL1 2EQ,"770,049.00",Yes
Communities & Local Government,DCLG,02/04/2013,Revenue Support grant payable,Localism,GLOUCESTERSHIRE COUNTY CNCL,,,,5000222895,Grant Payable by Exchequer,GL1 2TG,"25,699,339.00",Yes
Communities & Local Government,DCLG,02/04/2013,Revenue Support grant payable,Localism,GOSPORT BOROUGH COUNCIL,,,,5000222896,Grant Payable by Exchequer,PO12 1ED,"575,624.00",Yes
Communities & Local Government,DCLG,02/04/2013,Revenue Support grant payable,Localism,GRAVESHAM BC,,,,5000222897,Grant Payable by Exchequer,DA12 1AU,"616,287.00",Yes
Communities & Local Government,DCLG,02/04/2013,Revenue Support grant payable,Localism,GREAT YARMOUTH BC,,,,5000222898,Grant Payable by Exchequer,NR30 2QG,"798,352.00",Yes
Communities & Local Government,DCLG,02/04/2013,Revenue Support grant payable,Localism,GREATER LONDON AUTHORITY,,Public Bodies,,5000222893,Grant Payable by Exchequer,SE10 1AJ,"37,019,550.00",Yes
Communities & Local Government,DCLG,02/04/2013,Revenue Support grant payable,Localism,GREATER MANCHESTER FIRE,,,,5000222961,Grant Payable by Exchequer,M27 2US,"6,659,352.00",Yes
Communities & Local Government,DCLG,02/04/2013,Revenue Support grant payable,Localism,GREENWICH LB,,,,5000222899,Grant Payable by Exchequer,SE18 6RA,"17,354,151.00",Yes
Communities & Local Government,DCLG,02/04/2013,Revenue Support grant payable,Localism,GUILDFORD BC,,,,5000222900,Grant Payable by Exchequer,GU2 5BB,"737,185.00",Yes
Communities & Local Government,DCLG,02/04/2013,Revenue Support grant payable,Localism,HALTON BC,,,,5000222902,Grant Payable by Exchequer,WA8 7QF,"8,296,525.00",Yes
Communities & Local Government,DCLG,02/04/2013,Revenue Support grant payable,Localism,HAMBLETON DC,,,,5000222903,Grant Payable by Exchequer,DL6 2UU,"433,948.00",Yes
Communities & Local Government,DCLG,02/04/2013,Revenue Support grant payable,Localism,HAMMERSMITH & FULHAM LB,,,,5000222904,Grant Payable by Exchequer,W6 9JU,"12,857,809.00",Yes
Communities & Local Government,DCLG,02/04/2013,Revenue Support grant payable,Localism,HAMPSHIRE COUNTY COUNCIL,,,,5000222905,Grant Payable by Exchequer,SO23 8UB,"52,630,676.00",Yes
Communities & Local Government,DCLG,02/04/2013,Revenue Support grant payable,Localism,HAMPSHIRE FIRE & RESCUE AUTHORITY,,,,5000222906,Grant Payable by Exchequer,SO23 8UB,"3,984,444.00",Yes
Communities & Local Government,DCLG,02/04/2013,Revenue Support grant payable,Localism,HARBOROUGH DC,,Public Bodies,,5000222907,Grant Payable by Exchequer,LE16 7AG,"445,699.00",Yes
Communities & Local Government,DCLG,02/04/2013,Revenue Support grant payable,Localism,HARINGEY LB,,,,5000222908,Grant Payable by Exchequer,N22 7TR,"18,840,830.00",Yes
Communities & Local Government,DCLG,02/04/2013,Revenue Support grant payable,Localism,HARLOW COUNCIL,,,,5000222909,Grant Payable by Exchequer,CM20 1WG,"716,548.00",Yes
Communities & Local Government,DCLG,02/04/2013,Revenue Support grant payable,Localism,HARROGATE BOROUGH COUNCIL,,,,5000222910,Grant Payable by Exchequer,HG1 2SG,"942,096.00",Yes
Communities & Local Government,DCLG,02/04/2013,Revenue Support grant payable,Localism,HARROW LB,,,,5000222911,Grant Payable by Exchequer,HA1 2UZ,"11,722,227.00",Yes
Communities & Local Government,DCLG,02/04/2013,Revenue Support grant payable,Localism,HART DC,,,,5000222912,Grant Payable by Exchequer,GU13 8AE,"438,638.00",Yes
Communities & Local Government,DCLG,02/04/2013,Revenue Support grant payable,Localism,HARTLEPOOL BOROUGH COUNCIL,,,,5000222913,Grant Payable by Exchequer,TS24 7BT,"6,547,114.00",Yes
Communities & Local Government,DCLG,02/04/2013,Revenue Support grant payable,Localism,HASTINGS BC,,,,5000222914,Grant Payable by Exchequer,TN34 3WN,"793,952.00",Yes
Communities & Local Government,DCLG,02/04/2013,Revenue Support grant payable,Localism,HAVANT BC,,,,5000222915,Grant Payable by Exchequer,PO9 2AX,"769,318.00",Yes
Communities & Local Government,DCLG,02/04/2013,Revenue Support grant payable,Localism,HAVERING LB,,,,5000222916,Grant Payable by Exchequer,RM1 3BB,"10,967,973.00",Yes
Communities & Local Government,DCLG,02/04/2013,Revenue Support grant payable,Localism,HEREFORD WORCESTER FIRE BRIGADE,,,,5000222917,Grant Payable by Exchequer,WR1 2HQ,"1,680,444.00",Yes
Communities & Local Government,DCLG,02/04/2013,Revenue Support grant payable,Localism,HEREFORDSHIRE DISTRICT COUNCIL,,,,5000222918,Grant Payable by Exchequer,HR1 1SH,"9,643,822.00",Yes
Communities & Local Government,DCLG,02/04/2013,Revenue Support grant payable,Localism,HERTFORDSHIRE COUNTY CNCL,,,,5000222919,Grant Payable by Exchequer,SG13 9BD,"50,224,930.00",Yes
Communities & Local Government,DCLG,02/04/2013,Revenue Support grant payable,Localism,HERTSMERE BC,,,,5000222920,Grant Payable by Exchequer,WD6 1WA,"625,682.00",Yes
Communities & Local Government,DCLG,02/04/2013,Revenue Support grant payable,Localism,HIGH PEAK BC,,,,5000222921,Grant Payable by Exchequer,SK17 6EL,"544,092.00",Yes
Communities & Local Government,DCLG,02/04/2013,Revenue Support grant payable,Localism,HILLINGDON LB,,,,5000222922,Grant Payable by Exchequer,UB8 1UW,"12,916,108.00",Yes
Communities & Local Government,DCLG,02/04/2013,Revenue Support grant payable,Localism,HINCKLEY & BOSWORTH BC,,,,5000222923,Grant Payable by Exchequer,LE10 1BZ,"597,190.00",Yes
Communities & Local Government,DCLG,02/04/2013,Revenue Support grant payable,Localism,HORSHAM DC,,,,5000222924,Grant Payable by Exchequer,RH12 1RL,"561,307.00",Yes
Communities & Local Government,DCLG,02/04/2013,Revenue Support grant payable,Localism,HOUNSLOW LB,,,,5000222925,Grant Payable by Exchequer,TW3 4DN,"12,410,369.00",Yes
Communities & Local Government,DCLG,02/04/2013,Revenue Support grant payable,Localism,HULL CITY COUNCIL,,,,5000222938,Grant Payable by Exchequer,HU1 2AA,"16,958,115.00",Yes
Communities & Local Government,DCLG,02/04/2013,Revenue Support grant payable,Localism,HUMBERSIDE FIRE & RESCUE SERVICE,,,,5000222926,Grant Payable by Exchequer,HU4 7BB,"2,937,680.00",Yes
Communities & Local Government,DCLG,02/04/2013,Revenue Support grant payable,Localism,HUNTINGDONSHIRE DC,,,,5000222927,Grant Payable by Exchequer,PE18 6TN,"1,053,291.00",Yes
Communities & Local Government,DCLG,02/04/2013,Revenue Support grant payable,Localism,HYNDBURN BC,,,,5000222928,Grant Payable by Exchequer,BB5 1EZ,"748,470.00",Yes
Communities & Local Government,DCLG,02/04/2013,Revenue Support grant payable,Localism,IPSWICH BC,,,,5000222930,Grant Payable by Exchequer,IP1 2EE,"1,096,826.00",Yes
Communities & Local Government,DCLG,02/04/2013,Revenue Support grant payable,Localism,ISLE OF WIGHT CNCL,,,,5000222929,Grant Payable by Exchequer,PO30 1UD,"8,963,372.00",Yes
Communities & Local Government,DCLG,02/04/2013,Revenue Support grant payable,Localism,ISLES OF SCILLY COUNCIL,,,,5000222931,Grant Payable by Exchequer,TR21 0LW,"316,874.00",Yes
Communities & Local Government,DCLG,02/04/2013,Revenue Support grant payable,Localism,ISLINGTON LB,,,,5000222932,Grant Payable by Exchequer,N1 1XR,"17,721,471.00",Yes
Communities & Local Government,DCLG,02/04/2013,Revenue Support grant payable,Localism,KENT & MEDWAY TOWNS FIRE AUTHORITY,,,,5000222935,Grant Payable by Exchequer,ME15 6XB,"4,076,353.00",Yes
Communities & Local Government,DCLG,02/04/2013,Revenue Support grant payable,Localism,KENT COUNTY CNCL,,,,5000222934,Grant Payable by Exchequer,ME14 1XQ,"63,731,115.00",Yes
Communities & Local Government,DCLG,02/04/2013,Revenue Support grant payable,Localism,KETTERING BC,,,,5000222936,Grant Payable by Exchequer,NN15 7QX,"580,084.00",Yes
Communities & Local Government,DCLG,02/04/2013,Revenue Support grant payable,Localism,KINGS LYNN & WEST NORFOLK BC,,,,5000222937,Grant Payable by Exchequer,PE30 1EX,"1,141,446.00",Yes
Communities & Local Government,DCLG,02/04/2013,Revenue Support grant payable,Localism,KINGSTON UPON THAMES,,,,5000222939,Grant Payable by Exchequer,KT1 1EU,"7,483,992.00",Yes
Communities & Local Government,DCLG,02/04/2013,Revenue Support grant payable,Localism,KIRKLEES MBC,,,,5000222940,Grant Payable by Exchequer,HD1 2YU,"20,812,325.00",Yes
Communities & Local Government,DCLG,02/04/2013,Revenue Support grant payable,Localism,KNOWSLEY MBC,,,,5000222941,Grant Payable by Exchequer,L36 9YZ,"12,968,319.00",Yes
Communities & Local Government,DCLG,02/04/2013,Revenue Support grant payable,Localism,LANCASHIRE COMBINED FIRE AUTHORITY,,,,5000222944,Grant Payable by Exchequer,PR2 3LH,"3,603,555.00",Yes
Communities & Local Government,DCLG,02/04/2013,Revenue Support grant payable,Localism,LANCASHIRE COUNTY CNCL,,,,5000222943,Grant Payable by Exchequer,PR1 8RD,"55,981,982.00",Yes
Communities & Local Government,DCLG,02/04/2013,Revenue Support grant payable,Localism,LANCASTER CITY CNCL,,,,5000222945,Grant Payable by Exchequer,LA1 1PJ,"1,192,485.00",Yes
Communities & Local Government,DCLG,02/04/2013,Revenue Support grant payable,Localism,LEEDS CITY CNCL,,,,5000222946,Grant Payable by Exchequer,LS1 1JF,"36,407,649.00",Yes
Communities & Local Government,DCLG,02/04/2013,Revenue Support grant payable,Localism,LEICESTER CITY CNCL,,,,5000222947,Grant Payable by Exchequer,LE1 6ZG,"21,062,451.00",Yes
Communities & Local Government,DCLG,02/04/2013,Revenue Support grant payable,Localism,LEICESTERSHIRE COUNTY CNCL,,,,5000222949,Grant Payable by Exchequer,LE3 8RB,"23,700,312.00",Yes
Communities & Local Government,DCLG,02/04/2013,Revenue Support grant payable,Localism,LEICS LEICESTERSHIRE RUTLAND CFA,,,,5000222948,Grant Payable by Exchequer,LE3 8HD,"2,069,917.00",Yes
Communities & Local Government,DCLG,02/04/2013,Revenue Support grant payable,Localism,LEWES DC,,,,5000222950,Grant Payable by Exchequer,BN7 2DQ,"613,475.00",Yes
Communities & Local Government,DCLG,02/04/2013,Revenue Support grant payable,Localism,LEWISHAM LB,,,,5000222951,Grant Payable by Exchequer,SE6 4RU,"19,779,250.00",Yes
Communities & Local Government,DCLG,02/04/2013,Revenue Support grant payable,Localism,LICHFIELD DC,,,,5000222952,Grant Payable by Exchequer,WS13 6YX,"532,841.00",Yes
Communities & Local Government,DCLG,02/04/2013,Revenue Support grant payable,Localism,LINCOLNSHIRE COUNTY CNCL,,,,5000222954,Grant Payable by Exchequer,LN1 1YT,"30,487,976.00",Yes
Communities & Local Government,DCLG,02/04/2013,Revenue Support grant payable,Localism,LIVERPOOL CITY COUNCIL,,,,5000222955,Grant Payable by Exchequer,L2 2DH,"36,731,545.00",Yes
Communities & Local Government,DCLG,02/04/2013,Revenue Support grant payable,Localism,LONDON BOROUGH OF HACKNEY,,,,5000222901,Grant Payable by Exchequer,E8 4RU,"20,660,451.00",Yes
Communities & Local Government,DCLG,02/04/2013,Revenue Support grant payable,Localism,LONDON BOROUGH OF LAMBETH,,,,5000222942,Grant Payable by Exchequer,SW2 1RL,"23,182,984.00",Yes
Communities & Local Government,DCLG,02/04/2013,Revenue Support grant payable,Localism,LONDON BOROUGH OF NEWHAM,,Large,,5000222979,Grant Payable by Exchequer,E16 2QU,"20,741,253.00",Yes
Communities & Local Government,DCLG,02/04/2013,Revenue Support grant payable,Localism,LONDON BOROUGH OF REDBRIDGE,,,,5000223013,Grant Payable by Exchequer,IG1 1NN,"13,452,210.00",Yes
Communities & Local Government,DCLG,02/04/2013,Revenue Support grant payable,Localism,LUTON BC,,,,5000222956,Grant Payable by Exchequer,LU1 1DX,"11,199,095.00",Yes
Communities & Local Government,DCLG,02/04/2013,Revenue Support grant payable,Localism,MAIDSTONE BC,,,,5000222957,Grant Payable by Exchequer,ME15 6JQ,"891,639.00",Yes
Communities & Local Government,DCLG,02/04/2013,Revenue Support grant payable,Localism,MALDON DC,,,,5000222958,Grant Payable by Exchequer,CM9 7DL,"385,766.00",Yes
Communities & Local Government,DCLG,02/04/2013,Revenue Support grant payable,Localism,MALVERN HILLS DC,,,,5000222959,Grant Payable by Exchequer,WR14 3AF,"460,249.00",Yes
Communities & Local Government,DCLG,02/04/2013,Revenue Support grant payable,Localism,MANCHESTER CITY CNCL,,,,5000222960,Grant Payable by Exchequer,M60 2JR,"37,159,888.00",Yes
Communities & Local Government,DCLG,02/04/2013,Revenue Support grant payable,Localism,MANSFIELD DC,,,,5000222962,Grant Payable by Exchequer,NG19 7BH,"775,765.00",Yes
Communities & Local Government,DCLG,02/04/2013,Revenue Support grant payable,Localism,MEDWAY COUNCIL,,,,5000222963,Grant Payable by Exchequer,ME4 4TR,"12,136,739.00",Yes
Communities & Local Government,DCLG,02/04/2013,Revenue Support grant payable,Localism,MELTON BC,,,,5000222964,Grant Payable by Exchequer,LE13 0UL,"305,085.00",Yes
Communities & Local Government,DCLG,02/04/2013,Revenue Support grant payable,Localism,MENDIP DISTRICT COUNCIL,,,,5000222965,Grant Payable by Exchequer,BA4 5BA,"667,886.00",Yes
Communities & Local Government,DCLG,02/04/2013,Revenue Support grant payable,Localism,MERSEYSIDE FIRE & RESCUE SERVICE,,,,5000222966,Grant Payable by Exchequer,L30 4YD,"4,185,614.00",Yes
Communities & Local Government,DCLG,02/04/2013,Revenue Support grant payable,Localism,MERTON LB,,,,5000222967,Grant Payable by Exchequer,SM4 5DX,"9,836,101.00",Yes
Communities & Local Government,DCLG,02/04/2013,Revenue Support grant payable,Localism,MID DEVON DC,,,,5000222968,Grant Payable by Exchequer,EX16 6PP,"508,557.00",Yes
Communities & Local Government,DCLG,02/04/2013,Revenue Support grant payable,Localism,MID SUFFOLK DC,,,,5000222969,Grant Payable by Exchequer,IP6 8DL,"572,474.00",Yes
Communities & Local Government,DCLG,02/04/2013,Revenue Support grant payable,Localism,MID SUSSEX DC,,,,5000222970,Grant Payable by Exchequer,RH16 1SS,"632,940.00",Yes
Communities & Local Government,DCLG,02/04/2013,Revenue Support grant payable,Localism,MIDDLESBROUGH BC,,,,5000222971,Grant Payable by Exchequer,TS1 9GA,"9,565,620.00",Yes
Communities & Local Government,DCLG,02/04/2013,Revenue Support grant payable,Localism,MILTON KEYNES BC,,,,5000222972,Grant Payable by Exchequer,MK9 3EJ,"11,697,882.00",Yes
Communities & Local Government,DCLG,02/04/2013,Revenue Support grant payable,Localism,MOLE VALLEY DC,,,,5000222973,Grant Payable by Exchequer,RH4 1SJ,"351,808.00",Yes
Communities & Local Government,DCLG,02/04/2013,Revenue Support grant payable,Localism,NEW FOREST DC,,,,5000222975,Grant Payable by Exchequer,SO41 9ZG,"1,093,381.00",Yes
Communities & Local Government,DCLG,02/04/2013,Revenue Support grant payable,Localism,NEWARK & SHERWOOD DC,,,,5000222976,Grant Payable by Exchequer,NG23 5QX,"845,130.00",Yes
Communities & Local Government,DCLG,02/04/2013,Revenue Support grant payable,Localism,NEWCASTLE UNDER LYME BC,,,,5000222978,Grant Payable by Exchequer,ST5 2AG,"776,596.00",Yes
Communities & Local Government,DCLG,02/04/2013,Revenue Support grant payable,Localism,NEWCASTLE UPON TYNE DC,,,,5000222977,Grant Payable by Exchequer,NE99 1RD,"18,789,503.00",Yes
Communities & Local Government,DCLG,02/04/2013,Revenue Support grant payable,Localism,NORFOLK COUNTY COUNCIL,,,,5000222980,Grant Payable by Exchequer,NR1 2DW,"45,800,608.00",Yes
Communities & Local Government,DCLG,02/04/2013,Revenue Support grant payable,Localism,NORTH DEVON DC,,,,5000222981,Grant Payable by Exchequer,EX31 1EA,"687,262.00",Yes
Communities & Local Government,DCLG,02/04/2013,Revenue Support grant payable,Localism,NORTH DORSET DC,,,,5000222982,Grant Payable by Exchequer,DT11 7LL,"381,307.00",Yes
Communities & Local Government,DCLG,02/04/2013,Revenue Support grant payable,Localism,NORTH EAST DERBYSHIRE DC,,,,5000222974,Grant Payable by Exchequer,S40 1LF,"705,313.00",Yes
Communities & Local Government,DCLG,02/04/2013,Revenue Support grant payable,Localism,NORTH EAST LINCOLN COUNCIL,,Public Bodies,,5000222983,Grant Payable by Exchequer,DN35 8LN,"10,001,477.00",Yes
Communities & Local Government,DCLG,02/04/2013,Revenue Support grant payable,Localism,NORTH HERTS DC,,,,5000222984,Grant Payable by Exchequer,SG6 3HN,"686,191.00",Yes
Communities & Local Government,DCLG,02/04/2013,Revenue Support grant payable,Localism,NORTH KESTEVEN DC,,,,5000222985,Grant Payable by Exchequer,NG34 7EF,"715,521.00",Yes
Communities & Local Government,DCLG,02/04/2013,Revenue Support grant payable,Localism,NORTH LINCOLNSHIRE DC,,Public Bodies,,5000222986,Grant Payable by Exchequer,DN16 1AB,"8,349,988.00",Yes
Communities & Local Government,DCLG,02/04/2013,Revenue Support grant payable,Localism,NORTH NORFOLK DC,,,,5000222987,Grant Payable by Exchequer,NR27 9EJ,"741,145.00",Yes
Communities & Local Government,DCLG,02/04/2013,Revenue Support grant payable,Localism,NORTH SOMERSET DC,,,,5000222988,Grant Payable by Exchequer,BS23 1LL,"10,087,352.00",Yes
Communities & Local Government,DCLG,02/04/2013,Revenue Support grant payable,Localism,NORTH TYNESIDE MBC,,,,5000222989,Grant Payable by Exchequer,NE30 1AE,"11,099,467.00",Yes
Communities & Local Government,DCLG,02/04/2013,Revenue Support grant payable,Localism,NORTH WARWICKSHIRE BC,,,,5000222990,Grant Payable by Exchequer,CV9 1DE,"483,730.00",Yes
Communities & Local Government,DCLG,02/04/2013,Revenue Support grant payable,Localism,NORTH WEST LEICESTER DC,,,,5000223000,Grant Payable by Exchequer,LE67 3FJ,"605,052.00",Yes
Communities & Local Government,DCLG,02/04/2013,Revenue Support grant payable,Localism,NORTH YORKSHIRE CC,,,,5000222991,Grant Payable by Exchequer,DL7 8AL,"25,937,940.00",Yes
Communities & Local Government,DCLG,02/04/2013,Revenue Support grant payable,Localism,NORTH YORKSHIRE FIRE & RESCUE AUTH,,,,5000222992,Grant Payable by Exchequer,DL6 1AB,"1,683,458.00",Yes
Communities & Local Government,DCLG,02/04/2013,Revenue Support grant payable,Localism,NORTHAMPTON BOROUGH COUNCIL,,Large,,5000222993,Grant Payable by Exchequer,NN1 12A,"1,569,898.00",Yes
Communities & Local Government,DCLG,02/04/2013,Revenue Support grant payable,Localism,NORTHAMPTONSHIRE COUNTY COUNCIL,,Public Bodies,,5000222994,Grant Payable by Exchequer,NN4 7DB,"27,186,801.00",Yes
Communities & Local Government,DCLG,02/04/2013,Revenue Support grant payable,Localism,NORTHUMBERLAND,,,,5000222840,Grant Payable by Exchequer,NE61 2EF,"18,849,730.00",Yes
Communities & Local Government,DCLG,02/04/2013,Revenue Support grant payable,Localism,NORWICH CITY CNCL,,,,5000222995,Grant Payable by Exchequer,NR2 1NH,"1,244,414.00",Yes
Communities & Local Government,DCLG,02/04/2013,Revenue Support grant payable,Localism,NOTTINGHAM CITY COUNCIL,,,,5000222996,Grant Payable by Exchequer,M33 0DJ,"20,075,518.00",Yes
Communities & Local Government,DCLG,02/04/2013,Revenue Support grant payable,Localism,NOTTINGHAMSHIRE COUNTY CNCL,,,,5000222997,Grant Payable by Exchequer,NG1 4BU,"36,936,158.00",Yes
Communities & Local Government,DCLG,02/04/2013,Revenue Support grant payable,Localism,NOTTS & CITY NOTTINGHAM FIRE AUTH,,,,5000222998,Grant Payable by Exchequer,NG5 8PD,"2,730,319.00",Yes
Communities & Local Government,DCLG,02/04/2013,Revenue Support grant payable,Localism,NUNEATON & BEDWORTH BC,,,,5000222999,Grant Payable by Exchequer,CV11 5AA,"848,344.00",Yes
Communities & Local Government,DCLG,02/04/2013,Revenue Support grant payable,Localism,OADBY & WIGSTON BC,,,,5000223001,Grant Payable by Exchequer,LE8 2DR,"354,409.00",Yes
Communities & Local Government,DCLG,02/04/2013,Revenue Support grant payable,Localism,OLDHAM MBC,,,,5000223002,Grant Payable by Exchequer,OL1 1UH,"14,889,017.00",Yes
Communities & Local Government,DCLG,02/04/2013,Revenue Support grant payable,Localism,OXFORD CITY CNCL,,,,5000223003,Grant Payable by Exchequer,OX1 1DS,"1,301,212.00",Yes
Communities & Local Government,DCLG,02/04/2013,Revenue Support grant payable,Localism,OXFORDSHIRE CC,,,,5000223004,Grant Payable by Exchequer,OX4 2GQ,"27,561,807.00",Yes
Communities & Local Government,DCLG,02/04/2013,Revenue Support grant payable,Localism,PENDLE BC,,,,5000223005,Grant Payable by Exchequer,BB9 OLX,"846,308.00",Yes
Communities & Local Government,DCLG,02/04/2013,Revenue Support grant payable,Localism,PETERBOROUGH CITY CNCL,,,,5000223006,Grant Payable by Exchequer,PE1 1HG,"9,654,006.00",Yes
Communities & Local Government,DCLG,02/04/2013,Revenue Support grant payable,Localism,PLYMOUTH CITY CNCL,,,,5000223007,Grant Payable by Exchequer,PL1 2AA,"13,405,128.00",Yes
Communities & Local Government,DCLG,02/04/2013,Revenue Support grant payable,Localism,POOLE BC,,,,5000223008,Grant Payable by Exchequer,BH15 2RU,"6,645,997.00",Yes
Communities & Local Government,DCLG,02/04/2013,Revenue Support grant payable,Localism,PORTSMOUTH CITY COUNCIL,,,,5000223009,Grant Payable by Exchequer,PO1 2AR,"11,149,941.00",Yes
Communities & Local Government,DCLG,02/04/2013,Revenue Support grant payable,Localism,PRESTON BC,,,,5000223010,Grant Payable by Exchequer,PR1 2RL,"1,155,655.00",Yes
Communities & Local Government,DCLG,02/04/2013,Revenue Support grant payable,Localism,PURBECK DC,,,,5000223011,Grant Payable by Exchequer,BH20 4PP,"290,926.00",Yes
Communities & Local Government,DCLG,02/04/2013,Revenue Support grant payable,Localism,READING BC,,,,5000223012,Grant Payable by Exchequer,RG1 7TD,"7,726,710.00",Yes
Communities & Local Government,DCLG,02/04/2013,Revenue Support grant payable,Localism,REDCAR & CLEVELAND BOROUGH COUNCIL,,,,5000223014,Grant Payable by Exchequer,TS6 9AR,"8,285,473.00",Yes
Communities & Local Government,DCLG,02/04/2013,Revenue Support grant payable,Localism,REDDITCH BC,,,,5000223015,Grant Payable by Exchequer,B98 8AH,"507,018.00",Yes
Communities & Local Government,DCLG,02/04/2013,Revenue Support grant payable,Localism,REIGATE & BANSTEAD BC,,,,5000223016,Grant Payable by Exchequer,RH2 OSH,"652,506.00",Yes
Communities & Local Government,DCLG,02/04/2013,Revenue Support grant payable,Localism,RIBBLE VALLEY BC,,,,5000223017,Grant Payable by Exchequer,BB7 2RA,"311,235.00",Yes
Communities & Local Government,DCLG,02/04/2013,Revenue Support grant payable,Localism,RICHMOND UPON THAMES LB,,Large,,5000223070,Grant Payable by Exchequer,TW1 3BZ,"9,879,742.00",Yes
Communities & Local Government,DCLG,02/04/2013,Revenue Support grant payable,Localism,RICHMONDSHIRE DC,,Large,,5000223018,Grant Payable by Exchequer,DL10 7AF,"378,659.00",Yes
Communities & Local Government,DCLG,02/04/2013,Revenue Support grant payable,Localism,ROCHDALE MBC,,,,5000223019,Grant Payable by Exchequer,OL16 1LQ,"14,099,750.00",Yes
Communities & Local Government,DCLG,02/04/2013,Revenue Support grant payable,Localism,ROCHFORD DISTRICT COUNCIL,,,,5000223020,Grant Payable by Exchequer,SS4 1BW,"475,330.00",Yes
Communities & Local Government,DCLG,02/04/2013,Revenue Support grant payable,Localism,ROSSENDALE BC,,,,5000223021,Grant Payable by Exchequer,BB4 7LZ,"500,854.00",Yes
Communities & Local Government,DCLG,02/04/2013,Revenue Support grant payable,Localism,ROTHER DC,,,,5000223022,Grant Payable by Exchequer,TN39 3JX,"597,950.00",Yes
Communities & Local Government,DCLG,02/04/2013,Revenue Support grant payable,Localism,ROTHERHAM MBC,,,,5000223023,Grant Payable by Exchequer,S65 1UF,"14,752,880.00",Yes
Communities & Local Government,DCLG,02/04/2013,Revenue Support grant payable,Localism,ROYAL BERKSHIRE FIRE AUTHORITY,,,,5000222730,Grant Payable by Exchequer,RG30 4FS,"1,794,094.00",Yes
Communities & Local Government,DCLG,02/04/2013,Revenue Support grant payable,Localism,ROYAL BORO OF KENSINGTON & CHELSEA,,,,5000222933,Grant Payable by Exchequer,W8 7NX,"12,117,071.00",Yes
Communities & Local Government,DCLG,02/04/2013,Revenue Support grant payable,Localism,RUGBY BC,,,,5000223024,Grant Payable by Exchequer,CV21 2LA,"554,811.00",Yes
Communities & Local Government,DCLG,02/04/2013,Revenue Support grant payable,Localism,RUNNYMEDE BOROUGH COUNCIL,,,,5000223025,Grant Payable by Exchequer,KT15 2AH,"425,928.00",Yes
Communities & Local Government,DCLG,02/04/2013,Revenue Support grant payable,Localism,RUSHCLIFFE BOROUGH COUNCIL,,,,5000223026,Grant Payable by Exchequer,NG2 5FE,"600,195.00",Yes
Communities & Local Government,DCLG,02/04/2013,Revenue Support grant payable,Localism,RUSHMOOR BC,,,,5000223027,Grant Payable by Exchequer,GU14 7JU,"547,130.00",Yes
Communities & Local Government,DCLG,02/04/2013,Revenue Support grant payable,Localism,RUTLAND CC,,,,5000223028,Grant Payable by Exchequer,LE15 6HP,"1,949,552.00",Yes
Communities & Local Government,DCLG,02/04/2013,Revenue Support grant payable,Localism,RYEDALE DC,,,,5000223029,Grant Payable by Exchequer,YO17 0HH,"412,486.00",Yes
Communities & Local Government,DCLG,02/04/2013,Revenue Support grant payable,Localism,SALFORD CITY CNCL,,,,5000223030,Grant Payable by Exchequer,M27 5AW,"16,690,689.00",Yes
Communities & Local Government,DCLG,02/04/2013,Revenue Support grant payable,Localism,SANDWELL MBC,,,,5000223031,Grant Payable by Exchequer,B69 3BS,"21,152,768.00",Yes
Communities & Local Government,DCLG,02/04/2013,Revenue Support grant payable,Localism,SCARBOROUGH BC,,Large,,5000223032,Grant Payable by Exchequer,YO11 2HG,"984,923.00",Yes
Communities & Local Government,DCLG,02/04/2013,Revenue Support grant payable,Localism,SEDGEMOOR DC,,,,5000223033,Grant Payable by Exchequer,TA6 3AR,"738,524.00",Yes
Communities & Local Government,DCLG,02/04/2013,Revenue Support grant payable,Localism,SEFTON MBC,,,,5000223034,Grant Payable by Exchequer,L20 3NQ,"16,346,955.00",Yes
Communities & Local Government,DCLG,02/04/2013,Revenue Support grant payable,Localism,SELBY DC,,,,5000223035,Grant Payable by Exchequer,YO8 0SA,"565,008.00",Yes
Communities & Local Government,DCLG,02/04/2013,Revenue Support grant payable,Localism,SEVENOAKS DC,,,,5000223036,Grant Payable by Exchequer,TN13 1HG,"680,795.00",Yes
Communities & Local Government,DCLG,02/04/2013,Revenue Support grant payable,Localism,SHEFFIELD CITY CNCL,,,,5000223037,Grant Payable by Exchequer,S1 1UR,"33,268,416.00",Yes
Communities & Local Government,DCLG,02/04/2013,Revenue Support grant payable,Localism,SHEPWAY DC,,,,5000223038,Grant Payable by Exchequer,CT20 2QY,"939,578.00",Yes
Communities & Local Government,DCLG,02/04/2013,Revenue Support grant payable,Localism,SHROPSHIRE & WREKIN FIRE AUTHORITY,,,,5000223039,Grant Payable by Exchequer,SY1 2HJ,"1,158,605.00",Yes
Communities & Local Government,DCLG,02/04/2013,Revenue Support grant payable,Localism,SHROPSHIRE COUNCIL,,Large,,5000222842,Grant Payable by Exchequer,SY2 6ND,"15,091,650.00",Yes
Communities & Local Government,DCLG,02/04/2013,Revenue Support grant payable,Localism,SLOUGH BOROUGH COUNCIL,,,,5000223040,Grant Payable by Exchequer,SL1 3UQ,"6,958,567.00",Yes
Communities & Local Government,DCLG,02/04/2013,Revenue Support grant payable,Localism,SOLIHULL MBC,,,,5000223041,Grant Payable by Exchequer,B91 3QR,"8,926,587.00",Yes
Communities & Local Government,DCLG,02/04/2013,Revenue Support grant payable,Localism,SOMERSET COUNTY CNCL,,,,5000223042,Grant Payable by Exchequer,TA1 4DY,"23,166,730.00",Yes
Communities & Local Government,DCLG,02/04/2013,Revenue Support grant payable,Localism,SOUTH BUCKS DC,,,,5000223043,Grant Payable by Exchequer,UB9 4LH,"326,677.00",Yes
Communities & Local Government,DCLG,02/04/2013,Revenue Support grant payable,Localism,SOUTH CAMBRIDGESHIRE DC,,,,5000223044,Grant Payable by Exchequer,CB3 6EA,"666,357.00",Yes
Communities & Local Government,DCLG,02/04/2013,Revenue Support grant payable,Localism,SOUTH DERBYSHIRE D C,,,,5000223045,Grant Payable by Exchequer,DE11 0AH,"579,961.00",Yes
Communities & Local Government,DCLG,02/04/2013,Revenue Support grant payable,Localism,SOUTH GLOUCESTERSHIRE COUNCIL,,,,5000223046,Grant Payable by Exchequer,BS15 2TR,"11,954,513.00",Yes
Communities & Local Government,DCLG,02/04/2013,Revenue Support grant payable,Localism,SOUTH HAMS DC,,,,5000223047,Grant Payable by Exchequer,TQ9 5NE,"485,416.00",Yes
Communities & Local Government,DCLG,02/04/2013,Revenue Support grant payable,Localism,SOUTH HOLLAND,,,,5000223048,Grant Payable by Exchequer,PE11 2XE,"695,469.00",Yes
Communities & Local Government,DCLG,02/04/2013,Revenue Support grant payable,Localism,SOUTH KESTEVEN DC,,,,5000223049,Grant Payable by Exchequer,NG31 6PZ,"762,718.00",Yes
Communities & Local Government,DCLG,02/04/2013,Revenue Support grant payable,Localism,SOUTH LAKELAND DC,,,,5000223050,Grant Payable by Exchequer,LA49 4DQ,"566,167.00",Yes
Communities & Local Government,DCLG,02/04/2013,Revenue Support grant payable,Localism,SOUTH NORFOLK DC,,,,5000223051,Grant Payable by Exchequer,NR15 2XE,"785,747.00",Yes
Communities & Local Government,DCLG,02/04/2013,Revenue Support grant payable,Localism,SOUTH NORTHAMPTONSHIRE DC,,,,5000223052,Grant Payable by Exchequer,NN12 7AE,"474,707.00",Yes
Communities & Local Government,DCLG,02/04/2013,Revenue Support grant payable,Localism,SOUTH OXFORDSHIRE DC,,,,5000223053,Grant Payable by Exchequer,OX10 8HQ,"712,498.00",Yes
Communities & Local Government,DCLG,02/04/2013,Revenue Support grant payable,Localism,SOUTH RIBBLE BC,,,,5000223054,Grant Payable by Exchequer,PR5 1DH,"590,661.00",Yes
Communities & Local Government,DCLG,02/04/2013,Revenue Support grant payable,Localism,SOUTH SOMERSET DC,,,,5000223055,Grant Payable by Exchequer,BA20 2DS,"923,134.00",Yes
Communities & Local Government,DCLG,02/04/2013,Revenue Support grant payable,Localism,SOUTH STAFFORDSHIRE DC,,,,5000223056,Grant Payable by Exchequer,WV8 1PX,"539,525.00",Yes
Communities & Local Government,DCLG,02/04/2013,Revenue Support grant payable,Localism,SOUTH TYNESIDE COUNCIL,,,,5000223057,Grant Payable by Exchequer,NE33 2RL,"10,281,240.00",Yes
Communities & Local Government,DCLG,02/04/2013,Revenue Support grant payable,Localism,SOUTH YORKSHIRE FIRE & CD,,,,5000223058,Grant Payable by Exchequer,S1 3FG,"3,258,200.00",Yes
Communities & Local Government,DCLG,02/04/2013,Revenue Support grant payable,Localism,SOUTHAMPTON CITY CNCL,,,,5000223059,Grant Payable by Exchequer,SO14 7NR,"12,720,284.00",Yes
Communities & Local Government,DCLG,02/04/2013,Revenue Support grant payable,Localism,SOUTHEND ON SEA BC,,,,5000223060,Grant Payable by Exchequer,SS2 6EP,"8,884,533.00",Yes
Communities & Local Government,DCLG,02/04/2013,Revenue Support grant payable,Localism,SOUTHWARK LB,,,,5000223061,Grant Payable by Exchequer,SE1P 5LX,"21,559,693.00",Yes
Communities & Local Government,DCLG,02/04/2013,Revenue Support grant payable,Localism,SPELTHORNE DC,,,,5000223062,Grant Payable by Exchequer,TW18 1XB,"485,546.00",Yes
Communities & Local Government,DCLG,02/04/2013,Revenue Support grant payable,Localism,ST ALBANS CITY COUNCIL,,,,5000223063,Grant Payable by Exchequer,AL1 3JE,"746,034.00",Yes
Communities & Local Government,DCLG,02/04/2013,Revenue Support grant payable,Localism,ST EDMUNDSBURY BC,,,,5000223064,Grant Payable by Exchequer,IP33 3YS,"634,258.00",Yes
Communities & Local Government,DCLG,02/04/2013,Revenue Support grant payable,Localism,ST HELENS MBC,,,,5000223065,Grant Payable by Exchequer,WA10 1HP,"10,621,306.00",Yes
Communities & Local Government,DCLG,02/04/2013,Revenue Support grant payable,Localism,STAFFORD BC,,,,5000223066,Grant Payable by Exchequer,ST16 3AQ,"649,042.00",Yes
Communities & Local Government,DCLG,02/04/2013,Revenue Support grant payable,Localism,STAFFORDSHIRE  FIRE & RESCUE SERV,,,,5000223068,Grant Payable by Exchequer,ST15 0BS,"2,421,291.00",Yes
Communities & Local Government,DCLG,02/04/2013,Revenue Support grant payable,Localism,STAFFORDSHIRE COUNTY CNCL,,,,5000223067,Grant Payable by Exchequer,ST16 2LH,"34,322,251.00",Yes
Communities & Local Government,DCLG,02/04/2013,Revenue Support grant payable,Localism,STAFFORDSHIRE MOORLANDS DC,,,,5000223069,Grant Payable by Exchequer,ST13 6HQ,"602,624.00",Yes
Communities & Local Government,DCLG,02/04/2013,Revenue Support grant payable,Localism,STEVENAGE BC,,,,5000222687,Grant Payable by Exchequer,SG1 1HN,"534,726.00",Yes
Communities & Local Government,DCLG,02/04/2013,Revenue Support grant payable,Localism,STOCKPORT MBC,,,,5000222688,Grant Payable by Exchequer,SK1 3XE,"14,156,786.00",Yes
Communities & Local Government,DCLG,02/04/2013,Revenue Support grant payable,Localism,STOCKTON ON TEES BC,,,,5000222689,Grant Payable by Exchequer,TS23 2YS,"9,116,048.00",Yes
Communities & Local Government,DCLG,02/04/2013,Revenue Support grant payable,Localism,STOKE ON TRENT CITY COUNCIL,,,,5000222690,Grant Payable by Exchequer,ST4 1RJ,"16,744,756.00",Yes
Communities & Local Government,DCLG,02/04/2013,Revenue Support grant payable,Localism,STRATFORD ON AVON DC,,,,5000222691,Grant Payable by Exchequer,CV37 6HX,"621,865.00",Yes
Communities & Local Government,DCLG,02/04/2013,Revenue Support grant payable,Localism,STROUD DC,,,,5000222692,Grant Payable by Exchequer,GL5 4UB,"675,647.00",Yes
Communities & Local Government,DCLG,02/04/2013,Revenue Support grant payable,Localism,SUFFOLK COASTAL DC,,,,5000222695,Grant Payable by Exchequer,IP12 1AU,"725,197.00",Yes
Communities & Local Government,DCLG,02/04/2013,Revenue Support grant payable,Localism,SUFFOLK COUNTY CNCL,,Public Bodies,,5000222693,Grant Payable by Exchequer,IP4 2JP,"32,596,604.00",Yes
Communities & Local Government,DCLG,02/04/2013,Revenue Support grant payable,Localism,SUNDERLAND DC,,,,5000222697,Grant Payable by Exchequer,SR2 7DN,"17,849,439.00",Yes
Communities & Local Government,DCLG,02/04/2013,Revenue Support grant payable,Localism,SURREY COUNTY CNCL,,,,5000222699,Grant Payable by Exchequer,KT1 2EA,"50,384,534.00",Yes
Communities & Local Government,DCLG,02/04/2013,Revenue Support grant payable,Localism,SURREY HEATH BC,,,,5000222701,Grant Payable by Exchequer,GU15 3HD,"428,990.00",Yes
Communities & Local Government,DCLG,02/04/2013,Revenue Support grant payable,Localism,SUTTON LB,,,,5000222703,Grant Payable by Exchequer,SM1 1EA,"10,759,583.00",Yes
Communities & Local Government,DCLG,02/04/2013,Revenue Support grant payable,Localism,SWALE BC,,,,5000222705,Grant Payable by Exchequer,ME10 3HT,"891,815.00",Yes
Communities & Local Government,DCLG,02/04/2013,Revenue Support grant payable,Localism,SWINDON BC,,,,5000222707,Grant Payable by Exchequer,SN1 2JH,"9,540,319.00",Yes
Communities & Local Government,DCLG,02/04/2013,Revenue Support grant payable,Localism,TAMESIDE MBC,,,,5000222709,Grant Payable by Exchequer,OL6 6DL,"12,937,110.00",Yes
Communities & Local Government,DCLG,02/04/2013,Revenue Support grant payable,Localism,TAMWORTH BOROUGH COUNCIL,,,,5000222711,Grant Payable by Exchequer,B79 7BZ,"486,099.00",Yes
Communities & Local Government,DCLG,02/04/2013,Revenue Support grant payable,Localism,TANDRIDGE DC,,,,5000222713,Grant Payable by Exchequer,RH8 0BT,"431,113.00",Yes
Communities & Local Government,DCLG,02/04/2013,Revenue Support grant payable,Localism,TAUNTON DEANE BC,,,,5000222715,Grant Payable by Exchequer,TA1 1HE,"622,318.00",Yes
Communities & Local Government,DCLG,02/04/2013,Revenue Support grant payable,Localism,TEIGNBRIDGE DC,,,,5000222717,Grant Payable by Exchequer,TQ12 4XX,"779,882.00",Yes
Communities & Local Government,DCLG,02/04/2013,Revenue Support grant payable,Localism,TELFORD & WREKIN DC,,,,5000222719,Grant Payable by Exchequer,TF3 4LF,"8,902,414.00",Yes
Communities & Local Government,DCLG,02/04/2013,Revenue Support grant payable,Localism,TENDRING DC,,,,5000222721,Grant Payable by Exchequer,CO15 1SE,"1,051,585.00",Yes
Communities & Local Government,DCLG,02/04/2013,Revenue Support grant payable,Localism,TEST VALLEY BC,,Large,,5000222723,Grant Payable by Exchequer,SP10 3AJ,"547,210.00",Yes
Communities & Local Government,DCLG,02/04/2013,Revenue Support grant payable,Localism,TEWKESBURY BC,,,,5000222725,Grant Payable by Exchequer,GL20 5TT,"424,258.00",Yes
Communities & Local Government,DCLG,02/04/2013,Revenue Support grant payable,Localism,THANET DC,,,,5000222727,Grant Payable by Exchequer,CT8 1XZ,"1,161,357.00",Yes
Communities & Local Government,DCLG,02/04/2013,Revenue Support grant payable,Localism,THREE RIVERS DC,,,,5000222729,Grant Payable by Exchequer,WD3 1RL,"545,624.00",Yes
Communities & Local Government,DCLG,02/04/2013,Revenue Support grant payable,Localism,THURROCK  BOROUGH COUNCIL,,,,5000222731,Grant Payable by Exchequer,RM17 6LT,"8,359,066.00",Yes
Communities & Local Government,DCLG,02/04/2013,Revenue Support grant payable,Localism,TONBRIDGE & MALLING BC,,,,5000222733,Grant Payable by Exchequer,ME19 6LZ,"629,583.00",Yes
Communities & Local Government,DCLG,02/04/2013,Revenue Support grant payable,Localism,TORBAY BC,,,,5000222735,Grant Payable by Exchequer,TQ1 3DR,"8,191,280.00",Yes
Communities & Local Government,DCLG,02/04/2013,Revenue Support grant payable,Localism,TORRIDGE DC,,,,5000222737,Grant Payable by Exchequer,EX39 2HT,"494,836.00",Yes
Communities & Local Government,DCLG,02/04/2013,Revenue Support grant payable,Localism,TOWER HAMLETS LB,,,,5000222739,Grant Payable by Exchequer,E14 2BG,"20,750,799.00",Yes
Communities & Local Government,DCLG,02/04/2013,Revenue Support grant payable,Localism,TRAFFORD MBC,,,,5000222741,Grant Payable by Exchequer,M32 0YY,"9,167,372.00",Yes
Communities & Local Government,DCLG,02/04/2013,Revenue Support grant payable,Localism,TUNBRIDGE WELLS BC,,,,5000222743,Grant Payable by Exchequer,TN1 1RS,"597,768.00",Yes
Communities & Local Government,DCLG,02/04/2013,Revenue Support grant payable,Localism,TYNE & WEAR FIRE AUTHORITY,,,,5000222745,Grant Payable by Exchequer,SR2 7DN,"3,231,346.00",Yes
Communities & Local Government,DCLG,02/04/2013,Revenue Support grant payable,Localism,UTTLESFORD DC,,,,5000222747,Grant Payable by Exchequer,CB11 4ER,"424,585.00",Yes
Communities & Local Government,DCLG,02/04/2013,Revenue Support grant payable,Localism,VALE OF WHITE HORSE DC,,,,5000222749,Grant Payable by Exchequer,OX14 3JH,"596,601.00",Yes
Communities & Local Government,DCLG,02/04/2013,Revenue Support grant payable,Localism,W YORKSHIRE FIRE & RESCUE AUTH,,,,5000222794,Grant Payable by Exchequer,BD11 2DY,"5,141,778.00",Yes
Communities & Local Government,DCLG,02/04/2013,Revenue Support grant payable,Localism,WALSALL MBC,,,,5000222753,Grant Payable by Exchequer,WS1 1TW,"17,179,982.00",Yes
Communities & Local Government,DCLG,02/04/2013,Revenue Support grant payable,Localism,WALTHAM FOREST LB,,Large,,5000222755,Grant Payable by Exchequer,E17 4JF,"16,121,615.00",Yes
Communities & Local Government,DCLG,02/04/2013,Revenue Support grant payable,Localism,WANDSWORTH LB,,,,5000222757,Grant Payable by Exchequer,SW18 2PU,"13,752,567.00",Yes
Communities & Local Government,DCLG,02/04/2013,Revenue Support grant payable,Localism,WARRINGTON BC,,,,5000222759,Grant Payable by Exchequer,WA1 1BN,"8,569,541.00",Yes
Communities & Local Government,DCLG,02/04/2013,Revenue Support grant payable,Localism,WARWICK,,,,5000222761,Grant Payable by Exchequer,CV32 4NW,"792,078.00",Yes
Communities & Local Government,DCLG,02/04/2013,Revenue Support grant payable,Localism,WARWICKSHIRE COUNTY CNCL,,,,5000222763,Grant Payable by Exchequer,CV34 4RH,"24,551,185.00",Yes
Communities & Local Government,DCLG,02/04/2013,Revenue Support grant payable,Localism,WATFORD COUNCIL,,,,5000222765,Grant Payable by Exchequer,WD17 3EX,"714,680.00",Yes
Communities & Local Government,DCLG,02/04/2013,Revenue Support grant payable,Localism,WAVENEY DISTRICT COUNCIL,,Large,,5000222767,Grant Payable by Exchequer,NR32 1HS,"840,629.00",Yes
Communities & Local Government,DCLG,02/04/2013,Revenue Support grant payable,Localism,WAVERLEY BC,,Public Bodies,,5000222769,Grant Payable by Exchequer,GU7 1HR,"591,686.00",Yes
Communities & Local Government,DCLG,02/04/2013,Revenue Support grant payable,Localism,WEALDEN DC,,,,5000222771,Grant Payable by Exchequer,BN22 9LN,"872,434.00",Yes
Communities & Local Government,DCLG,02/04/2013,Revenue Support grant payable,Localism,WELLINGBOROUGH BOROUGH COUNCIL,,Large,,5000222773,Grant Payable by Exchequer,NN8 1BN,"503,134.00",Yes
Communities & Local Government,DCLG,02/04/2013,Revenue Support grant payable,Localism,WELWYN HATFIELD COUNCIL,,,,5000222775,Grant Payable by Exchequer,AL8 6AE,"796,203.00",Yes
Communities & Local Government,DCLG,02/04/2013,Revenue Support grant payable,Localism,WEST BERKSHIRE COUNCIL,,,,5000222777,Grant Payable by Exchequer,RG14 2AF,"6,933,304.00",Yes
Communities & Local Government,DCLG,02/04/2013,Revenue Support grant payable,Localism,WEST DEVON BC,,,,5000222779,Grant Payable by Exchequer,PL19 0BZ,"414,832.00",Yes
Communities & Local Government,DCLG,02/04/2013,Revenue Support grant payable,Localism,WEST DORSET DC,,,,5000222781,Grant Payable by Exchequer,DT1 1UZ,"671,842.00",Yes
Communities & Local Government,DCLG,02/04/2013,Revenue Support grant payable,Localism,WEST LANCASHIRE BC,,,,5000222783,Grant Payable by Exchequer,L39 2DF,"761,714.00",Yes
Communities & Local Government,DCLG,02/04/2013,Revenue Support grant payable,Localism,WEST LINDSEY DC,,,,5000222785,Grant Payable by Exchequer,DN21 2NA,"694,604.00",Yes
Communities & Local Government,DCLG,02/04/2013,Revenue Support grant payable,Localism,WEST MIDLANDS FIRE & CIVIL DEFENCE,,,,5000222787,Grant Payable by Exchequer,B4 7DE,"7,011,771.00",Yes
Communities & Local Government,DCLG,02/04/2013,Revenue Support grant payable,Localism,WEST OXFORDSHIRE DC,,,,5000222789,Grant Payable by Exchequer,OX28 1NB,"493,159.00",Yes
Communities & Local Government,DCLG,02/04/2013,Revenue Support grant payable,Localism,WEST SOMERSET DC,,,,5000222791,Grant Payable by Exchequer,TA4 4QA,"276,377.00",Yes
Communities & Local Government,DCLG,02/04/2013,Revenue Support grant payable,Localism,WEST SUSSEX CC,,,,5000222792,Grant Payable by Exchequer,PO19 1RG,"34,687,828.00",Yes
Communities & Local Government,DCLG,02/04/2013,Revenue Support grant payable,Localism,WESTMINSTER CITY CNCL,,,,5000222796,Grant Payable by Exchequer,SW1E 6QP,"16,817,392.00",Yes
Communities & Local Government,DCLG,02/04/2013,Revenue Support grant payable,Localism,WEYMOUTH & PORTLAND BC,,,,5000222798,Grant Payable by Exchequer,DT4 8TA,"513,323.00",Yes
Communities & Local Government,DCLG,02/04/2013,Revenue Support grant payable,Localism,WIGAN MBC,,,,5000222800,Grant Payable by Exchequer,WN1 1YD,"16,222,091.00",Yes
Communities & Local Government,DCLG,02/04/2013,Revenue Support grant payable,Localism,WILTSHIRE & SWINDON FIRE AUTHORITY,,,,5000222802,Grant Payable by Exchequer,SN10 5PP,"1,294,304.00",Yes
Communities & Local Government,DCLG,02/04/2013,Revenue Support grant payable,Localism,WILTSHIRE COUNCIL,,,,5000222844,Grant Payable by Exchequer,BA14 4DS,"20,904,450.00",Yes
Communities & Local Government,DCLG,02/04/2013,Revenue Support grant payable,Localism,WINCHESTER CITY CNCL,,,,5000222804,Grant Payable by Exchequer,SO23 9LJ,"561,359.00",Yes
Communities & Local Government,DCLG,02/04/2013,Revenue Support grant payable,Localism,WINDSOR & MAIDENHEAD,,,,5000222806,Grant Payable by Exchequer,SL6 1RF,"5,570,425.00",Yes
Communities & Local Government,DCLG,02/04/2013,Revenue Support grant payable,Localism,WIRRAL BOROUGH COUNCIL,,,,5000222808,Grant Payable by Exchequer,CH41 6BU,"18,719,240.00",Yes
Communities & Local Government,DCLG,02/04/2013,Revenue Support grant payable,Localism,WOKING BC,,,,5000222810,Grant Payable by Exchequer,GU21 1YL,"537,340.00",Yes
Communities & Local Government,DCLG,02/04/2013,Revenue Support grant payable,Localism,WOKINGHAM DC,,,,5000222812,Grant Payable by Exchequer,RG11 1WJ,"6,180,406.00",Yes
Communities & Local Government,DCLG,02/04/2013,Revenue Support grant payable,Localism,WOLVERHAMPTON MBC,,,,5000222814,Grant Payable by Exchequer,WV1 1RL,"16,561,689.00",Yes
Communities & Local Government,DCLG,02/04/2013,Revenue Support grant payable,Localism,WORCESTER CITY CNCL,,,,5000222816,Grant Payable by Exchequer,WR1 2EZ,"543,609.00",Yes
Communities & Local Government,DCLG,02/04/2013,Revenue Support grant payable,Localism,WORCESTERSHIRE COUNTY COUNCIL,,,,5000222818,Grant Payable by Exchequer,WR5 2NP,"24,318,486.00",Yes
Communities & Local Government,DCLG,02/04/2013,Revenue Support grant payable,Localism,WORTHING BC,,,,5000222820,Grant Payable by Exchequer,BN11 1HB,"618,739.00",Yes
Communities & Local Government,DCLG,02/04/2013,Revenue Support grant payable,Localism,WYCHAVON DISTRICT COUNCIL,,,,5000222822,Grant Payable by Exchequer,WR10 1PT,"609,478.00",Yes
Communities & Local Government,DCLG,02/04/2013,Revenue Support grant payable,Localism,WYCOMBE DC,,,,5000222824,Grant Payable by Exchequer,HP11 1BB,"842,329.00",Yes
Communities & Local Government,DCLG,02/04/2013,Revenue Support grant payable,Localism,WYRE BC,,,,5000222826,Grant Payable by Exchequer,FY6 7PU,"783,436.00",Yes
Communities & Local Government,DCLG,02/04/2013,Revenue Support grant payable,Localism,WYRE FOREST DISTRICT COUNCIL,,,,5000222828,Grant Payable by Exchequer,DY10 1DA,"653,360.00",Yes
Communities & Local Government,DCLG,02/04/2013,Revenue Support grant payable,Localism,YORK CITY CNCL,,,,5000222825,Grant Payable by Exchequer,YO1 1XH,"7,845,746.00",Yes
Communities & Local Government,DCLG,02/04/2013,Training,Finance & Corporate Services,QA  LTD,,Large,,5106191751,ITIL� Lifecycle Certificate in Service T,LS12 6BD,830,
Communities & Local Government,DCLG,02/04/2013,Training,Finance & Corporate Services,QA  LTD,,Large,,5106191927,APMP for PRINCE2 Practitioners Fast trac,LS12 6BD,-456,
Communities & Local Government,DCLG,03/04/2013,Accommodation Service Charges,Finance & Corporate Services,DLA PIPER UK LLP,,Large,,2100228796,ELAND HOUSE LEASE SURRENDER,LS1 4BY,"48,742.00",
Communities & Local Government,DCLG,03/04/2013,Agency Staff,Finance & Corporate Services,MICHAEL PAGE INTERNATIONAL,,Large,,5106191964,Interim contractor,SL1 3SA,"1,929.48",
Communities & Local Government,DCLG,03/04/2013,Agency Staff,Neighbourhoods,ALPHA CONSOLIDATED TRAINING LTD,,Small,,5106191690,Contractor,EC2M 7QD,"3,360.00",
Communities & Local Government,DCLG,03/04/2013,Agency Staff,Neighbourhoods,ALPHA CONSOLIDATED TRAINING LTD,,Small,,5106191690,Expenses,EC2M 7QD,160.32,
Communities & Local Government,DCLG,03/04/2013,Capital Grants to People Non Profit,Neighbourhoods,COALFIELDS REGENERATION TRUST,Yes,Small,,2100228962,Interim CRT claim for Qtr1 13-14,S63 7WX,"2,000,000.00",Yes
Communities & Local Government,DCLG,03/04/2013,Courier Services,Finance & Corporate Services,THERE TODAY COURIER SERVICE,,,,5106191947,Transport of DCLG personal files 2012-13,CH41 9HH,885,
Communities & Local Government,DCLG,03/04/2013,Electricity,Finance & Corporate Services,DEPT FOR WORK & PENSIONS,,Public Bodies,,5106191969,ASHDOWN HASTINGS - UTILITIES,CF14 3UW,362.24,
Communities & Local Government,DCLG,03/04/2013,Grant in Aid to NDPBs (non budget),Neighbourhoods,HOMES & COMMUNITIES AGENCY,,Public Bodies,,2100228961,Weekly HCA Grant in Aid Claim,NE11 0NA,"145,070,359.00",Yes
Communities & Local Government,DCLG,03/04/2013,"IT - PC, Network & Hardware",Finance & Corporate Services,COMPUTACENTER (UK) LTD,,Large,,5106191937,Ironkey BasicS250-USB flash drive-32GB,AL10 9TW,360.3,
Communities & Local Government,DCLG,03/04/2013,IT - Service Contracts,Neighbourhoods,AMOR BUSINESS TECHNOLOGY SOLUTIONS,,Large,,5106191848,Database Maintenance-ERDF(support),PA4 9LH,"35,236.85",
Communities & Local Government,DCLG,03/04/2013,IT - Software Maintenance,Finance & Corporate Services,ORACLE CORPORATION UK LTD,,Large,,5106191938,Oracle annual support renewal 2013/14,RG6 1RA,"13,251.02",
Communities & Local Government,DCLG,03/04/2013,Legal Fees,Finance & Corporate Services,TREASURY SOLICITOR,,Public Bodies,,2100228972,Q102518A/JUS/B5,WC2B 4TS,"10,000.00"
Communities & Local Government,DCLG,03/04/2013,Professional services,Neighbourhoods,RICARDO-AEA LTD,,Large,,5106191965,Contract management System - PMS Hosting,OX11 0QR,"4,320.00"
Communities & Local Government,DCLG,03/04/2013,Recruitment,Neighbourhoods,BROOKLEIGH CONSULTING LTD,,Micro,,5106191978,Recruitment Servies,DL10 4YU,"2,697.18"
Communities & Local Government,DCLG,03/04/2013,Travel and Subsistence Account,Localism,MR GARY BUXTON,,,,2100228968,ATTEND VCS BOARD MEETING,,309.5
Communities & Local Government,DCLG,03/04/2013,Web Services,Finance & Corporate Services,DEXTROUS WEB LTD,,Micro,,5106191943,Design and build,SE1 1EN,"18,030.00"
Communities & Local Government,DCLG,03/04/2013,Web Services,Finance & Corporate Services,DEXTROUS WEB LTD,,Micro,,5106191972,Hosting,SE1 1EN,292.8
Communities & Local Government,DCLG,04/04/2013,Agency Staff,Finance & Corporate Services,CAPITA RESOURCING LTD,,Large,,5106192016,Interim Manager,SL6 1DP,"3,300.00"
Communities & Local Government,DCLG,04/04/2013,Agency Staff,Finance & Corporate Services,CAPITA RESOURCING LTD,,Large,,5106192028,IT interim,SL6 1DP,"3,322.38"
Communities & Local Government,DCLG,04/04/2013,Agency Staff,Finance & Corporate Services,CAPITA RESOURCING LTD,,Large,,5106192044,Extension of HR B'Partner,SL6 1DP,"2,305.80"
Communities & Local Government,DCLG,04/04/2013,Agency Staff,Finance & Corporate Services,CAPITA RESOURCING LTD,,Large,,5106192052,Interim Manager,SL6 1DP,"12,540.00"
Communities & Local Government,DCLG,04/04/2013,Agency Staff,Finance & Corporate Services,CAPITA RESOURCING LTD,,Large,,5106192055,Interim manager,SL6 1DP,"2,613.60"
Communities & Local Government,DCLG,04/04/2013,Agency Staff,Finance & Corporate Services,CERTES COMPUTING LTD,,Medium,,5106192086,Temp Staff Dec 2012,B46 1HQ,441.94
Communities & Local Government,DCLG,04/04/2013,Agency Staff,Finance & Corporate Services,CERTES COMPUTING LTD,,Medium,,5106192086,Temp Staff Mar 2013,B46 1HQ,"3,093.55"
Communities & Local Government,DCLG,04/04/2013,Agency Staff,Finance & Corporate Services,MANPOWER UK LTD,,Large,,5106192085,Temp information specialist,UB8 1AB,607.85
Communities & Local Government,DCLG,04/04/2013,Agency Staff,Finance & Corporate Services,PREMIERE EMPLOYMENT GROUP LTD,,Large,,5106192019,Temporary PA Support - Agency Staff,M3 2JA,606.1
Communities & Local Government,DCLG,04/04/2013,Agency Staff,Localism,CAPITA RESOURCING LTD,,Large,,5106192030,Interim,SL6 1DP,"1,117.80"
Communities & Local Government,DCLG,04/04/2013,Agency Staff,Neighbourhoods,CAPITA RESOURCING LTD,,Large,,5106192032,Interim Manager,SL6 1DP,"1,196.70",
Communities & Local Government,DCLG,04/04/2013,Agency Staff,Neighbourhoods,CAPITA RESOURCING LTD,,Large,,5106192033,Interim Manager,SL6 1DP,"1,281.00",
Communities & Local Government,DCLG,04/04/2013,Agency Staff,Neighbourhoods,CAPITA RESOURCING LTD,,Large,,5106192034,Interim Manager,SL6 1DP,"1,914.72",
Communities & Local Government,DCLG,04/04/2013,Agency Staff,Neighbourhoods,CAPITA RESOURCING LTD,,Large,,5106192038,DayRate INTERREG 2Seas-Territorial Facil,SL6 1DP,"1,034.78",
Communities & Local Government,DCLG,04/04/2013,Agency Staff,Neighbourhoods,CAPITA RESOURCING LTD,,Large,,5106192038,Expenses INTERREG 2Seas-Territorial Faci,SL6 1DP,206.86,
Communities & Local Government,DCLG,04/04/2013,Agency Staff,Neighbourhoods,CAPITA RESOURCING LTD,,Large,,5106192039,Contractor ERDF,SL6 1DP,181.62,
Communities & Local Government,DCLG,04/04/2013,Agency Staff,Neighbourhoods,CAPITA RESOURCING LTD,,Large,,5106192039,Contractor ERDF Expenses,SL6 1DP,"1,461.60",
Communities & Local Government,DCLG,04/04/2013,Agency Staff,Neighbourhoods,CAPITA RESOURCING LTD,,Large,,5106192046,Interim Manager,SL6 1DP,"2,754.18",
Communities & Local Government,DCLG,04/04/2013,Agency Staff,Neighbourhoods,CAPITA RESOURCING LTD,,Large,,5106192050,Interim contractor,SL6 1DP,"2,173.50",
Communities & Local Government,DCLG,04/04/2013,Agency Staff,Neighbourhoods,CAPITA RESOURCING LTD,,Large,,5106192059,Interim Manager,SL6 1DP,"5,543.92",
Communities & Local Government,DCLG,04/04/2013,Catering,Neighbourhoods,CHARNWOOD BOROUGH COUNCIL,,Public Bodies,,5106192007,Charnwood BC Portas Pilot Event 7.2.13,LE11 2TN,"1,105.67",
Communities & Local Government,DCLG,04/04/2013,Courier Services,Finance & Corporate Services,ROYAL MAIL,,Large,,5106192072,2009-10: Royal Mail Ministerial Pouches,PE4 5PE,267.5,
Communities & Local Government,DCLG,04/04/2013,Current (non AEF) Grants to Local Authorities,Localism,LONDON FIRE & EMERG PLANNING AUTH,,Public Bodies,,2100228994,Production-ontrol&Command Fires -Build Environment,SE1 0LL,"275,000.00",Yes
Communities & Local Government,DCLG,04/04/2013,Current Grants to Non Profit Bodies,Localism,FAITH BASED REGENERATION NETWORK,Yes,Micro,,2100228990,Strategic Plan,W14 8QH,"50,000.00",Yes
Communities & Local Government,DCLG,04/04/2013,Current Grants to Non Profit Bodies,Localism,INTER FAITH NETWORK FOR THE UK,Yes,Small,,2100228991,Strategic Grant Offer,SW1W 0EN,"220,000.00",Yes
Communities & Local Government,DCLG,04/04/2013,Fixed Maintenance,Finance & Corporate Services,GVA GRIMLEY LTD,,Large,,5106192089,pre dilaps liability asses TQH - 046,B1 2JB,"10,200.00",
Communities & Local Government,DCLG,04/04/2013,"IT - PC, Network & Hardware",Localism,DELL CORPORATION LTD,,Large,,5106191987,Dell Server,RG12 1LF,"4,399.98"
Communities & Local Government,DCLG,04/04/2013,IT - Service Contracts,Neighbourhoods,AMOR BUSINESS TECHNOLOGY SOLUTIONS,,Large,,5106192063,Database ERDF(development service)VA,PA4 9LH,"30,607.20"
Communities & Local Government,DCLG,04/04/2013,IT - Service Contracts,Neighbourhoods,AMOR BUSINESS TECHNOLOGY SOLUTIONS,,Large,,5106192098,Database ERDF(development service)VA,PA4 9LH,"2,354.40"
Communities & Local Government,DCLG,04/04/2013,IT - Software Maintenance,Neighbourhoods,I B M UK LTD,,Large,,5106191996,IBM Cognos Support Renewal 2013-14,PO6 3AE,"13,293.00"
Communities & Local Government,DCLG,04/04/2013,Online Database Information Retrieval,Finance & Corporate Services,HAYMARKET PUBLISHING SERVS LTD,,Large,,5106192020,ENDS Europe Daily online 2013-14,TW11 9BE,"5,182.13"
Communities & Local Government,DCLG,04/04/2013,Printing,Finance & Corporate Services,STATIONERY OFFICE LTD,,Large,,5106191660,Non-Vatable,NR3 1PD,"1,093.07"
Communities & Local Government,DCLG,04/04/2013,Printing,Finance & Corporate Services,STATIONERY OFFICE LTD,,Large,,5106191990,Non-Vatable,NR3 1PD,542.52
Communities & Local Government,DCLG,04/04/2013,Printing,Finance & Corporate Services,STATIONERY OFFICE LTD,,Large,,5106192018,Non-Vatable,NR3 1PD,432.12
Communities & Local Government,DCLG,04/04/2013,Printing,Finance & Corporate Services,STATIONERY OFFICE LTD,,Large,,5106192057,Non-Vatable,NR3 1PD,"1,110.57"
Communities & Local Government,DCLG,04/04/2013,Professional services,Finance & Corporate Services,GVA GRIMLEY LTD,,Large,,5106191744,PAMU Burlington Hse Valuation 12/13,B1 2JB,"7,200.00"
Communities & Local Government,DCLG,04/04/2013,Professional services,Finance & Corporate Services,GVA GRIMLEY LTD,,Large,,5106191744,PAMU QEII Valuation 12/13,B1 2JB,"7,200.00"
Communities & Local Government,DCLG,04/04/2013,Professional services,Finance & Corporate Services,GVA GRIMLEY LTD,,Large,,5106191744,PAMU Hanger 97 Valuation 12/13,B1 2JB,"2,100.00"
Communities & Local Government,DCLG,04/04/2013,Professional services,Finance & Corporate Services,GVA GRIMLEY LTD,,Large,,5106191744,PAMU Mosedale Road Valuation 12/13,B1 2JB,"3,900.00"
Communities & Local Government,DCLG,04/04/2013,Professional services,Neighbourhoods,VALUATION OFFICE AGENCY,,Public Bodies,,5106192083,Financial Checks/Fees 2011/12,W1B 5BU,"3,516.00"
Communities & Local Government,DCLG,04/04/2013,Publications,Localism,STATIONERY OFFICE LTD,,Large,,5106192004,Production of Firebuy accounts,NR3 1PD,"1,177.86"
Communities & Local Government,DCLG,04/04/2013,Recruitment,Finance & Corporate Services,HEMMING GROUP LTD,,Medium,,5106191986,Advert for DG Localism in MJ magazine,SW1V 2SS,"1,980.00"
Communities & Local Government,DCLG,04/04/2013,Research,Neighbourhoods,ROYAL TOWN PLANNING INSTITUTE-NW,,Medium,,5106192013,European Structural Funds Programme (Espon),EC3R 8DL,"9,752.40",
Communities & Local Government,DCLG,04/04/2013,Services provided by other Govt Orgs,Finance & Corporate Services,DEPT FOR EDUCATION,,Public Bodies,,5106191999,DCLG Security Clearances 2012-13,CF14 3UW,"1,398.77",Yes
Communities & Local Government,DCLG,04/04/2013,Telecoms equipment (non-capitalised),Finance & Corporate Services,BT GLOBAL,,Large,,5106192070,Line and provision service,NW9 6LB,689.5,
Communities & Local Government,DCLG,04/04/2013,Training,Finance & Corporate Services,DODS PARLIAMENTARY COMM  LTD,,Large,,5106191991,Working with and Understanding Local Gov,SW1H 9BP,295,
Communities & Local Government,DCLG,04/04/2013,Training,Finance & Corporate Services,EML LEARNING,,Micro,,5106191950,Communicating with Ministers & Managers,SG5 2DJ,700,
Communities & Local Government,DCLG,04/04/2013,Training,Finance & Corporate Services,INSTITUTE OF INTERNAL AUDITORS,,Small,,5106192073,Internal Auditing - A Beginner's Course,SW4 7BX,"3,070.25",
Communities & Local Government,DCLG,04/04/2013,Training,Finance & Corporate Services,INSTITUTE OF INTERNAL AUDITORS,,Small,,5106192074,Internal Auditing - A Beginner's Course,SW4 7BX,"1,567.50",
Communities & Local Government,DCLG,04/04/2013,Training,Finance & Corporate Services,MR BEN HOOPER - 11KBW,,Small,,5106192015,Information Law Conference (HW),EC4Y 7EQ,150,
Communities & Local Government,DCLG,04/04/2013,Training,Finance & Corporate Services,MR BEN HOOPER - 11KBW,,Small,,5106192015,Information Law Conference (JT),EC4Y 7EQ,150,
Communities & Local Government,DCLG,04/04/2013,Training,Finance & Corporate Services,MR BEN HOOPER - 11KBW,,Small,,5106192015,Information Law Conference (MH),EC4Y 7EQ,150,
Communities & Local Government,DCLG,04/04/2013,Training,Finance & Corporate Services,SAP (UK) LTD,,Large,,5106192010,BPC420 SAP-SAP ver NetWeaver: Admininist,TW14 8HD,"2,210.00",
Communities & Local Government,DCLG,04/04/2013,Training,Finance & Corporate Services,SAP (UK) LTD,,Large,,5106192011,SAP Learning Passport Registrations,TW14 8HD,300,
Communities & Local Government,DCLG,04/04/2013,Web Services,Finance & Corporate Services,DIGIRATI LTD,,Micro,,5106192053,contract extension,G1 3DX,"4,680.00",
Communities & Local Government,DCLG,04/04/2013,Web Services,Finance & Corporate Services,DIGIRATI LTD,,Micro,,5106192056,contract extension,G1 3DX,"4,680.00",
Communities & Local Government,DCLG,04/04/2013,Web Services,Finance & Corporate Services,DIGIRATI LTD,,Micro,,5106192060,contract extension,G1 3DX,"4,680.00",
Communities & Local Government,DCLG,05/04/2013,Agency Staff,Finance & Corporate Services,MANPOWER UK LTD,,Large,,5106192067,Temp for L&D team til March 13,UB8 1AB,488.63,
Communities & Local Government,DCLG,05/04/2013,Agency Staff,Finance & Corporate Services,PREMIER LONDON LTD,,Medium,,5106192101,Supplyof 1 AO - 6 months - per day,EC2R 7HJ,782.1,
Communities & Local Government,DCLG,05/04/2013,Agency Staff,Neighbourhoods,REED EMPLOYMENT SERVICES,,Large,,5106192117,POLICY SUPPORT FOR HGAH,SW20 0BA,866.59,
Communities & Local Government,DCLG,05/04/2013,Agency Staff,Neighbourhoods,REED EMPLOYMENT SERVICES,,Large,,5106192118,POLICY SUPPORT FOR HGAH,SW20 0BA,"1,210.13",
Communities & Local Government,DCLG,05/04/2013,Agency Staff,Neighbourhoods,REED EMPLOYMENT SERVICES,,Large,,5106192119,Policy Support in HGAH,SW20 0BA,929.92,
Communities & Local Government,DCLG,05/04/2013,Agency Staff,Neighbourhoods,REED SPECIALIST RECRUITMENT LTD,,Large,,5106192115,Temporary Staff,NN1 1UE,"1,030.08",
Communities & Local Government,DCLG,05/04/2013,Capital Grants to People Non Profit,Localism,GROUNDWORK UK,Yes,,,2100228975,Qtr 1 payment to Groundwork 2013/14,B1 2RR,"675,000.00",Yes
Communities & Local Government,DCLG,05/04/2013,Current (non AEF) Grants to Local Authorities,Localism,LB OF LAMBETH,,Public Bodies,,2100228792,Payment for t he cost of Lakanal House -12/13,SW1 1RW,"912,398.46",Yes
Communities & Local Government,DCLG,05/04/2013,Current (non AEF) Grants to Local Authorities,Localism,WESTMINSTER CITY COUNCIL,,Public Bodies,,2100228971,Reimburse of LA Whole-Place Community Budget,SW1E 6QP,"32,235.00",Yes
Communities & Local Government,DCLG,05/04/2013,Current (non AEF) Grants to Local Authorities,Localism,WESTMINSTER CITY COUNCIL,,Public Bodies,,2100228973,Reimburse of LA Whole-Place Community Budget,SW1E 6QP,"611,216.80",Yes
Communities & Local Government,DCLG,05/04/2013,Current Grants to Non Profit Bodies,Localism,FAITH MATTERS,Yes,Small,,2100229027,Funding for April & May 2013,,"28,513.00",Yes
Communities & Local Government,DCLG,05/04/2013,Current Grants to Non Profit Bodies,Localism,GROUNDWORK UK,Yes,,,2100228975,Qtr 1 payment to Groundwork 2013/14,B1 2RR,"1,125,000.00",Yes
Communities & Local Government,DCLG,05/04/2013,Current Grants to Non Profit Bodies,Localism,PLUNKETT FOUNDATION,,Small,,2100228618,Grant - Co-operative Pubs Advice Line,OX20 1LH,"10,000.00",Yes
Communities & Local Government,DCLG,05/04/2013,Current Grants to Non Profit Bodies,Localism,PUB IS THE HUB,,Micro,,2100229048,Funding for pub diversification projects,HG2 8NZ,"75,000.00",Yes
Communities & Local Government,DCLG,05/04/2013,Current Grants to Non Profit Bodies,Neighbourhoods,VALUATION OFFICE AGENCY,,Public Bodies,,2100229023,1st Qtr payment to VOA for fair rents1800000002013,W1B 5BU,"610,000.00",Yes
Communities & Local Government,DCLG,05/04/2013,External Audit,Localism,NATIONAL AUDIT OFFICE,,Public Bodies,,2100229036,AUDIT OF THE FIREBUY LTD CLOSURE ACCOUNTS,SW1W 9SP,"72,000.00",
Communities & Local Government,DCLG,05/04/2013,Fixed Maintenance,Neighbourhoods,E C HARRIS LLP,,Large,,5106191646,ERDF SW LDU QS Services to Feb 14,N1 9AB,"3,278.00",
Communities & Local Government,DCLG,05/04/2013,"Furniture, Fittings and carpets",Finance & Corporate Services,NOMS AGENCY,,Public Bodies,,5106192131,JR175-5SPP Reform & Installation of desk,NP20 9BB,"6,215.75"
Communities & Local Government,DCLG,05/04/2013,Gas,Finance & Corporate Services,CORONA ENERGY LTD,,Medium,,5106192121,Bridge House Gas 2012-13,WD17 1JW,"4,257.97"
Communities & Local Government,DCLG,05/04/2013,IT - Service Contracts,Localism,CIVICA UK LTD,,Medium,,5106192108,FSEC Development Time slots Module,DY1 4TD,"8,748.00"
Communities & Local Government,DCLG,05/04/2013,IT - Service Contracts,Neighbourhoods,SOFTCAT LIMITED,,Large,,5106192125,Software tool for checking Web service performance,SL7 1TB,"11,565.00"
Communities & Local Government,DCLG,05/04/2013,Legal Fees,Finance & Corporate Services,TREASURY SOLICITOR,,Public Bodies,,2100229037,INVOICE :Z1215694/JFB,WC2B 4TS,"10,750.00"
Communities & Local Government,DCLG,05/04/2013,Management Consultancy,Neighbourhoods,CEL GROUP,,Medium,,5106192036,Payments for 1/10/12 - 30/09/13,SK13 8HT,"85,415.60"
Communities & Local Government,DCLG,05/04/2013,Mobile phone costs,Localism,BABCOCK CRITICAL SERVICES LTD,,Large,,5106192126,Orange Airtime Bills For ND Flt-2012/13,NG15 0DR,704.32
Communities & Local Government,DCLG,05/04/2013,Office Supplies,Neighbourhoods,BANNER BUSINESS SUPPLIES LTD,,Large,,5106191992,DELWEEKLY Banner A4 Recycled Copier Pape,NR3 1PD,157.97
Communities & Local Government,DCLG,05/04/2013,Office Supplies,Neighbourhoods,BANNER BUSINESS SUPPLIES LTD,,Large,,5106191992,DELWEEKLY Banner A4 Recycled Side Spiral,NR3 1PD,45.24
Communities & Local Government,DCLG,05/04/2013,Office Supplies,Neighbourhoods,BANNER BUSINESS SUPPLIES LTD,,Large,,5106191992,DELWEEKLY Banner Letter Tray Yellow,NR3 1PD,0.81
Communities & Local Government,DCLG,05/04/2013,Office Supplies,Neighbourhoods,BANNER BUSINESS SUPPLIES LTD,,Large,,5106191992,DELWEEKLY Himark Highlighter Assorted,NR3 1PD,3.24
Communities & Local Government,DCLG,05/04/2013,Office Supplies,Neighbourhoods,BANNER BUSINESS SUPPLIES LTD,,Large,,5106191992,DELWEEKLY Steinbeis Classic A3 Copier Pa,NR3 1PD,81.54
Communities & Local Government,DCLG,05/04/2013,Physical Storage,Finance & Corporate Services,INXTERIORS REFURBISHMENTS LTD,,Micro,,5106192001,Storage,TN8 6EL,"1,015.00"
Communities & Local Government,DCLG,05/04/2013,Publications,Finance & Corporate Services,JONES YARRELL LEADENHALL LTD,,Large,,5106192091,Journal and newspaper supply 2012-13,E3 3JH,335.34
Communities & Local Government,DCLG,05/04/2013,Publications,Finance & Corporate Services,JONES YARRELL LEADENHALL LTD,,Large,,5106192133,Annual Magazine/Newspaper costs,E3 3JH,884.69
Communities & Local Government,DCLG,05/04/2013,Publicity,Finance & Corporate Services,GORKANA GROUP LTD,,Large,,5106192130,Press Cuttings,EC1Y 8QE,"3,136.43"
Communities & Local Government,DCLG,05/04/2013,Steady State Service Provision,Finance & Corporate Services,LOGICA (CMG UK LTD),,Large,,5106192071,Payroll Services 2012/13,TW18 4LG,"11,821.88"
Communities & Local Government,DCLG,05/04/2013,Steady State Service Provision,Finance & Corporate Services,LOGICA (CMG UK LTD),,Large,,5106192082,Payroll Services 2012/13,TW18 4LG,"1,137.18"
Communities & Local Government,DCLG,05/04/2013,Telecoms equipment (non-capitalised),Finance & Corporate Services,DAMOVO UK LTD,,Large,,5106192166,MITEL upgrade,RH12 4QP,"2,973.60"
Communities & Local Government,DCLG,05/04/2013,Telephone call costs,Finance & Corporate Services,DAMOVO UK LTD,,Large,,5106192165,Telephony Charges,RH12 4QP,"-2,973.60"
Communities & Local Government,DCLG,05/04/2013,Training,Finance & Corporate Services,CABINET OFFICE,,Public Bodies,,5106192105,Introduction to Evaluation,CF14 3UW,675
Communities & Local Government,DCLG,05/04/2013,Travel and Subsistence Account,Finance & Corporate Services,REDFERN TRAVEL LIMITED,,Small,,2100229044,Monthly Consolidated travel Costs March 2013,BD1 3AZ,772.38
Communities & Local Government,DCLG,05/04/2013,Travel and Subsistence Account,Finance & Corporate Services,REDFERN TRAVEL LIMITED,,Small,,2100229044,Monthly Consolidated travel Costs March 2013,BD1 3AZ,"1,426.03"
Communities & Local Government,DCLG,05/04/2013,Travel and Subsistence Account,Finance & Corporate Services,REDFERN TRAVEL LIMITED,,Small,,2100229044,Monthly Consolidated travel Costs March 2013,BD1 3AZ,306.55
Communities & Local Government,DCLG,05/04/2013,Travel and Subsistence Account,Finance & Corporate Services,REDFERN TRAVEL LIMITED,,Small,,2100229044,Monthly Consolidated travel Costs March 2013,BD1 3AZ,402.09
Communities & Local Government,DCLG,05/04/2013,Travel and Subsistence Account,Finance & Corporate Services,REDFERN TRAVEL LIMITED,,Small,,2100229044,Monthly Consolidated travel Costs March 2013,BD1 3AZ,"1,030.74"
Communities & Local Government,DCLG,05/04/2013,Travel and Subsistence Account,Finance & Corporate Services,REDFERN TRAVEL LIMITED,,Small,,2100229044,Monthly Consolidated travel Costs March 2013,BD1 3AZ,"1,130.33"
Communities & Local Government,DCLG,05/04/2013,Travel and Subsistence Account,Finance & Corporate Services,REDFERN TRAVEL LIMITED,,Small,,2100229044,Monthly Consolidated travel Costs March 2013,BD1 3AZ,364.24
Communities & Local Government,DCLG,05/04/2013,Travel and Subsistence Account,Finance & Corporate Services,REDFERN TRAVEL LIMITED,,Small,,2100229044,Monthly Consolidated travel Costs March 2013,BD1 3AZ,552.77
Communities & Local Government,DCLG,05/04/2013,Travel and Subsistence Account,Finance & Corporate Services,REDFERN TRAVEL LIMITED,,Small,,2100229044,Monthly Consolidated travel Costs March 2013,BD1 3AZ,"6,835.33"
Communities & Local Government,DCLG,05/04/2013,Travel and Subsistence Account,Finance & Corporate Services,REDFERN TRAVEL LIMITED,,Small,,2100229044,Monthly Consolidated travel Costs March 2013,BD1 3AZ,737.64
Communities & Local Government,DCLG,05/04/2013,Travel and Subsistence Account,Finance & Corporate Services,REDFERN TRAVEL LIMITED,,Small,,2100229044,Monthly Consolidated travel Costs March 2013,BD1 3AZ,602.38
Communities & Local Government,DCLG,05/04/2013,Travel and Subsistence Account,Finance & Corporate Services,REDFERN TRAVEL LIMITED,,Small,,2100229044,Monthly Consolidated travel Costs March 2013,BD1 3AZ,"2,123.43"
Communities & Local Government,DCLG,05/04/2013,Travel and Subsistence Account,Finance & Corporate Services,REDFERN TRAVEL LIMITED,,Small,,2100229044,Monthly Consolidated travel Costs March 2013,BD1 3AZ,-21.81
Communities & Local Government,DCLG,05/04/2013,Travel and Subsistence Account,Finance & Corporate Services,REDFERN TRAVEL LIMITED,,Small,,2100229044,Monthly Consolidated travel Costs March 2013,BD1 3AZ,532.3
Communities & Local Government,DCLG,05/04/2013,Travel and Subsistence Account,Finance & Corporate Services,REDFERN TRAVEL LIMITED,,Small,,2100229044,Monthly Consolidated travel Costs March 2013,BD1 3AZ,"9,347.22"
Communities & Local Government,DCLG,05/04/2013,Travel and Subsistence Account,Finance & Corporate Services,REDFERN TRAVEL LIMITED,,Small,,2100229044,Monthly Consolidated travel Costs March 2013,BD1 3AZ,758.46
Communities & Local Government,DCLG,05/04/2013,Travel and Subsistence Account,Finance & Corporate Services,REDFERN TRAVEL LIMITED,,Small,,2100229044,Monthly Consolidated travel Costs March 2013,BD1 3AZ,497.16
Communities & Local Government,DCLG,05/04/2013,Travel and Subsistence Account,Finance & Corporate Services,REDFERN TRAVEL LIMITED,,Small,,2100229044,Monthly Consolidated travel Costs March 2013,BD1 3AZ,834.44
Communities & Local Government,DCLG,05/04/2013,Travel and Subsistence Account,Finance & Corporate Services,REDFERN TRAVEL LIMITED,,Small,,2100229044,Monthly Consolidated travel Costs March 2013,BD1 3AZ,"1,511.20"
Communities & Local Government,DCLG,05/04/2013,Travel and Subsistence Account,Finance & Corporate Services,REDFERN TRAVEL LIMITED,,Small,,2100229044,Monthly Consolidated travel Costs March 2013,BD1 3AZ,"1,065.50"
Communities & Local Government,DCLG,05/04/2013,Travel and Subsistence Account,Finance & Corporate Services,REDFERN TRAVEL LIMITED,,Small,,2100229044,Monthly Consolidated travel Costs March 2013,BD1 3AZ,367.04
Communities & Local Government,DCLG,05/04/2013,Travel and Subsistence Account,Finance & Corporate Services,REDFERN TRAVEL LIMITED,,Small,,2100229044,Monthly Consolidated travel Costs March 2013,BD1 3AZ,561.7
Communities & Local Government,DCLG,05/04/2013,Travel and Subsistence Account,Finance & Corporate Services,REDFERN TRAVEL LIMITED,,Small,,2100229044,Monthly Consolidated travel Costs March 2013,BD1 3AZ,274.41
Communities & Local Government,DCLG,05/04/2013,Travel and Subsistence Account,Localism,REDFERN TRAVEL LIMITED,,Small,,2100229044,Monthly Consolidated travel Costs March 2013,BD1 3AZ,683.86
Communities & Local Government,DCLG,05/04/2013,Travel and Subsistence Account,Localism,REDFERN TRAVEL LIMITED,,Small,,2100229044,Monthly Consolidated travel Costs March 2013,BD1 3AZ,673.11
Communities & Local Government,DCLG,05/04/2013,Travel and Subsistence Account,Localism,REDFERN TRAVEL LIMITED,,Small,,2100229044,Monthly Consolidated travel Costs March 2013,BD1 3AZ,"1,147.52"
Communities & Local Government,DCLG,05/04/2013,Travel and Subsistence Account,Localism,REDFERN TRAVEL LIMITED,,Small,,2100229044,Monthly Consolidated travel Costs March 2013,BD1 3AZ,"1,425.45"
Communities & Local Government,DCLG,05/04/2013,Travel and Subsistence Account,Localism,REDFERN TRAVEL LIMITED,,Small,,2100229044,Monthly Consolidated travel Costs March 2013,BD1 3AZ,687.82
Communities & Local Government,DCLG,05/04/2013,Travel and Subsistence Account,Localism,REDFERN TRAVEL LIMITED,,Small,,2100229044,Monthly Consolidated travel Costs March 2013,BD1 3AZ,401.23
Communities & Local Government,DCLG,05/04/2013,Travel and Subsistence Account,Localism,REDFERN TRAVEL LIMITED,,Small,,2100229044,Monthly Consolidated travel Costs March 2013,BD1 3AZ,518.2
Communities & Local Government,DCLG,05/04/2013,Travel and Subsistence Account,Localism,REDFERN TRAVEL LIMITED,,Small,,2100229044,Monthly Consolidated travel Costs March 2013,BD1 3AZ,283.88
Communities & Local Government,DCLG,05/04/2013,Travel and Subsistence Account,Localism,REDFERN TRAVEL LIMITED,,Small,,2100229044,Monthly Consolidated travel Costs March 2013,BD1 3AZ,618.33
Communities & Local Government,DCLG,05/04/2013,Travel and Subsistence Account,Localism,REDFERN TRAVEL LIMITED,,Small,,2100229044,Monthly Consolidated travel Costs March 2013,BD1 3AZ,"2,668.00"
Communities & Local Government,DCLG,05/04/2013,Travel and Subsistence Account,Localism,REDFERN TRAVEL LIMITED,,Small,,2100229044,Monthly Consolidated travel Costs March 2013,BD1 3AZ,996.45
Communities & Local Government,DCLG,05/04/2013,Travel and Subsistence Account,Localism,REDFERN TRAVEL LIMITED,,Small,,2100229044,Monthly Consolidated travel Costs March 2013,BD1 3AZ,441.61
Communities & Local Government,DCLG,05/04/2013,Travel and Subsistence Account,Localism,REDFERN TRAVEL LIMITED,,Small,,2100229044,Monthly Consolidated travel Costs March 2013,BD1 3AZ,"3,114.32"
Communities & Local Government,DCLG,05/04/2013,Travel and Subsistence Account,Localism,REDFERN TRAVEL LIMITED,,Small,,2100229044,Monthly Consolidated travel Costs March 2013,BD1 3AZ,"1,662.48"
Communities & Local Government,DCLG,05/04/2013,Travel and Subsistence Account,Localism,REDFERN TRAVEL LIMITED,,Small,,2100229044,Monthly Consolidated travel Costs March 2013,BD1 3AZ,"1,239.21"
Communities & Local Government,DCLG,05/04/2013,Travel and Subsistence Account,Localism,REDFERN TRAVEL LIMITED,,Small,,2100229044,Monthly Consolidated travel Costs March 2013,BD1 3AZ,793.1
Communities & Local Government,DCLG,05/04/2013,Travel and Subsistence Account,Localism,REDFERN TRAVEL LIMITED,,Small,,2100229044,Monthly Consolidated travel Costs March 2013,BD1 3AZ,488.01
Communities & Local Government,DCLG,05/04/2013,Travel and Subsistence Account,Localism,REDFERN TRAVEL LIMITED,,Small,,2100229044,Monthly Consolidated travel Costs March 2013,BD1 3AZ,511.93
Communities & Local Government,DCLG,05/04/2013,Travel and Subsistence Account,Localism,REDFERN TRAVEL LIMITED,,Small,,2100229044,Monthly Consolidated travel Costs March 2013,BD1 3AZ,"1,149.79"
Communities & Local Government,DCLG,05/04/2013,Travel and Subsistence Account,Localism,REDFERN TRAVEL LIMITED,,Small,,2100229044,Monthly Consolidated travel Costs March 2013,BD1 3AZ,"1,778.30"
Communities & Local Government,DCLG,05/04/2013,Travel and Subsistence Account,Neighbourhoods,REDFERN TRAVEL LIMITED,,Small,,2100229044,Monthly Consolidated travel Costs March 2013,BD1 3AZ,960.17
Communities & Local Government,DCLG,05/04/2013,Travel and Subsistence Account,Neighbourhoods,REDFERN TRAVEL LIMITED,,Small,,2100229044,Monthly Consolidated travel Costs March 2013,BD1 3AZ,345.77
Communities & Local Government,DCLG,05/04/2013,Travel and Subsistence Account,Neighbourhoods,REDFERN TRAVEL LIMITED,,Small,,2100229044,Monthly Consolidated travel Costs March 2013,BD1 3AZ,436.56
Communities & Local Government,DCLG,05/04/2013,Travel and Subsistence Account,Neighbourhoods,REDFERN TRAVEL LIMITED,,Small,,2100229044,Monthly Consolidated travel Costs March 2013,BD1 3AZ,"2,949.36"
Communities & Local Government,DCLG,05/04/2013,Travel and Subsistence Account,Neighbourhoods,REDFERN TRAVEL LIMITED,,Small,,2100229044,Monthly Consolidated travel Costs March 2013,BD1 3AZ,"2,516.75"
Communities & Local Government,DCLG,05/04/2013,Travel and Subsistence Account,Neighbourhoods,REDFERN TRAVEL LIMITED,,Small,,2100229044,Monthly Consolidated travel Costs March 2013,BD1 3AZ,927.01
Communities & Local Government,DCLG,05/04/2013,Travel and Subsistence Account,Neighbourhoods,REDFERN TRAVEL LIMITED,,Small,,2100229044,Monthly Consolidated travel Costs March 2013,BD1 3AZ,"8,679.71"
Communities & Local Government,DCLG,05/04/2013,Travel and Subsistence Account,Neighbourhoods,REDFERN TRAVEL LIMITED,,Small,,2100229044,Monthly Consolidated travel Costs March 2013,BD1 3AZ,"5,815.60"
Communities & Local Government,DCLG,05/04/2013,Travel and Subsistence Account,Neighbourhoods,REDFERN TRAVEL LIMITED,,Small,,2100229044,Monthly Consolidated travel Costs March 2013,BD1 3AZ,629.94
Communities & Local Government,DCLG,05/04/2013,Travel and Subsistence Account,Neighbourhoods,REDFERN TRAVEL LIMITED,,Small,,2100229044,Monthly Consolidated travel Costs March 2013,BD1 3AZ,"3,807.66"
Communities & Local Government,DCLG,05/04/2013,Travel and Subsistence Account,Neighbourhoods,REDFERN TRAVEL LIMITED,,Small,,2100229044,Monthly Consolidated travel Costs March 2013,BD1 3AZ,"5,390.93"
Communities & Local Government,DCLG,05/04/2013,Travel and Subsistence Account,Neighbourhoods,REDFERN TRAVEL LIMITED,,Small,,2100229044,Monthly Consolidated travel Costs March 2013,BD1 3AZ,"2,253.07"
Communities & Local Government,DCLG,05/04/2013,Travel and Subsistence Account,Neighbourhoods,REDFERN TRAVEL LIMITED,,Small,,2100229044,Monthly Consolidated travel Costs March 2013,BD1 3AZ,"1,885.86"
Communities & Local Government,DCLG,05/04/2013,Travel and Subsistence Account,Neighbourhoods,REDFERN TRAVEL LIMITED,,Small,,2100229044,Monthly Consolidated travel Costs March 2013,BD1 3AZ,591.38
Communities & Local Government,DCLG,05/04/2013,Travel and Subsistence Account,Neighbourhoods,REDFERN TRAVEL LIMITED,,Small,,2100229044,Monthly Consolidated travel Costs March 2013,BD1 3AZ,"2,220.04"
Communities & Local Government,DCLG,05/04/2013,Travel and Subsistence Account,Neighbourhoods,REDFERN TRAVEL LIMITED,,Small,,2100229044,Monthly Consolidated travel Costs March 2013,BD1 3AZ,"3,097.74"
Communities & Local Government,DCLG,05/04/2013,Travel and Subsistence Account,Neighbourhoods,REDFERN TRAVEL LIMITED,,Small,,2100229044,Monthly Consolidated travel Costs March 2013,BD1 3AZ,"2,924.42"
Communities & Local Government,DCLG,05/04/2013,Travel and Subsistence Account,Neighbourhoods,REDFERN TRAVEL LIMITED,,Small,,2100229044,Monthly Consolidated travel Costs March 2013,BD1 3AZ,"2,940.83"
Communities & Local Government,DCLG,05/04/2013,Travel and Subsistence Account,Neighbourhoods,REDFERN TRAVEL LIMITED,,Small,,2100229044,Monthly Consolidated travel Costs March 2013,BD1 3AZ,"5,030.38"
Communities & Local Government,DCLG,05/04/2013,Travel and Subsistence Account,Neighbourhoods,REDFERN TRAVEL LIMITED,,Small,,2100229044,Monthly Consolidated travel Costs March 2013,BD1 3AZ,"2,498.51"
Communities & Local Government,DCLG,05/04/2013,Travel and Subsistence Account,Strategic Performance Team,REDFERN TRAVEL LIMITED,,Small,,2100229044,Monthly Consolidated travel Costs March 2013,BD1 3AZ,"2,311.46"
Communities & Local Government,DCLG,05/04/2013,Travel and Subsistence Account,Strategic Performance Team,REDFERN TRAVEL LIMITED,,Small,,2100229044,Monthly Consolidated travel Costs March 2013,BD1 3AZ,"1,179.57"
Communities & Local Government,DCLG,05/04/2013,Travel and Subsistence Account,Troubled Families,REDFERN TRAVEL LIMITED,,Small,,2100229044,Monthly Consolidated travel Costs March 2013,BD1 3AZ,"8,519.04"
Communities & Local Government,DCLG,05/04/2013,Work In Progress Pre-Cert 40373 Spend,Neighbourhoods,BIRMINGHAM CITY COUNCIL (NOT RATES),,Large,,7600004830,Revenue Grant To Be Paid,B1 1BB,"2,553.20"
Communities & Local Government,DCLG,05/04/2013,Work In Progress Pre-Cert 40373 Spend,Neighbourhoods,BIRMINGHAM CITY COUNCIL (NOT RATES),,Large,,7600004837,Revenue Grant To Be Paid,B1 1BB,"5,141.72"
Communities & Local Government,DCLG,05/04/2013,Work In Progress Pre-Cert 40373 Spend,Neighbourhoods,BIRMINGHAM SCIENCE PARK ASTON,,Small,,7600004832,Revenue Grant To Be Paid,B7 4BB,"4,807.23"
Communities & Local Government,DCLG,05/04/2013,Work In Progress Pre-Cert 40373 Spend,Neighbourhoods,BIRMINGHAM SCIENCE PARK ASTON,,Small,,7600004836,Revenue Grant Clawback Offset,B7 4BB,"-1,357.42"
Communities & Local Government,DCLG,05/04/2013,Work In Progress Pre-Cert 40373 Spend,Neighbourhoods,BIRMINGHAM SCIENCE PARK ASTON,,Small,,7600004836,Revenue Grant To Be Paid,B7 4BB,"9,713.89"
Communities & Local Government,DCLG,05/04/2013,Work In Progress Pre-Cert 40373 Spend,Neighbourhoods,COVENTRY UNIVERSITY,,Large,,7600004831,Revenue Grant To Be Paid,CV1 5FB,"24,211.26"
Communities & Local Government,DCLG,05/04/2013,Work In Progress Pre-Cert 40373 Spend,Neighbourhoods,COVENTRY UNIVERSITY,,Large,,7600004839,Revenue Grant To Be Paid,CV1 5FB,"14,843.39"
Communities & Local Government,DCLG,05/04/2013,Work In Progress Pre-Cert 40373 Spend,Neighbourhoods,COVENTRY UNIVERSITY ENTERPRISES LTD,,Medium,,7600004834,Revenue Grant To Be Paid,CV1 2TT,"15,508.18"
Communities & Local Government,DCLG,05/04/2013,Work In Progress Pre-Cert 40373 Spend,Neighbourhoods,HEART OF ENGLAND FINE FOODS,,Small,,7600004840,Revenue Grant To Be Paid,SY1 3TG,"21,890.05"
Communities & Local Government,DCLG,05/04/2013,Work In Progress Pre-Cert 40373 Spend,Neighbourhoods,INTERNATIONAL SYNERGIES LTD,,Small,,7600004835,Revenue Grant To Be Paid,B30 3ES,"11,620.30",
Communities & Local Government,DCLG,05/04/2013,Work In Progress Pre-Cert 40373 Spend,Neighbourhoods,SOLIHULL METROPOLITAN BC,,Large,,7600004838,Revenue Grant To Be Paid,B91 3QS,"4,137.66",
Communities & Local Government,DCLG,05/04/2013,Work In Progress Pre-Cert 40373 Spend,Neighbourhoods,STOKE-ON-TRENT CITY COUNCIL,,Large,,7600004827,Revenue Grant To Be Paid,ST4 1HP,"1,815.95",
Communities & Local Government,DCLG,05/04/2013,Work In Progress Pre-Cert 40373 Spend,Neighbourhoods,STOKE-ON-TRENT CITY COUNCIL,,Large,,7600004828,Revenue Grant Clawback Offset,ST4 1HP,-820.82,
Communities & Local Government,DCLG,05/04/2013,Work In Progress Pre-Cert 40373 Spend,Neighbourhoods,STOKE-ON-TRENT CITY COUNCIL,,Large,,7600004828,Revenue Grant To Be Paid,ST4 1HP,"4,051.29",
Communities & Local Government,DCLG,05/04/2013,Work In Progress Pre-Cert 40373 Spend,Neighbourhoods,UNIVERSITY OF WARWICK,,Large,,7600004829,Revenue Grant To Be Paid,CV4 8UW,"30,636.24",
Communities & Local Government,DCLG,05/04/2013,Work In Progress Pre-Cert 40373 Spend,Neighbourhoods,UNIVERSITY OF WARWICK,,Large,,7600004833,Revenue Grant To Be Paid,CV4 8UW,"23,233.38",
Communities & Local Government,DCLG,05/04/2013,Work In Progress Pre-Cert 40467 Spend,Neighbourhoods,SOLIHULL METROPOLITAN BC,,Large,,7600004838,Capital Grant To Be Paid,B91 3QS,"5,162.74",
Communities & Local Government,DCLG,05/04/2013,Work In Progress Pre-Cert 40467 Spend,Neighbourhoods,STOKE-ON-TRENT CITY COUNCIL,,Large,,7600004827,Capital Grant To Be Paid,ST4 1HP,"207,591.57",
Communities & Local Government,DCLG,05/04/2013,Work In Progress Pre-Cert 40467 Spend,Neighbourhoods,STOKE-ON-TRENT CITY COUNCIL,,Large,,7600004828,Capital Grant To Be Paid,ST4 1HP,"172,282.14",
Communities & Local Government,DCLG,08/04/2013,Conferences and Meeting Facilities,Troubled Families,COIN STREET COMMUNITY BUILDERS LTD,,Medium,,5106192135,3 x London TF Academies events,SE1 9NH,"2,610.00",
Communities & Local Government,DCLG,08/04/2013,Electronic Data Storage,Finance & Corporate Services,TNT UK LIMITED,,Large,,5106192136,Visions electronic storage,BL10 9GR,"3,750.44",
Communities & Local Government,DCLG,08/04/2013,Grant in Aid to NDPBs (non budget),Localism,VALUATION TRIBUNAL SERVICE,,,,2100228998,,E1 1DU,"511,106.00",Yes
Communities & Local Government,DCLG,08/04/2013,IT - Service Contracts,Finance & Corporate Services,DAMOVO UK LTD,,Large,,5106192145,Configure VC units by Damovo,RH12 4QP,"3,980.00",
Communities & Local Government,DCLG,08/04/2013,IT - Software Maintenance,Localism,ESRI (UK) LIMITED,,Large,,5106192110,ESRI - support & maintenance FY13-14,HP21 7QG,"12,272.77",
Communities & Local Government,DCLG,08/04/2013,Legal Fees,Finance & Corporate Services,FIELD FISHER WATERHOUSE LLP,,Large,,5106192161,Green Flag TM Fees,EC3N 2AA,"3,263.12",
Communities & Local Government,DCLG,08/04/2013,Online Database Information Retrieval,Finance & Corporate Services,BRITISH LIBRARY,,Public Bodies,,5106192150,British Library doc supply 2012-13,LS23 7BQ,299
Communities & Local Government,DCLG,08/04/2013,Professional services,Localism,VALUATION OFFICE AGENCY,,Public Bodies,,2100228997,,W1B 5BU,"12,000,000.00"
Communities & Local Government,DCLG,08/04/2013,Publicity,Finance & Corporate Services,PRESS ASSOCIATION,,Large,,5106192162,Press Association - NewsWire service,DN14 7YH,"1,240.93"
Communities & Local Government,DCLG,08/04/2013,Recruitment,Finance & Corporate Services,DISCLOSURE SCOTLAND,,Micro,,5106192137,Recruitment Security CRB Vetting Service,G51 1YU,325
Communities & Local Government,DCLG,08/04/2013,Recruitment,Finance & Corporate Services,OFFICE FOR NATIONAL STATISTICS,,Public Bodies,,5106192102,Recruitment - Fast Stream Statisticians,NP10 8XG,"5,047.20"
Communities & Local Government,DCLG,08/04/2013,Research,Neighbourhoods,BUILDING RESEARCH ESTABLISHMENT,,Large,,5106192142,Technical Support on the Constructive Pr,WD25 9XX,"29,780.06"
Communities & Local Government,DCLG,08/04/2013,Research,Neighbourhoods,E C HARRIS LLP,,Large,,5106192174,Cat 2 and 3 call off work,N1 9AB,"9,207.96"
Communities & Local Government,DCLG,08/04/2013,Subscriptions,Finance & Corporate Services,STONEWALL EQUALITY LIMITED,,Micro,,5106191782,Annual Subscription 2013/14,SE1 7NX,"2,100.00"
Communities & Local Government,DCLG,08/04/2013,Telecoms equipment (non-capitalised),Finance & Corporate Services,DAMOVO UK LTD,,Large,,5106192144,MITEL upgrade,RH12 4QP,"52,381.20"
Communities & Local Government,DCLG,08/04/2013,Work In Progress Pre-Cert 40373 Spend,Neighbourhoods,LEICESTER CITY COUNCIL,,Large,,7600004841,Revenue Grant To Be Paid,LE1 6ZG,"8,263.47"
Communities & Local Government,DCLG,09/04/2013,Advertising,Finance & Corporate Services,M4C-DIVISION OF GROUPM UK LTD,,Large,,5106192264,Fire Kills - Digital,WC1X 8RX,"17,836.49"
Communities & Local Government,DCLG,09/04/2013,Advertising,Finance & Corporate Services,M4C-DIVISION OF GROUPM UK LTD,,Large,,5106192264,Fire Kills - Media Industry Levy,WC1X 8RX,14.86
Communities & Local Government,DCLG,09/04/2013,Advertising,Finance & Corporate Services,M4C-DIVISION OF GROUPM UK LTD,,Large,,5106192269,Asbof fee,WC1X 8RX,31.59
Communities & Local Government,DCLG,09/04/2013,Advertising,Finance & Corporate Services,M4C-DIVISION OF GROUPM UK LTD,,Large,,5106192269,Phase 2 Digital Advertising,WC1X 8RX,"32,814.97"
Communities & Local Government,DCLG,09/04/2013,Agency Staff,Finance & Corporate Services,PREMIERE EMPLOYMENT GROUP LTD,,Large,,5106192226,Temporary PA Support - Agency Staff,M3 2JA,606.1
Communities & Local Government,DCLG,09/04/2013,Agency Staff,Finance & Corporate Services,SBS GROUP (UK) LTD,,Large,,5106192202,SAP Technical Support,EC1N 8TS,"16,488.90"
Communities & Local Government,DCLG,09/04/2013,Agency Staff,Finance & Corporate Services,SQUARE ONE RESOURCES LTD,,Medium,,5106190616,SAPDev 1.4.12-31.3.13,EC2A 2AD,"2,858.82",
Communities & Local Government,DCLG,09/04/2013,Agency Staff,Finance & Corporate Services,SQUARE ONE RESOURCES LTD,,Medium,,5106190965,SAPDev 1.4.12-31.3.13,EC2A 2AD,"2,858.82",
Communities & Local Government,DCLG,09/04/2013,Agency Staff,Finance & Corporate Services,SQUARE ONE RESOURCES LTD,,Medium,,5106191290,SAPDev 1.4.12-31.3.13,EC2A 2AD,"2,858.82",
Communities & Local Government,DCLG,09/04/2013,Agency Staff,Finance & Corporate Services,SQUARE ONE RESOURCES LTD,,Medium,,5106192179,SAPDev 1.4.12-31.3.13,EC2A 2AD,"2,858.82",
Communities & Local Government,DCLG,09/04/2013,Agency Staff,Finance & Corporate Services,SQUARE ONE RESOURCES LTD,,Medium,,5106192224,Interim Manager,EC2A 2AD,"2,287.06",
Communities & Local Government,DCLG,09/04/2013,Agency Staff,Localism,MICHAEL PAGE INTERNATIONAL,,Large,,5106192240,Interim Manager,SL1 3SA,"2,812.50",
Communities & Local Government,DCLG,09/04/2013,Agency Staff,Neighbourhoods,CAPITA RESOURCING LTD,,Large,,5106192176,Expenses,SL6 1DP,225.07,
Communities & Local Government,DCLG,09/04/2013,Agency Staff,Neighbourhoods,CAPITA RESOURCING LTD,,Large,,5106192176,Interim manager,SL6 1DP,"2,906.29",
Communities & Local Government,DCLG,09/04/2013,Agency Staff,Neighbourhoods,REED SPECIALIST RECRUITMENT LTD,,Large,,5106192141,Temporary Staff,NN1 1UE,"1,030.08",
Communities & Local Government,DCLG,09/04/2013,Current (non AEF) Grants to Local Authorities,Localism,CHESHIRE WEST & CHESTER COUNCIL,,Public Bodies,,2100228298,Reimburse of LA Whole-Place Community Budget,CH1 2NP,"170,693.02",Yes
Communities & Local Government,DCLG,09/04/2013,Current (non AEF) Grants to Local Authorities,Localism,ESSEX COUNTY COUNCIL,,,,2100228299,Reimburse of LA Whole-Place Community Budget,CM1 1LX,"25,179.42",Yes
Communities & Local Government,DCLG,09/04/2013,Current (non AEF) Grants to Local Authorities,Localism,MANCHESTER CITY COUNCIL,,Large,,2100228300,Reimburse of LA Whole-Place Community Budget,M11 3ND,"277,802.33",Yes
Communities & Local Government,DCLG,09/04/2013,Electricity,Finance & Corporate Services,EDF ENERGY 1 LIMITED,,Large,,5106192213,SW Taunton Electricity - 2012-13,PL3 5XQ,"2,579.03",
Communities & Local Government,DCLG,09/04/2013,Electricity,Finance & Corporate Services,EDF ENERGY 1 LIMITED,,Large,,5106192260,Eland House Electricity 2012-13,PL3 5XQ,"33,105.85",
Communities & Local Government,DCLG,09/04/2013,Fixed Maintenance,Finance & Corporate Services,GVA GRIMLEY LTD,,Large,,5106192190,EH Schedule - 060,B1 2JB,"10,800.00",
Communities & Local Government,DCLG,09/04/2013,Fixed Maintenance,Finance & Corporate Services,GVA GRIMLEY LTD,,Large,,5106192211,Verification of Wkfield Rent Review-048,B1 2JB,300,
Communities & Local Government,DCLG,09/04/2013,Government Procurement Card (expense),Localism,DCLG GOVERNMENT PROCUREMENT CARD,,,,1000003783,Duplicate Police Data for Knight Review,TN37 7GA,300,
Communities & Local Government,DCLG,09/04/2013,Grant in Aid to NDPBs (non budget),Localism,COMMISSION LOCAL ADMINISTRATION,,,,2100229047,GIA for running costs for April 2013,SW1P 4QP,"898,000.00",Yes
Communities & Local Government,DCLG,09/04/2013,"IT - PC, Network & Hardware",Finance & Corporate Services,DELL CORPORATION LTD,,Large,,5106192006,1U KVM Mounting Kit,RG12 1LF,113.27,
Communities & Local Government,DCLG,09/04/2013,"IT - PC, Network & Hardware",Finance & Corporate Services,DELL CORPORATION LTD,,Large,,5106192006,PV114X SAS LTO3-080 Single Drive Base (i,RG12 1LF,"2,173.40",
Communities & Local Government,DCLG,09/04/2013,"IT - PC, Network & Hardware",Finance & Corporate Services,DELL CORPORATION LTD,,Large,,5106192006,"Touchpad, English Keyboard and Widescree",RG12 1LF,932.17,
Communities & Local Government,DCLG,09/04/2013,"IT - PC, Network & Hardware",Finance & Corporate Services,STERIA LIMITED,,Large,,5106192207,6 x Dell E4300 refurbished laptops+set-,M14 0WN,"3,828.71",
Communities & Local Government,DCLG,09/04/2013,IT - Service Contracts,Finance & Corporate Services,COMPUTACENTER (UK) LTD,,Large,,5106192245,Evault circuit charges Apr 12-Sep 2013,AL10 9TW,"1,666.80",
Communities & Local Government,DCLG,09/04/2013,IT - Service Contracts,Finance & Corporate Services,STERIA LIMITED,,Large,,5106192208,SQ126 - Additional Resource&Trnsprt,M14 0WN,"1,842.33",
Communities & Local Government,DCLG,09/04/2013,IT - Service Contracts,Finance & Corporate Services,STERIA LIMITED,,Large,,5106192209,PINS Network Bridge HW Support,M14 0WN,211.1,
Communities & Local Government,DCLG,09/04/2013,IT - Service Contracts,Finance & Corporate Services,STERIA LIMITED,,Large,,5106192210,CAN024 - Eland Wi-fi Support-Feb12-Mar13,M14 0WN,"2,996.79",
Communities & Local Government,DCLG,09/04/2013,IT - Service Contracts,Finance & Corporate Services,STERIA LIMITED,,Large,,5106192214,LOGASNet CC229 Implementation,M14 0WN,"42,829.89",
Communities & Local Government,DCLG,09/04/2013,IT - Service Contracts,Finance & Corporate Services,STERIA LIMITED,,Large,,5106192216,SQ122 - Faulty hardware at Milton Keynes,M14 0WN,"1,708.34",
Communities & Local Government,DCLG,09/04/2013,IT - Service Contracts,Finance & Corporate Services,STERIA LIMITED,,Large,,5106192217,Link Services inc Blackberry Charges,M14 0WN,"336,703.65",
Communities & Local Government,DCLG,09/04/2013,IT - Service Contracts,Finance & Corporate Services,STERIA LIMITED,,Large,,5106192217,LOGASnet Support Services,M14 0WN,"50,190.07",
Communities & Local Government,DCLG,09/04/2013,IT - Service Contracts,Finance & Corporate Services,STERIA LIMITED,,Large,,5106192218,LOGASnet Support Services,M14 0WN,"5,381.93",
Communities & Local Government,DCLG,09/04/2013,IT - Service Contracts,Finance & Corporate Services,STERIA LIMITED,,Large,,5106192219,Additional Managed services,M14 0WN,"3,907.61",
Communities & Local Government,DCLG,09/04/2013,IT - Service Contracts,Finance & Corporate Services,STERIA LIMITED,,Large,,5106192220,TSA WAN Services,M14 0WN,"7,016.00"
Communities & Local Government,DCLG,09/04/2013,IT - Service Contracts,Finance & Corporate Services,STERIA LIMITED,,Large,,5106192230,SQ129 � LOBSIS SAN Disk Array Enclosure,M14 0WN,"4,244.17"
Communities & Local Government,DCLG,09/04/2013,IT - Service Contracts,Finance & Corporate Services,STERIA LIMITED,,Large,,5106192231,Addtional o/s amount end-March 2013,M14 0WN,39.83
Communities & Local Government,DCLG,09/04/2013,IT - Service Contracts,Finance & Corporate Services,STERIA LIMITED,,Large,,5106192231,NR343 PLANET DB move VM &SQL Support,M14 0WN,685.51
Communities & Local Government,DCLG,09/04/2013,IT - Service Contracts,Finance & Corporate Services,STERIA LIMITED,,Large,,5106192233,Link Services inc Blackberry Charges,M14 0WN,"45,738.85"
Communities & Local Government,DCLG,09/04/2013,IT - Service Contracts,Finance & Corporate Services,STERIA LIMITED,,Large,,5106192238,Out of Hours Service,M14 0WN,"9,480.12"
Communities & Local Government,DCLG,09/04/2013,IT - Service Contracts,Finance & Corporate Services,STERIA LIMITED,,Large,,5106192274,CAN 61 MFD (Regional Offices),M14 0WN,583.31
Communities & Local Government,DCLG,09/04/2013,IT - Service Contracts,Finance & Corporate Services,STERIA LIMITED,,Large,,5106192274,CAN 61 Pipes Network,M14 0WN,"17,675.99"
Communities & Local Government,DCLG,09/04/2013,IT - Service Contracts,Finance & Corporate Services,STERIA LIMITED,,Large,,5106192276,DCLG Link Service Feb 2011 to Feb 2013,M14 0WN,"14,188.64"
Communities & Local Government,DCLG,09/04/2013,IT - Service Contracts,Finance & Corporate Services,STERIA LIMITED,,Large,,5106192293,Link Services inc Blackberry Charges,M14 0WN,"-45,738.85"
Communities & Local Government,DCLG,09/04/2013,IT - Service Contracts,Finance & Corporate Services,STERIA LIMITED,,Large,,5106192294,New Datacentre Solution,M14 0WN,"45,738.85"
Communities & Local Government,DCLG,09/04/2013,IT - Service Contracts,Localism,ESRI (UK) LIMITED,,Large,,5106192191,Development of an analytical tool for us,HP21 7QG,"13,824.00"
Communities & Local Government,DCLG,09/04/2013,IT - Software Maintenance,Localism,BYTES SOFTWARE SERVICES,,Medium,,5106192205,x50 Citrix VDI-in-a-Box renewa,KT17 1TS,"1,420.12"
Communities & Local Government,DCLG,09/04/2013,IT - Software Maintenance,Localism,WASP SOFTWARE LTD,,Micro,,5106192187,CLASS Supp and Dev 12/13,DE6 2JU,"4,680.00"
Communities & Local Government,DCLG,09/04/2013,IT Maintenance,Finance & Corporate Services,SPEECH CENTRE,,Micro,,5106192188,Half day Speechcentre visit,TN6 1DL,375
Communities & Local Government,DCLG,09/04/2013,Office Supplies,Neighbourhoods,BANNER BUSINESS SUPPLIES LTD,,Large,,5106191994,DELWEEKLY Image Impact A4 Copier Paper 1,NR3 1PD,469.08
Communities & Local Government,DCLG,09/04/2013,Publicity,Finance & Corporate Services,PRESS ASSOCIATION,,Large,,5106192257,Press Association - NewsWire service,DN14 7YH,"1,240.93"
Communities & Local Government,DCLG,09/04/2013,Recruitment,Finance & Corporate Services,SAXTON BAMPFYLDE,,Medium,,5106192104,"Psychometrics assessment for DD, Plannin",SW1H 9JA,"3,405.00"
Communities & Local Government,DCLG,09/04/2013,Security,Finance & Corporate Services,MARITIME & COASTGUARD AGENCY,,Public Bodies,,5106192198,Overnight Security 1 Aug 12 - 31 Mar 13,SO15 1EG,"40,418.24"
Communities & Local Government,DCLG,09/04/2013,Telephone call costs,Finance & Corporate Services,DAMOVO UK LTD,,Large,,5106192259,Telephony Charges,RH12 4QP,"112,078.93"
Communities & Local Government,DCLG,09/04/2013,Travel and Subsistence Account,Finance & Corporate Services,DIAL A CAB,,Medium,,5106192114,Dial-a-Cab 1055,N1 6AH,22.25
Communities & Local Government,DCLG,09/04/2013,Travel and Subsistence Account,Finance & Corporate Services,DIAL A CAB,,Medium,,5106192114,Dial-a-Cab admin 1055,N1 6AH,5.23
Communities & Local Government,DCLG,09/04/2013,Travel and Subsistence Account,Finance & Corporate Services,DIAL A CAB,,Medium,,5106192114,Dial A Cab,N1 6AH,69.57
Communities & Local Government,DCLG,09/04/2013,Travel and Subsistence Account,Finance & Corporate Services,DIAL A CAB,,Medium,,5106192114,20% admin charges 1059,N1 6AH,31.33
Communities & Local Government,DCLG,09/04/2013,Travel and Subsistence Account,Finance & Corporate Services,DIAL A CAB,,Medium,,5106192114,Dial A Cab Taxis,N1 6AH,12.08
Communities & Local Government,DCLG,09/04/2013,Travel and Subsistence Account,Finance & Corporate Services,DIAL A CAB,,Medium,,5106192114,non vat charges,N1 6AH,42.75
Communities & Local Government,DCLG,09/04/2013,Travel and Subsistence Account,Finance & Corporate Services,DIAL A CAB,,Medium,,5106192114,0% Taxi fares (UK) 1909,N1 6AH,177.35
Communities & Local Government,DCLG,09/04/2013,Travel and Subsistence Account,Strategic Performance Team,DIAL A CAB,,Medium,,5106192114,Dial a Cab Taxi Service,N1 6AH,180.2
Communities & Local Government,DCLG,09/04/2013,Travel and Subsistence Account,Strategic Performance Team,DIAL A CAB,,Medium,,5106192114,vat charges,N1 6AH,45.95
Communities & Local Government,DCLG,09/04/2013,Vehicle hire,Finance & Corporate Services,DIAL A CAB,,Medium,,5106192114,20% admin charges 1909,N1 6AH,14.2
Communities & Local Government,DCLG,09/04/2013,Vehicle Maintenance,Localism,BABCOCK CRITICAL SERVICES LTD,,Large,,5106191786,Unplanne Maintenance 12/13,NG15 0DR,"8,151.00"
Communities & Local Government,DCLG,09/04/2013,Work In Progress Pre-Cert 40373 Spend,Neighbourhoods,COUNCIL OF THE ISLES OF SCILLY,,,,7600004845,Revenue Grant To Be Paid,TR21 0LW,"198,873.53"
Communities & Local Government,DCLG,09/04/2013,Work In Progress Pre-Cert 40373 Spend,Neighbourhoods,COVENTRY CITY COUNCIL,,Large,,7600004842,Revenue Grant To Be Paid,CV1 5RR,"31,048.61"
Communities & Local Government,DCLG,09/04/2013,Work In Progress Pre-Cert 40373 Spend,Neighbourhoods,ENERGY SAVING TRUST,,,,7600004843,Revenue Grant To Be Paid,SW1H 9BP,"93,995.00"
Communities & Local Government,DCLG,09/04/2013,Work In Progress Pre-Cert 40467 Spend,Neighbourhoods,ADVANTAGE EARLY GROWTH LTD,,Small,,7600004846,Capital Grant To Be Paid,B79 0PF,"999,998.26"
Communities & Local Government,DCLG,09/04/2013,Work In Progress Pre-Cert 40467 Spend,Neighbourhoods,COUNCIL OF THE ISLES OF SCILLY,,,,7600004845,Capital Grant To Be Paid,TR21 0LW,"1,132.58"
Communities & Local Government,DCLG,09/04/2013,Work In Progress Pre-Cert 40467 Spend,Neighbourhoods,COVENTRY CITY COUNCIL,,Large,,7600004842,Capital Grant To Be Paid,CV1 5RR,"61,423.89"
Communities & Local Government,DCLG,09/04/2013,Work In Progress Pre-Cert 40467 Spend,Neighbourhoods,ENERGY SAVING TRUST,,,,7600004843,Capital Grant To Be Paid,SW1H 9BP,"186,911.83"
Communities & Local Government,DCLG,09/04/2013,Work In Progress Pre-Cert 40467 Spend,Neighbourhoods,RUSTLER YACHTS LTD,,Small,,7600004844,Capital Grant To Be Paid,TR10 8AD,"60,000.26"
Communities & Local Government,DCLG,10/04/2013,Advertising,Finance & Corporate Services,CAREERSINAUDIT.COM LIMITED,,Micro,,5106192155,2 X 3 week advert on careersinaudit site,SW1X 7EF,590
Communities & Local Government,DCLG,10/04/2013,Advertising,Finance & Corporate Services,M4C-DIVISION OF GROUPM UK LTD,,Large,,5106191781,Fire Kills - Media Industry Levy,WC1X 8RX,1.62
Communities & Local Government,DCLG,10/04/2013,Advertising,Finance & Corporate Services,M4C-DIVISION OF GROUPM UK LTD,,Large,,5106191781,Fire Kills - Regional Press,WC1X 8RX,"1,942.70"
Communities & Local Government,DCLG,10/04/2013,Agency Staff,Finance & Corporate Services,CAPITA RESOURCING LTD,,Large,,5106192288,Extension (1),SL6 1DP,"3,446.58"
Communities & Local Government,DCLG,10/04/2013,Agency Staff,Finance & Corporate Services,CAPITA RESOURCING LTD,,Large,,5106192291,Extension of HR B'Partner,SL6 1DP,"1,844.64"
Communities & Local Government,DCLG,10/04/2013,Agency Staff,Finance & Corporate Services,CAPITA RESOURCING LTD,,Large,,5106192297,Interim Manager,SL6 1DP,"2,038.90"
Communities & Local Government,DCLG,10/04/2013,Agency Staff,Finance & Corporate Services,CAPITA RESOURCING LTD,,Large,,5106192300,Interim manager,SL6 1DP,653.4
Communities & Local Government,DCLG,10/04/2013,Agency Staff,Finance & Corporate Services,CAPITA RESOURCING LTD,,Large,,5106192301,Extension 1,SL6 1DP,"3,326.40"
Communities & Local Government,DCLG,10/04/2013,Agency Staff,Finance & Corporate Services,MICHAEL PAGE INTERNATIONAL,,Large,,5106192312,Interim contractor,SL1 3SA,"1,543.58"
Communities & Local Government,DCLG,10/04/2013,Agency Staff,Finance & Corporate Services,PREMIER LONDON LTD,,Medium,,5106192308,Supplyof 1 AO - 6 months - per day,EC2R 7HJ,625.68,
Communities & Local Government,DCLG,10/04/2013,Agency Staff,Finance & Corporate Services,PREMIER LONDON LTD,,Medium,,5106192320,Supplyof 1 AO - 6 months - per day,EC2R 7HJ,782.1,
Communities & Local Government,DCLG,10/04/2013,Agency Staff,Localism,MICHAEL PAGE INTERNATIONAL,,Large,,5106192311,Interim Manager,SL1 3SA,"3,750.00",
Communities & Local Government,DCLG,10/04/2013,Agency Staff,Neighbourhoods,CAPITA RESOURCING LTD,,Large,,5106192285,Interim Manager,SL6 1DP,"2,203.34",
Communities & Local Government,DCLG,10/04/2013,Agency Staff,Neighbourhoods,CAPITA RESOURCING LTD,,Large,,5106192286,Expenses,SL6 1DP,81.36,
Communities & Local Government,DCLG,10/04/2013,Agency Staff,Neighbourhoods,CAPITA RESOURCING LTD,,Large,,5106192286,Interim Manager,SL6 1DP,"1,851.06",
Communities & Local Government,DCLG,10/04/2013,Agency Staff,Neighbourhoods,CAPITA RESOURCING LTD,,Large,,5106192289,CPD 0492030 Capita MSP,SL6 1DP,6.36,
Communities & Local Government,DCLG,10/04/2013,Agency Staff,Neighbourhoods,CAPITA RESOURCING LTD,,Large,,5106192289,DayRate ERREG2 Seas-Territorial,SL6 1DP,417.6,
Communities & Local Government,DCLG,10/04/2013,Agency Staff,Neighbourhoods,CAPITA RESOURCING LTD,,Large,,5106192303,Interim Manager,SL6 1DP,"1,675.38",
Communities & Local Government,DCLG,10/04/2013,Agency Staff,Neighbourhoods,CAPITA RESOURCING LTD,,Large,,5106192306,Expenses,SL6 1DP,158.04,
Communities & Local Government,DCLG,10/04/2013,Agency Staff,Neighbourhoods,CAPITA RESOURCING LTD,,Large,,5106192306,Interim Manager,SL6 1DP,957.36,
Communities & Local Government,DCLG,10/04/2013,Agency Staff,Neighbourhoods,CAPITA RESOURCING LTD,,Large,,5106192315,Interim Manager,SL6 1DP,"1,761.36",
Communities & Local Government,DCLG,10/04/2013,Building Renovations,Finance & Corporate Services,E C HARRIS LLP,,Large,,5106192317,PAMU Estates Proj Management to Feb 14,N1 9AB,"4,234.64",
Communities & Local Government,DCLG,10/04/2013,Current (non AEF) Grants to Local Authorities,Finance & Corporate Services,DURHAM & DARLINGTON FIRE RESCUE,,Public Bodies,,2100229026,Provide support to LA make the contractual Payment,DH1 5UE,"149,608.75",Yes
Communities & Local Government,DCLG,10/04/2013,Current (non AEF) Grants to Local Authorities,Finance & Corporate Services,GREATER LONDON AUTHORITY,,Large,,2100229025,Provide support to LA make the contractual Payment,SE10 1AP,"142,073.90",Yes
Communities & Local Government,DCLG,10/04/2013,Current (non AEF) Grants to Local Authorities,Finance & Corporate Services,GREATER MANCHESTER FIRE & RESCUE,,Public Bodies,,2100229024,Provide support to LA make the contractual Payment,M27 8US,"158,883.00",Yes
Communities & Local Government,DCLG,10/04/2013,Electricity,Finance & Corporate Services,EDF ENERGY 1 LIMITED,,Large,,5106192250,Y&H Wakefield Electricity - 2012-13,PL3 5XQ,"2,529.79",
Communities & Local Government,DCLG,10/04/2013,Electricity,Finance & Corporate Services,EDF ENERGY 1 LIMITED,,Large,,5106192252,WM Wolverhampton Electricity - 2012-13,PL3 5XQ,"3,704.71",
Communities & Local Government,DCLG,10/04/2013,Electricity,Finance & Corporate Services,EDF ENERGY 1 LIMITED,,Large,,5106192255,EoE Waterbeach Electricity 2012-13,PL3 5XQ,"3,146.82",
Communities & Local Government,DCLG,10/04/2013,Electricity,Finance & Corporate Services,EDF ENERGY 1 LIMITED,,Large,,5106192402,Queen St Electricity 2012-13,PL3 5XQ,"1,588.25",
Communities & Local Government,DCLG,10/04/2013,Electricity,Finance & Corporate Services,EDF ENERGY 1 LIMITED,,Large,,5106192403,EM Castle Don - Electricity 12-13,PL3 5XQ,"3,813.40",
Communities & Local Government,DCLG,10/04/2013,Grant in Aid to NDPBs (non budget),Neighbourhoods,HOMES & COMMUNITIES AGENCY,,Public Bodies,,2100229138,Weekly HCA Grant In Aid Claim,NE11 0NA,"25,865,365.00",Yes
Communities & Local Government,DCLG,10/04/2013,IT - Service Contracts,Finance & Corporate Services,STERIA LIMITED,,Large,,5106192292,SQ100 - RDA RSA Token Maint.Renewal,M14 0WN,"7,388.46",
Communities & Local Government,DCLG,10/04/2013,Mobile phone costs,Finance & Corporate Services,ORANGE (AIRTIME/LINE RENTAL),,Large,,2100229146,Monthly Consolidated telephone Costs March 2013,S99 6LU,18,
Communities & Local Government,DCLG,10/04/2013,Mobile phone costs,Finance & Corporate Services,ORANGE (AIRTIME/LINE RENTAL),,Large,,2100229146,Monthly Consolidated telephone Costs March 2013,S99 6LU,54,
Communities & Local Government,DCLG,10/04/2013,Mobile phone costs,Finance & Corporate Services,ORANGE (AIRTIME/LINE RENTAL),,Large,,2100229146,Monthly Consolidated telephone Costs March 2013,S99 6LU,18,
Communities & Local Government,DCLG,10/04/2013,Mobile phone costs,Finance & Corporate Services,ORANGE (AIRTIME/LINE RENTAL),,Large,,2100229146,Monthly Consolidated telephone Costs March 2013,S99 6LU,15.5,
Communities & Local Government,DCLG,10/04/2013,Mobile phone costs,Finance & Corporate Services,ORANGE (AIRTIME/LINE RENTAL),,Large,,2100229146,Monthly Consolidated telephone Costs March 2013,S99 6LU,54,
Communities & Local Government,DCLG,10/04/2013,Mobile phone costs,Finance & Corporate Services,ORANGE (AIRTIME/LINE RENTAL),,Large,,2100229146,Monthly Consolidated telephone Costs March 2013,S99 6LU,0.35,
Communities & Local Government,DCLG,10/04/2013,Mobile phone costs,Finance & Corporate Services,ORANGE (AIRTIME/LINE RENTAL),,Large,,2100229146,Monthly Consolidated telephone Costs March 2013,S99 6LU,36,
Communities & Local Government,DCLG,10/04/2013,Mobile phone costs,Finance & Corporate Services,ORANGE (AIRTIME/LINE RENTAL),,Large,,2100229146,Monthly Consolidated telephone Costs March 2013,S99 6LU,70.43,
Communities & Local Government,DCLG,10/04/2013,Mobile phone costs,Finance & Corporate Services,ORANGE (AIRTIME/LINE RENTAL),,Large,,2100229146,Monthly Consolidated telephone Costs March 2013,S99 6LU,43.62,
Communities & Local Government,DCLG,10/04/2013,Mobile phone costs,Finance & Corporate Services,ORANGE (AIRTIME/LINE RENTAL),,Large,,2100229146,Monthly Consolidated telephone Costs March 2013,S99 6LU,18
Communities & Local Government,DCLG,10/04/2013,Mobile phone costs,Localism,ORANGE (AIRTIME/LINE RENTAL),,Large,,2100229146,Monthly Consolidated telephone Costs March 2013,S99 6LU,2.88
Communities & Local Government,DCLG,10/04/2013,Mobile phone costs,Localism,ORANGE (AIRTIME/LINE RENTAL),,Large,,2100229146,Monthly Consolidated telephone Costs March 2013,S99 6LU,36.01
Communities & Local Government,DCLG,10/04/2013,Mobile phone costs,Localism,ORANGE (AIRTIME/LINE RENTAL),,Large,,2100229146,Monthly Consolidated telephone Costs March 2013,S99 6LU,46.8
Communities & Local Government,DCLG,10/04/2013,Mobile phone costs,Localism,ORANGE (AIRTIME/LINE RENTAL),,Large,,2100229146,Monthly Consolidated telephone Costs March 2013,S99 6LU,9
Communities & Local Government,DCLG,10/04/2013,Mobile phone costs,Localism,ORANGE (AIRTIME/LINE RENTAL),,Large,,2100229146,Monthly Consolidated telephone Costs March 2013,S99 6LU,15.6
Communities & Local Government,DCLG,10/04/2013,Mobile phone costs,Localism,ORANGE (AIRTIME/LINE RENTAL),,Large,,2100229146,Monthly Consolidated telephone Costs March 2013,S99 6LU,18
Communities & Local Government,DCLG,10/04/2013,Mobile phone costs,Neighbourhoods,ORANGE (AIRTIME/LINE RENTAL),,Large,,2100229146,Monthly Consolidated telephone Costs March 2013,S99 6LU,43.73
Communities & Local Government,DCLG,10/04/2013,Mobile phone costs,Neighbourhoods,ORANGE (AIRTIME/LINE RENTAL),,Large,,2100229146,Monthly Consolidated telephone Costs March 2013,S99 6LU,111.86
Communities & Local Government,DCLG,10/04/2013,Mobile phone costs,Neighbourhoods,ORANGE (AIRTIME/LINE RENTAL),,Large,,2100229146,Monthly Consolidated telephone Costs March 2013,S99 6LU,2.45
Communities & Local Government,DCLG,10/04/2013,Mobile phone costs,Neighbourhoods,ORANGE (AIRTIME/LINE RENTAL),,Large,,2100229146,Monthly Consolidated telephone Costs March 2013,S99 6LU,37.75
Communities & Local Government,DCLG,10/04/2013,Mobile phone costs,Neighbourhoods,ORANGE (AIRTIME/LINE RENTAL),,Large,,2100229146,Monthly Consolidated telephone Costs March 2013,S99 6LU,21.67
Communities & Local Government,DCLG,10/04/2013,Mobile phone costs,Neighbourhoods,ORANGE (AIRTIME/LINE RENTAL),,Large,,2100229146,Monthly Consolidated telephone Costs March 2013,S99 6LU,20.48
Communities & Local Government,DCLG,10/04/2013,Mobile phone costs,Troubled Families,ORANGE (AIRTIME/LINE RENTAL),,Large,,2100229146,Monthly Consolidated telephone Costs March 2013,S99 6LU,18
Communities & Local Government,DCLG,10/04/2013,Physical Storage,Finance & Corporate Services,IRON MOUNTAIN (UK) LIMITED,,Large,,5106192310,Offsite storage - tapes,EH54 7DF,355.76
Communities & Local Government,DCLG,10/04/2013,Printing,Finance & Corporate Services,STATIONERY OFFICE LTD,,Large,,5106192324,Non-Vatable,NR3 1PD,239.25
Communities & Local Government,DCLG,10/04/2013,Printing,Finance & Corporate Services,STATIONERY OFFICE LTD,,Large,,5106192324,VAT chargeable,NR3 1PD,130,
Communities & Local Government,DCLG,10/04/2013,Printing,Finance & Corporate Services,STATIONERY OFFICE LTD,,Large,,5106192326,Non-Vatable,NR3 1PD,239.25,
Communities & Local Government,DCLG,10/04/2013,Printing,Finance & Corporate Services,STATIONERY OFFICE LTD,,Large,,5106192326,VAT chargeable,NR3 1PD,130,
Communities & Local Government,DCLG,10/04/2013,Printing,Finance & Corporate Services,WILLIAMS LEA LIMITED,,Large,,5106192337,Year 1 Print Services,W2 6LG,271.12,
Communities & Local Government,DCLG,10/04/2013,Printing,Finance & Corporate Services,WILLIAMS LEA LIMITED,,Large,,5106192337,Year 1 Print Services (0% VAT),W2 6LG,759.15,
Communities & Local Government,DCLG,10/04/2013,Professional services,Finance & Corporate Services,PRGX UK LTD,,Medium,,5106192177,PRGX Spend Recovery Audit,LU1 3LU,"3,975.55",
Communities & Local Government,DCLG,10/04/2013,Services provided by other Govt Orgs,Neighbourhoods,VALUATION OFFICE AGENCY,,Public Bodies,,5106192325,RTB VOA Valuation 12/13,W1B 5BU,"105,871.00",Yes
Communities & Local Government,DCLG,10/04/2013,Training,Finance & Corporate Services,OFFICE FOR NATIONAL STATISTICS,,Public Bodies,,5106192200,Economic Statistics,NP10 8XG,700,
Communities & Local Government,DCLG,10/04/2013,Water,Finance & Corporate Services,SEVERN TRENT WATER LTD,,Large,,5106192352,West Midlands RCC Water 12-13,CV3 9FJ,555.97,
Communities & Local Government,DCLG,10/04/2013,Water,Finance & Corporate Services,SIEMENS FINANCIAL SERVICES LTD,,Large,,5106192235,rental for water logic machine,SL2 4JS,754.2,
Communities & Local Government,DCLG,10/04/2013,Work In Progress Pre-Cert 40373 Spend,Neighbourhoods,E FACTOR ENTERPRISE (NEL) LTD,,Small,,7600004853,Revenue Grant To Be Paid,DN34 5BQ,"66,349.96",
Communities & Local Government,DCLG,10/04/2013,Work In Progress Pre-Cert 40373 Spend,Neighbourhoods,KEY FUND INVESTMENTS LTD,,Small,,7600004851,Revenue Grant To Be Paid,S9 3TY,"2,050.66",
Communities & Local Government,DCLG,10/04/2013,Work In Progress Pre-Cert 40373 Spend,Neighbourhoods,KEY FUND INVESTMENTS LTD,,Small,,7600004852,Revenue Grant To Be Paid,S9 3TY,"2,668.11",
Communities & Local Government,DCLG,10/04/2013,Work In Progress Pre-Cert 40373 Spend,Neighbourhoods,KEY FUND INVESTMENTS LTD,,Small,,7600004854,Revenue Grant To Be Paid,S9 3TY,"24,459.92",
Communities & Local Government,DCLG,10/04/2013,Work In Progress Pre-Cert 40373 Spend,Neighbourhoods,KEY FUND INVESTMENTS LTD,,Small,,7600004855,Revenue Grant To Be Paid,S9 3TY,"9,955.36",
Communities & Local Government,DCLG,10/04/2013,Work In Progress Pre-Cert 40373 Spend,Neighbourhoods,MEDIAWORKS TRUST,,Small,,7600004858,Revenue Grant To Be Paid,DE22 3RG,"3,356.18",
Communities & Local Government,DCLG,10/04/2013,Work In Progress Pre-Cert 40373 Spend,Neighbourhoods,MEDILINK EAST MIDLANDS,,Small,,7600004857,Revenue Grant To Be Paid,NG1 1GF,"79,854.10"
Communities & Local Government,DCLG,10/04/2013,Work In Progress Pre-Cert 40373 Spend,Neighbourhoods,NEWCASTLE CITY COUNCIL,,,,7600004848,Revenue Grant To Be Paid,NE1 8QN,"57,284.53"
Communities & Local Government,DCLG,10/04/2013,Work In Progress Pre-Cert 40373 Spend,Neighbourhoods,NORTH EAST BUSINESS & INNOV CENTRE,,Small,,7600004847,Revenue Grant Clawback Offset,SR5 2TA,-286.6
Communities & Local Government,DCLG,10/04/2013,Work In Progress Pre-Cert 40373 Spend,Neighbourhoods,NORTH EAST BUSINESS & INNOV CENTRE,,Small,,7600004847,Revenue Grant To Be Paid,SR5 2TA,"1,852.42"
Communities & Local Government,DCLG,10/04/2013,Work In Progress Pre-Cert 40373 Spend,Neighbourhoods,UNIVERSITY OF PLYMOUTH GENERAL A/C,,,,7600004856,Revenue Grant To Be Paid,PL4 8AA,"84,488.66"
Communities & Local Government,DCLG,10/04/2013,Work In Progress Pre-Cert 40373 Spend,Neighbourhoods,UNIVERSITY OF SHEFFIELD,,,,7600004849,Revenue Grant To Be Paid,S60 5TZ,"15,488.10"
Communities & Local Government,DCLG,10/04/2013,Work In Progress Pre-Cert 40373 Spend,Neighbourhoods,UNIVERSITY OF SHEFFIELD,,,,7600004850,Revenue Grant To Be Paid,S60 5TZ,"10,585.28"
Communities & Local Government,DCLG,10/04/2013,Work In Progress Pre-Cert 40467 Spend,Neighbourhoods,KEY FUND INVESTMENTS LTD,,Small,,7600004851,Capital Grant To Be Paid,S9 3TY,"14,639.10"
Communities & Local Government,DCLG,10/04/2013,Work In Progress Pre-Cert 40467 Spend,Neighbourhoods,KEY FUND INVESTMENTS LTD,,Small,,7600004852,Capital Grant To Be Paid,S9 3TY,"6,125.02"
Communities & Local Government,DCLG,10/04/2013,Work In Progress Pre-Cert 40467 Spend,Neighbourhoods,KEY FUND INVESTMENTS LTD,,Small,,7600004854,Capital Grant To Be Paid,S9 3TY,"130,070.50"
Communities & Local Government,DCLG,10/04/2013,Work In Progress Pre-Cert 40467 Spend,Neighbourhoods,KEY FUND INVESTMENTS LTD,,Small,,7600004855,Capital Grant To Be Paid,S9 3TY,"47,170.08"
Communities & Local Government,DCLG,10/04/2013,Work In Progress Pre-Cert 40467 Spend,Neighbourhoods,MEDIAWORKS TRUST,,Small,,7600004858,Capital Grant To Be Paid,DE22 3RG,93.37
Communities & Local Government,DCLG,11/04/2013,Accommodation Service Charges,Neighbourhoods,GVA GRIMLEY LTD,,Large,,5106192203,ERDF SWC LDU Valuation Service to Dec 13,B1 2JB,"3,645.60"
Communities & Local Government,DCLG,11/04/2013,Advertising,Finance & Corporate Services,KINDRED AGENCY,,Small,,5106192447,RtB - Film Two,WC2E 9RA,"51,604.80"
Communities & Local Government,DCLG,11/04/2013,Agency Staff,Finance & Corporate Services,MANPOWER UK LTD,,Large,,5106192437,Temp information specialist,UB8 1AB,360.66
Communities & Local Government,DCLG,11/04/2013,Agency Staff,Localism,CAPITA RESOURCING LTD,,Large,,5106190729,Interim,SL6 1DP,"1,117.80"
Communities & Local Government,DCLG,11/04/2013,Agency Staff,Localism,CAPITA RESOURCING LTD,,Large,,5106190997,Interim,SL6 1DP,"1,117.80",
Communities & Local Government,DCLG,11/04/2013,Agency Staff,Neighbourhoods,REED EMPLOYMENT SERVICES,,Large,,5106192414,POLICY SUPPORT FOR HGAH,SW20 0BA,696.97,
Communities & Local Government,DCLG,11/04/2013,Agency Staff,Neighbourhoods,REED EMPLOYMENT SERVICES,,Large,,5106192416,Policy Support in HGAH,SW20 0BA,774.94,
Communities & Local Government,DCLG,11/04/2013,Agency Staff,Neighbourhoods,REED EMPLOYMENT SERVICES,,Large,,5106192420,POLICY SUPPORT FOR HGAH,SW20 0BA,746.23,
Communities & Local Government,DCLG,11/04/2013,Agency Staff,Neighbourhoods,REED SPECIALIST RECRUITMENT LTD,,Large,,5106192415,Temporary Staff,NN1 1UE,632.26,
Communities & Local Government,DCLG,11/04/2013,Courier Services,Finance & Corporate Services,INTERSERVE (FACILITIES MANAGEMENT),,Large,,5106192446,Eland Mail 2012-13,BS32 4NH,"7,886.12",
Communities & Local Government,DCLG,11/04/2013,Current (non AEF) Grants to Local Authorities,Localism,ESSEX COUNTY COUNCIL,,,,2100228301,Reimburse of LA Whole-Place Community Budget,CM1 1LX,"696,411.66",Yes
Communities & Local Government,DCLG,11/04/2013,Domestic Services,Finance & Corporate Services,AMEY COMMUNITY LTD,,Large,,5106192443,2012-13 Lateral Cleaning,OX4 4DQ,"3,032.71",
Communities & Local Government,DCLG,11/04/2013,Domestic Services,Finance & Corporate Services,AMEY COMMUNITY LTD,,Large,,5106192443,2012-13 Lateral General Waste Provision,OX4 4DQ,408.12,
Communities & Local Government,DCLG,11/04/2013,Domestic Services,Finance & Corporate Services,INTERSERVE (FACILITIES MANAGEMENT),,Large,,5106192446,Eland Cleaning 2012-13,BS32 4NH,"27,469.95",
Communities & Local Government,DCLG,11/04/2013,Domestic Services,Finance & Corporate Services,INTERSERVE (FACILITIES MANAGEMENT),,Large,,5106192446,Hemel Cleaning 2012-13,BS32 4NH,"2,185.31",
Communities & Local Government,DCLG,11/04/2013,Domestic Services,Finance & Corporate Services,INTERSERVE (FACILITIES MANAGEMENT),,Large,,5106192446,Mast House Cleaning 2012-13,BS32 4NH,"1,342.90",
Communities & Local Government,DCLG,11/04/2013,Domestic Services,Finance & Corporate Services,INTERSERVE (FACILITIES MANAGEMENT),,Large,,5106192446,Bridge House Cleaning 2012-13,BS32 4NH,"3,029.46",
Communities & Local Government,DCLG,11/04/2013,Domestic Services,Finance & Corporate Services,INTERSERVE (FACILITIES MANAGEMENT),,Large,,5106192446,Citygate Cleaning 2012-13,BS32 4NH,"3,046.41",
Communities & Local Government,DCLG,11/04/2013,Domestic Services,Finance & Corporate Services,INTERSERVE (FACILITIES MANAGEMENT),,Large,,5106192446,Queens Street Cleaning 2012-13,BS32 4NH,"2,566.06",
Communities & Local Government,DCLG,11/04/2013,Domestic Services,Finance & Corporate Services,INTERSERVE (FACILITIES MANAGEMENT),,Large,,5106192446,St Philips Place Cleaning 2012-13,BS32 4NH,"6,808.15",
Communities & Local Government,DCLG,11/04/2013,Domestic Services,Finance & Corporate Services,INTERSERVE (FACILITIES MANAGEMENT),,Large,,5106192446,Paradise Circus Cleaning 2012-13,BS32 4NH,"3,114.09"
Communities & Local Government,DCLG,11/04/2013,Facilities Management (ISD use only),Finance & Corporate Services,AMEY COMMUNITY LTD,,Large,,5106192443,2012-13 Lateral Asset & Prop Management,OX4 4DQ,117.49
Communities & Local Government,DCLG,11/04/2013,Facilities Management (ISD use only),Finance & Corporate Services,AMEY COMMUNITY LTD,,Large,,5106192443,2012-13 Lateral Estate Service,OX4 4DQ,"1,246.34"
Communities & Local Government,DCLG,11/04/2013,Facilities Management (ISD use only),Finance & Corporate Services,AMEY COMMUNITY LTD,,Large,,5106192443,2012-13 Lateral Gen Requirements,OX4 4DQ,"3,097.29"
Communities & Local Government,DCLG,11/04/2013,Facilities Management (ISD use only),Finance & Corporate Services,AMEY COMMUNITY LTD,,Large,,5106192443,2012-13 Lateral Helpdesk Service,OX4 4DQ,532.48
Communities & Local Government,DCLG,11/04/2013,Facilities Management (ISD use only),Finance & Corporate Services,AMEY COMMUNITY LTD,,Large,,5106192443,2012-13 Lateral Porterage,OX4 4DQ,15.8
Communities & Local Government,DCLG,11/04/2013,Facilities Management (ISD use only),Finance & Corporate Services,AMEY COMMUNITY LTD,,Large,,5106192443,2012-13 Lateral X-Ray Services,OX4 4DQ,35.04
Communities & Local Government,DCLG,11/04/2013,Facilities Management (ISD use only),Finance & Corporate Services,INTERSERVE (FACILITIES MANAGEMENT),,Large,,5106192446,Eland Off site management 2012-13,BS32 4NH,"13,200.27"
Communities & Local Government,DCLG,11/04/2013,Facilities Management (ISD use only),Finance & Corporate Services,INTERSERVE (FACILITIES MANAGEMENT),,Large,,5106192446,Eland Reception 2012-13,BS32 4NH,"4,902.61"
Communities & Local Government,DCLG,11/04/2013,Facilities Management (ISD use only),Finance & Corporate Services,INTERSERVE (FACILITIES MANAGEMENT),,Large,,5106192446,Hemel Off Site Mngmt 2012-13,BS32 4NH,"1,042.16"
Communities & Local Government,DCLG,11/04/2013,Facilities Management (ISD use only),Finance & Corporate Services,INTERSERVE (FACILITIES MANAGEMENT),,Large,,5106192446,Mast House Off site management 2012-13,BS32 4NH,944.02
Communities & Local Government,DCLG,11/04/2013,Facilities Management (ISD use only),Finance & Corporate Services,INTERSERVE (FACILITIES MANAGEMENT),,Large,,5106192446,Bridge House Off site mngt 2012-13,BS32 4NH,"2,058.49"
Communities & Local Government,DCLG,11/04/2013,Facilities Management (ISD use only),Finance & Corporate Services,INTERSERVE (FACILITIES MANAGEMENT),,Large,,5106192446,Bridge House On site mngt 2012-13,BS32 4NH,"3,611.41"
Communities & Local Government,DCLG,11/04/2013,Facilities Management (ISD use only),Finance & Corporate Services,INTERSERVE (FACILITIES MANAGEMENT),,Large,,5106192446,Citygate Off Site Management 2012-13,BS32 4NH,"3,497.77"
Communities & Local Government,DCLG,11/04/2013,Facilities Management (ISD use only),Finance & Corporate Services,INTERSERVE (FACILITIES MANAGEMENT),,Large,,5106192446,Citygate On Site Management 2012-13,BS32 4NH,"2,493.40"
Communities & Local Government,DCLG,11/04/2013,Facilities Management (ISD use only),Finance & Corporate Services,INTERSERVE (FACILITIES MANAGEMENT),,Large,,5106192446,Citygate Reception 2012-13,BS32 4NH,"1,589.29"
Communities & Local Government,DCLG,11/04/2013,Facilities Management (ISD use only),Finance & Corporate Services,INTERSERVE (FACILITIES MANAGEMENT),,Large,,5106192446,Queens Street Off site mngmt 2012-13,BS32 4NH,"1,894.93"
Communities & Local Government,DCLG,11/04/2013,Facilities Management (ISD use only),Finance & Corporate Services,INTERSERVE (FACILITIES MANAGEMENT),,Large,,5106192446,St Philips Place Off site mngmt 2012-13,BS32 4NH,"3,457.02"
Communities & Local Government,DCLG,11/04/2013,Facilities Management (ISD use only),Finance & Corporate Services,INTERSERVE (FACILITIES MANAGEMENT),,Large,,5106192446,St Philips Place On site mngmt 2012-13,BS32 4NH,"2,989.01"
Communities & Local Government,DCLG,11/04/2013,Facilities Management (ISD use only),Finance & Corporate Services,INTERSERVE (FACILITIES MANAGEMENT),,Large,,5106192446,St Philips Place Reception 2012-13,BS32 4NH,"2,813.24"
Communities & Local Government,DCLG,11/04/2013,Facilities Management (ISD use only),Finance & Corporate Services,INTERSERVE (FACILITIES MANAGEMENT),,Large,,5106192446,Paradise Circus Off Site Mngt 2012-13,BS32 4NH,"1,987.33"
Communities & Local Government,DCLG,11/04/2013,Fixed Maintenance,Finance & Corporate Services,AMEY COMMUNITY LTD,,Large,,5106192443,2012-13 Lateral Grounds & Gardens,OX4 4DQ,114.74
Communities & Local Government,DCLG,11/04/2013,Fixed Maintenance,Finance & Corporate Services,INTERSERVE (FACILITIES MANAGEMENT),,Large,,5106192446,Bridge House Grounds Maintenance 2012-13,BS32 4NH,259.21
Communities & Local Government,DCLG,11/04/2013,Fixed Maintenance,Finance & Corporate Services,INTERSERVE (FACILITIES MANAGEMENT),,Large,,5106192446,Queen Street Grounds Maintenance 2012-13,BS32 4NH,13.16
Communities & Local Government,DCLG,11/04/2013,Fixed Maintenance,Finance & Corporate Services,INTERSERVE (FACILITIES MANAGEMENT),,Large,,5106192446,Eland Maintenance 2012-13,BS32 4NH,"39,360.08"
Communities & Local Government,DCLG,11/04/2013,Fixed Maintenance,Finance & Corporate Services,INTERSERVE (FACILITIES MANAGEMENT),,Large,,5106192446,Hemel Maintenance 2012-13,BS32 4NH,"5,359.95"
Communities & Local Government,DCLG,11/04/2013,Fixed Maintenance,Finance & Corporate Services,INTERSERVE (FACILITIES MANAGEMENT),,Large,,5106192446,Mast House Maintenance 2012-13,BS32 4NH,"2,476.73"
Communities & Local Government,DCLG,11/04/2013,Fixed Maintenance,Finance & Corporate Services,INTERSERVE (FACILITIES MANAGEMENT),,Large,,5106192446,Bridge House Maintenance 2012-13,BS32 4NH,"4,987.45"
Communities & Local Government,DCLG,11/04/2013,Fixed Maintenance,Finance & Corporate Services,INTERSERVE (FACILITIES MANAGEMENT),,Large,,5106192446,Citygate Maintenance 2012-13,BS32 4NH,"3,585.11"
Communities & Local Government,DCLG,11/04/2013,Fixed Maintenance,Finance & Corporate Services,INTERSERVE (FACILITIES MANAGEMENT),,Large,,5106192446,Queen Street Maintenance 2012-13,BS32 4NH,"6,538.37"
Communities & Local Government,DCLG,11/04/2013,Fixed Maintenance,Finance & Corporate Services,INTERSERVE (FACILITIES MANAGEMENT),,Large,,5106192446,St Philips Place Maintenance 2012-13,BS32 4NH,"10,796.00"
Communities & Local Government,DCLG,11/04/2013,Fixed Maintenance,Finance & Corporate Services,INTERSERVE (FACILITIES MANAGEMENT),,Large,,5106192446,Paradise Circus Maintenance 2012-13,BS32 4NH,"7,797.99"
Communities & Local Government,DCLG,11/04/2013,IT - Software Maintenance,Finance & Corporate Services,SAP (UK) LTD,,Large,,5106192429,Exhibit 1 SAP Enterprise Support 2013/14,TW14 8HD,"201,937.20"
Communities & Local Government,DCLG,11/04/2013,IT - Software Maintenance,Finance & Corporate Services,SAP (UK) LTD,,Large,,5106192429,Exhibit 4 SAP Enterprise Support 2013/14,TW14 8HD,"21,758.40"
Communities & Local Government,DCLG,11/04/2013,Photocopying,Finance & Corporate Services,INTERSERVE (FACILITIES MANAGEMENT),,Large,,5106192446,Eland Repro 2012-13,BS32 4NH,348.04
Communities & Local Government,DCLG,11/04/2013,Photocopying,Finance & Corporate Services,INTERSERVE (FACILITIES MANAGEMENT),,Large,,5106192446,Hemel Repro 2012-13,BS32 4NH,124.53
Communities & Local Government,DCLG,11/04/2013,Photocopying,Finance & Corporate Services,INTERSERVE (FACILITIES MANAGEMENT),,Large,,5106192446,Mast House Repro 2012-13,BS32 4NH,124.53
Communities & Local Government,DCLG,11/04/2013,Photocopying,Finance & Corporate Services,INTERSERVE (FACILITIES MANAGEMENT),,Large,,5106192446,St Philips Repro 2012-13,BS32 4NH,348.04
Communities & Local Government,DCLG,11/04/2013,Printing,Finance & Corporate Services,STATIONERY OFFICE LTD,,Large,,5106191788,Non-Vatable,NR3 1PD,368
Communities & Local Government,DCLG,11/04/2013,Printing,Finance & Corporate Services,STATIONERY OFFICE LTD,,Large,,5106191788,VAT chargeable,NR3 1PD,130
Communities & Local Government,DCLG,11/04/2013,Printing,Finance & Corporate Services,STATIONERY OFFICE LTD,,Large,,5106191789,Non-Vatable,NR3 1PD,239.25
Communities & Local Government,DCLG,11/04/2013,Printing,Finance & Corporate Services,STATIONERY OFFICE LTD,,Large,,5106191789,VAT chargeable,NR3 1PD,130
Communities & Local Government,DCLG,11/04/2013,Printing,Finance & Corporate Services,STATIONERY OFFICE LTD,,Large,,5106191790,Non-Vatable,NR3 1PD,229
Communities & Local Government,DCLG,11/04/2013,Printing,Finance & Corporate Services,STATIONERY OFFICE LTD,,Large,,5106191790,VAT chargeable,NR3 1PD,130
Communities & Local Government,DCLG,11/04/2013,Printing,Finance & Corporate Services,STATIONERY OFFICE LTD,,Large,,5106192329,Non-Vatable,NR3 1PD,185.88
Communities & Local Government,DCLG,11/04/2013,Printing,Finance & Corporate Services,STATIONERY OFFICE LTD,,Large,,5106192329,VAT chargeable,NR3 1PD,130
Communities & Local Government,DCLG,11/04/2013,Printing,Finance & Corporate Services,STATIONERY OFFICE LTD,,Large,,5106192330,Non-Vatable,NR3 1PD,229
Communities & Local Government,DCLG,11/04/2013,Printing,Finance & Corporate Services,STATIONERY OFFICE LTD,,Large,,5106192330,VAT chargeable,NR3 1PD,130
Communities & Local Government,DCLG,11/04/2013,Printing,Finance & Corporate Services,STATIONERY OFFICE LTD,,Large,,5106192333,Non-Vatable,NR3 1PD,209.25
Communities & Local Government,DCLG,11/04/2013,Printing,Finance & Corporate Services,STATIONERY OFFICE LTD,,Large,,5106192333,VAT chargeable,NR3 1PD,130
Communities & Local Government,DCLG,11/04/2013,Printing,Finance & Corporate Services,STATIONERY OFFICE LTD,,Large,,5106192334,Non-Vatable,NR3 1PD,208
Communities & Local Government,DCLG,11/04/2013,Printing,Finance & Corporate Services,STATIONERY OFFICE LTD,,Large,,5106192334,VAT chargeable,NR3 1PD,130
Communities & Local Government,DCLG,11/04/2013,Printing,Finance & Corporate Services,STATIONERY OFFICE LTD,,Large,,5106192336,Non-Vatable,NR3 1PD,378.55
Communities & Local Government,DCLG,11/04/2013,Printing,Finance & Corporate Services,STATIONERY OFFICE LTD,,Large,,5106192336,VAT chargeable,NR3 1PD,130
Communities & Local Government,DCLG,11/04/2013,Printing,Finance & Corporate Services,STATIONERY OFFICE LTD,,Large,,5106192340,Non-Vatable,NR3 1PD,185.88
Communities & Local Government,DCLG,11/04/2013,Printing,Finance & Corporate Services,STATIONERY OFFICE LTD,,Large,,5106192340,VAT chargeable,NR3 1PD,130
Communities & Local Government,DCLG,11/04/2013,Printing,Finance & Corporate Services,STATIONERY OFFICE LTD,,Large,,5106192341,Non-Vatable,NR3 1PD,208
Communities & Local Government,DCLG,11/04/2013,Printing,Finance & Corporate Services,STATIONERY OFFICE LTD,,Large,,5106192341,VAT chargeable,NR3 1PD,130
Communities & Local Government,DCLG,11/04/2013,Printing,Finance & Corporate Services,STATIONERY OFFICE LTD,,Large,,5106192346,Non-Vatable,NR3 1PD,239.25
Communities & Local Government,DCLG,11/04/2013,Printing,Finance & Corporate Services,STATIONERY OFFICE LTD,,Large,,5106192346,VAT chargeable,NR3 1PD,130
Communities & Local Government,DCLG,11/04/2013,Printing,Finance & Corporate Services,STATIONERY OFFICE LTD,,Large,,5106192350,Non-Vatable,NR3 1PD,208
Communities & Local Government,DCLG,11/04/2013,Printing,Finance & Corporate Services,STATIONERY OFFICE LTD,,Large,,5106192350,VAT chargeable,NR3 1PD,130
Communities & Local Government,DCLG,11/04/2013,Printing,Finance & Corporate Services,STATIONERY OFFICE LTD,,Large,,5106192354,Non-Vatable,NR3 1PD,208
Communities & Local Government,DCLG,11/04/2013,Printing,Finance & Corporate Services,STATIONERY OFFICE LTD,,Large,,5106192354,VAT chargeable,NR3 1PD,130
Communities & Local Government,DCLG,11/04/2013,Printing,Finance & Corporate Services,STATIONERY OFFICE LTD,,Large,,5106192359,Non-Vatable,NR3 1PD,208
Communities & Local Government,DCLG,11/04/2013,Printing,Finance & Corporate Services,STATIONERY OFFICE LTD,,Large,,5106192359,VAT chargeable,NR3 1PD,130
Communities & Local Government,DCLG,11/04/2013,Printing,Finance & Corporate Services,STATIONERY OFFICE LTD,,Large,,5106192361,Non-Vatable,NR3 1PD,239.25
Communities & Local Government,DCLG,11/04/2013,Printing,Finance & Corporate Services,STATIONERY OFFICE LTD,,Large,,5106192361,VAT chargeable,NR3 1PD,130
Communities & Local Government,DCLG,11/04/2013,Printing,Finance & Corporate Services,STATIONERY OFFICE LTD,,Large,,5106192363,Non-Vatable,NR3 1PD,178
Communities & Local Government,DCLG,11/04/2013,Printing,Finance & Corporate Services,STATIONERY OFFICE LTD,,Large,,5106192363,VAT chargeable,NR3 1PD,130
Communities & Local Government,DCLG,11/04/2013,Printing,Finance & Corporate Services,STATIONERY OFFICE LTD,,Large,,5106192365,Non-Vatable,NR3 1PD,209.25
Communities & Local Government,DCLG,11/04/2013,Printing,Finance & Corporate Services,STATIONERY OFFICE LTD,,Large,,5106192365,VAT chargeable,NR3 1PD,130
Communities & Local Government,DCLG,11/04/2013,Printing,Finance & Corporate Services,STATIONERY OFFICE LTD,,Large,,5106192367,Non-Vatable,NR3 1PD,208
Communities & Local Government,DCLG,11/04/2013,Printing,Finance & Corporate Services,STATIONERY OFFICE LTD,,Large,,5106192367,VAT chargeable,NR3 1PD,130
Communities & Local Government,DCLG,11/04/2013,Printing,Finance & Corporate Services,STATIONERY OFFICE LTD,,Large,,5106192368,Non-Vatable,NR3 1PD,239.25
Communities & Local Government,DCLG,11/04/2013,Printing,Finance & Corporate Services,STATIONERY OFFICE LTD,,Large,,5106192368,VAT chargeable,NR3 1PD,130
Communities & Local Government,DCLG,11/04/2013,Printing,Finance & Corporate Services,STATIONERY OFFICE LTD,,Large,,5106192369,Non-Vatable,NR3 1PD,209.25
Communities & Local Government,DCLG,11/04/2013,Printing,Finance & Corporate Services,STATIONERY OFFICE LTD,,Large,,5106192369,VAT chargeable,NR3 1PD,130
Communities & Local Government,DCLG,11/04/2013,Printing,Finance & Corporate Services,STATIONERY OFFICE LTD,,Large,,5106192372,Non-Vatable,NR3 1PD,239.25
Communities & Local Government,DCLG,11/04/2013,Printing,Finance & Corporate Services,STATIONERY OFFICE LTD,,Large,,5106192372,VAT chargeable,NR3 1PD,130
Communities & Local Government,DCLG,11/04/2013,Printing,Finance & Corporate Services,STATIONERY OFFICE LTD,,Large,,5106192375,Non-Vatable,NR3 1PD,178,
Communities & Local Government,DCLG,11/04/2013,Printing,Finance & Corporate Services,STATIONERY OFFICE LTD,,Large,,5106192375,VAT chargeable,NR3 1PD,130,
Communities & Local Government,DCLG,11/04/2013,Printing,Finance & Corporate Services,STATIONERY OFFICE LTD,,Large,,5106192376,Non-Vatable,NR3 1PD,208,
Communities & Local Government,DCLG,11/04/2013,Printing,Finance & Corporate Services,STATIONERY OFFICE LTD,,Large,,5106192376,VAT chargeable,NR3 1PD,130,
Communities & Local Government,DCLG,11/04/2013,Printing,Finance & Corporate Services,STATIONERY OFFICE LTD,,Large,,5106192378,Non-Vatable,NR3 1PD,185.88,
Communities & Local Government,DCLG,11/04/2013,Printing,Finance & Corporate Services,STATIONERY OFFICE LTD,,Large,,5106192378,VAT chargeable,NR3 1PD,130,
Communities & Local Government,DCLG,11/04/2013,Printing,Finance & Corporate Services,STATIONERY OFFICE LTD,,Large,,5106192380,Non-Vatable,NR3 1PD,178,
Communities & Local Government,DCLG,11/04/2013,Printing,Finance & Corporate Services,STATIONERY OFFICE LTD,,Large,,5106192380,VAT chargeable,NR3 1PD,130,
Communities & Local Government,DCLG,11/04/2013,Printing,Finance & Corporate Services,STATIONERY OFFICE LTD,,Large,,5106192383,Non-Vatable,NR3 1PD,208,
Communities & Local Government,DCLG,11/04/2013,Printing,Finance & Corporate Services,STATIONERY OFFICE LTD,,Large,,5106192383,VAT chargeable,NR3 1PD,130,
Communities & Local Government,DCLG,11/04/2013,Printing,Finance & Corporate Services,STATIONERY OFFICE LTD,,Large,,5106192385,Non-Vatable,NR3 1PD,239.25,
Communities & Local Government,DCLG,11/04/2013,Printing,Finance & Corporate Services,STATIONERY OFFICE LTD,,Large,,5106192385,VAT chargeable,NR3 1PD,130,
Communities & Local Government,DCLG,11/04/2013,Professional services,Neighbourhoods,RICARDO-AEA LTD,,Large,,5106192417,Contract management System - PMS Hosting,OX11 0QR,840,
Communities & Local Government,DCLG,11/04/2013,Revenue Support grant payable,Localism,ADUR DC,,,,5000223678,Grant Payable by Exchequer,BN43 6PR,"444,837.00",Yes
Communities & Local Government,DCLG,11/04/2013,Revenue Support grant payable,Localism,ALLERDALE BOROUGH COUNCIL,,,,5000223680,Grant Payable by Exchequer,CA14 3YJ,"759,880.00",Yes
Communities & Local Government,DCLG,11/04/2013,Revenue Support grant payable,Localism,AMBER VALLEY BC,,,,5000223682,Grant Payable by Exchequer,DE5 3WZ,"740,481.00",Yes
Communities & Local Government,DCLG,11/04/2013,Revenue Support grant payable,Localism,ARUN DC,,,,5000223684,Grant Payable by Exchequer,BN17 5LF,"923,503.00",Yes
Communities & Local Government,DCLG,11/04/2013,Revenue Support grant payable,Localism,ASHFIELD DC,,,,5000223686,Grant Payable by Exchequer,NG17 8DA,"807,609.00",Yes
Communities & Local Government,DCLG,11/04/2013,Revenue Support grant payable,Localism,ASHFORD BC,,,,5000223688,Grant Payable by Exchequer,TN23 1PL,"661,269.00",Yes
Communities & Local Government,DCLG,11/04/2013,Revenue Support grant payable,Localism,AVON FIRE AUTHORITY,,,,5000223690,Grant Payable by Exchequer,BS1 6EU,"2,506,468.00",Yes
Communities & Local Government,DCLG,11/04/2013,Revenue Support grant payable,Localism,AYLESBURY VALE DC,,,,5000223692,Grant Payable by Exchequer,HP20 1SD,"1,002,614.00",Yes
Communities & Local Government,DCLG,11/04/2013,Revenue Support grant payable,Localism,BABERGH DC,,,,5000223694,Grant Payable by Exchequer,IP7 6SJ,"538,364.00",Yes
Communities & Local Government,DCLG,11/04/2013,Revenue Support grant payable,Localism,BARKING & DAGENHAM LB,,Public Bodies,,5000223696,Grant Payable by Exchequer,RM10 7BY,"11,993,696.00",Yes
Communities & Local Government,DCLG,11/04/2013,Revenue Support grant payable,Localism,BARNET LBC,,,,5000223698,Grant Payable by Exchequer,NW4 4BG,"17,352,174.00",Yes
Communities & Local Government,DCLG,11/04/2013,Revenue Support grant payable,Localism,BARNSLEY MBC,,Public Bodies,,5000223700,Grant Payable by Exchequer,S70 2AQ,"13,083,371.00",Yes
Communities & Local Government,DCLG,11/04/2013,Revenue Support grant payable,Localism,BARROW BC,,,,5000223702,Grant Payable by Exchequer,LA14 2LD,"650,515.00",Yes
Communities & Local Government,DCLG,11/04/2013,Revenue Support grant payable,Localism,BASILDON DC,,,,5000223703,Grant Payable by Exchequer,SS14 0DF,"1,435,206.00",Yes
Communities & Local Government,DCLG,11/04/2013,Revenue Support grant payable,Localism,BASINGSTOKE & DEANE BC,,,,5000223705,Grant Payable by Exchequer,RG21 2AJ,"701,379.00",Yes
Communities & Local Government,DCLG,11/04/2013,Revenue Support grant payable,Localism,BASSETLAW DC,,,,5000223707,Grant Payable by Exchequer,S80 2AH,"843,158.00",Yes
Communities & Local Government,DCLG,11/04/2013,Revenue Support grant payable,Localism,BATH & NORTH EAST SOMERSET DC,,,,5000223709,Grant Payable by Exchequer,BA1 5AW,"8,034,713.00",Yes
Communities & Local Government,DCLG,11/04/2013,Revenue Support grant payable,Localism,BEDFORD BOROUGH COUNCIL,,,,5000223670,Grant Payable by Exchequer,MK40 1SJ,"10,200,421.00",Yes
Communities & Local Government,DCLG,11/04/2013,Revenue Support grant payable,Localism,BEDS & LUTON FIRE & RESCUE SERVICE,,,,5000223711,Grant Payable by Exchequer,MK42 7NR,"1,625,266.00",Yes
Communities & Local Government,DCLG,11/04/2013,Revenue Support grant payable,Localism,BEXLEY LB,,,,5000223715,Grant Payable by Exchequer,DA8 1TL,"10,025,130.00",Yes
Communities & Local Government,DCLG,11/04/2013,Revenue Support grant payable,Localism,BIRMINGHAM CITY CNCL,,,,5000223717,Grant Payable by Exchequer,B3 3AB,"74,460,612.00",Yes
Communities & Local Government,DCLG,11/04/2013,Revenue Support grant payable,Localism,BLABY DC,,,,5000223718,Grant Payable by Exchequer,LE9 5EP,"561,408.00",Yes
Communities & Local Government,DCLG,11/04/2013,Revenue Support grant payable,Localism,BLACKBURN WITH DARWEN BC,,,,5000223719,Grant Payable by Exchequer,BB1 7DY,"10,241,145.00",Yes
Communities & Local Government,DCLG,11/04/2013,Revenue Support grant payable,Localism,BLACKPOOL BC,,,,5000223720,Grant Payable by Exchequer,FY1 1NA,"11,100,696.00",Yes
Communities & Local Government,DCLG,11/04/2013,Revenue Support grant payable,Localism,BOLSOVER DC,,Large,,5000223721,Grant Payable by Exchequer,S44 6NF,"672,478.00",Yes
Communities & Local Government,DCLG,11/04/2013,Revenue Support grant payable,Localism,BOLTON MBC,,,,5000223722,Grant Payable by Exchequer,BL1 1RU,"15,662,534.00",Yes
Communities & Local Government,DCLG,11/04/2013,Revenue Support grant payable,Localism,BOSTON BC,,,,5000223723,Grant Payable by Exchequer,PE21 8QR,"561,860.00",Yes
Communities & Local Government,DCLG,11/04/2013,Revenue Support grant payable,Localism,BOURNEMOUTH DC,,,,5000223724,Grant Payable by Exchequer,BH2 6EB,"8,645,252.00",Yes
Communities & Local Government,DCLG,11/04/2013,Revenue Support grant payable,Localism,BRACKNELL FOREST DC,,,,5000223725,Grant Payable by Exchequer,RG12 1AQ,"4,973,025.00",Yes
Communities & Local Government,DCLG,11/04/2013,Revenue Support grant payable,Localism,BRADFORD MBC,,,,5000223726,Grant Payable by Exchequer,BD1 1HX,"28,947,088.00",Yes
Communities & Local Government,DCLG,11/04/2013,Revenue Support grant payable,Localism,BRAINTREE DC,,,,5000223727,Grant Payable by Exchequer,CM7 6HB,"877,749.00",Yes
Communities & Local Government,DCLG,11/04/2013,Revenue Support grant payable,Localism,BRECKLAND DC,,,,5000223728,Grant Payable by Exchequer,NR19 1EE,"823,033.00",Yes
Communities & Local Government,DCLG,11/04/2013,Revenue Support grant payable,Localism,BRENT LB,,,,5000223729,Grant Payable by Exchequer,HA9 9EZ,"18,359,032.00",Yes
Communities & Local Government,DCLG,11/04/2013,Revenue Support grant payable,Localism,BRENTWOOD BC,,,,5000223730,Grant Payable by Exchequer,CM15 8AY,"417,673.00",Yes
Communities & Local Government,DCLG,11/04/2013,Revenue Support grant payable,Localism,BRIGHTON & HOVE CITY COUNCIL,,,,5000223731,Grant Payable by Exchequer,BN3 2SR,"14,885,838.00",Yes
Communities & Local Government,DCLG,11/04/2013,Revenue Support grant payable,Localism,BRISTOL CITY CNCL,,,,5000223732,Grant Payable by Exchequer,BS99 7BL,"25,675,654.00",Yes
Communities & Local Government,DCLG,11/04/2013,Revenue Support grant payable,Localism,BROADLAND DC,,,,5000223733,Grant Payable by Exchequer,NR7 0DU,"660,790.00",Yes
Communities & Local Government,DCLG,11/04/2013,Revenue Support grant payable,Localism,BROMLEY LB,,,,5000223734,Grant Payable by Exchequer,BR1 3UH,"12,210,744.00",Yes
Communities & Local Government,DCLG,11/04/2013,Revenue Support grant payable,Localism,BROMSGROVE DC,,,,5000223735,Grant Payable by Exchequer,B60 1AA,"477,619.00",Yes
Communities & Local Government,DCLG,11/04/2013,Revenue Support grant payable,Localism,BROXBOURNE BOROUGH COUNCIL,,,,5000223736,Grant Payable by Exchequer,EN8 9GX,"489,344.00",Yes
Communities & Local Government,DCLG,11/04/2013,Revenue Support grant payable,Localism,BROXTOWE BC,,,,5000223737,Grant Payable by Exchequer,NG9 1AB,"665,829.00",Yes
Communities & Local Government,DCLG,11/04/2013,Revenue Support grant payable,Localism,BUCKINGHAMSHIRE CC,,,,5000223739,Grant Payable by Exchequer,HP20 1UD,"19,479,186.00",Yes
Communities & Local Government,DCLG,11/04/2013,Revenue Support grant payable,Localism,BUCKS & MILTON KEYNES FIRE AUTH,,,,5000223738,Grant Payable by Exchequer,HP20 1BD,"1,407,441.00",Yes
Communities & Local Government,DCLG,11/04/2013,Revenue Support grant payable,Localism,BURNLEY BC,,,,5000223740,Grant Payable by Exchequer,BB11 1JA,"886,448.00",Yes
Communities & Local Government,DCLG,11/04/2013,Revenue Support grant payable,Localism,BURY MBC,,,,5000223741,Grant Payable by Exchequer,BL9 0SP,"9,064,368.00",Yes
Communities & Local Government,DCLG,11/04/2013,Revenue Support grant payable,Localism,CALDERDALE MBC,,,,5000223742,Grant Payable by Exchequer,HX1 1YP,"10,629,995.00",Yes
Communities & Local Government,DCLG,11/04/2013,Revenue Support grant payable,Localism,CAMBRIDGE CITY COUNCIL,,,,5000223743,Grant Payable by Exchequer,CB2 3NA,"887,963.00",Yes
Communities & Local Government,DCLG,11/04/2013,Revenue Support grant payable,Localism,CAMBRIDGESHIRE COUNTY CNCL,,,,5000223745,Grant Payable by Exchequer,CB3 0AP,"20,754,423.00",Yes
Communities & Local Government,DCLG,11/04/2013,Revenue Support grant payable,Localism,CAMBS & PETERBOROUGH FIRE AUTHORITY,,,,5000223744,Grant Payable by Exchequer,PE29 2NA,"1,539,434.00",Yes
Communities & Local Government,DCLG,11/04/2013,Revenue Support grant payable,Localism,CAMDEN LONDON BOROUGH,,,,5000223746,Grant Payable by Exchequer,WC1H 8NG,"19,017,062.00",Yes
Communities & Local Government,DCLG,11/04/2013,Revenue Support grant payable,Localism,CANNOCK CHASE DC,,,,5000223747,Grant Payable by Exchequer,WS11 1BG,"699,861.00",Yes
Communities & Local Government,DCLG,11/04/2013,Revenue Support grant payable,Localism,CANTERBURY CITY CNCL,,,,5000223748,Grant Payable by Exchequer,CT1 1YW,"1,077,135.00",Yes
Communities & Local Government,DCLG,11/04/2013,Revenue Support grant payable,Localism,CARLISLE CITY CNCL,,,,5000223749,Grant Payable by Exchequer,CA3 8QG,"693,274.00",Yes
Communities & Local Government,DCLG,11/04/2013,Revenue Support grant payable,Localism,CASTLE POINT BC,,,,5000223750,Grant Payable by Exchequer,SS7 1TF,"569,714.00",Yes
Communities & Local Government,DCLG,11/04/2013,Revenue Support grant payable,Localism,CENTRAL BEDFORDSHIRE COUNCIL,,,,5000223647,Grant Payable by Exchequer,SG17 5TQ,"10,211,143.00",Yes
Communities & Local Government,DCLG,11/04/2013,Revenue Support grant payable,Localism,CHARNWOOD BC,,,,5000223751,Grant Payable by Exchequer,LE11 2TU,"986,461.00",Yes
Communities & Local Government,DCLG,11/04/2013,Revenue Support grant payable,Localism,CHELMSFORD BC,,,,5000223752,Grant Payable by Exchequer,CM1 1JE,"857,915.00",Yes
Communities & Local Government,DCLG,11/04/2013,Revenue Support grant payable,Localism,CHELTENHAM BC,,,,5000223753,Grant Payable by Exchequer,GL50 1PW,"652,954.00",Yes
Communities & Local Government,DCLG,11/04/2013,Revenue Support grant payable,Localism,CHERWELL DC,,,,5000223754,Grant Payable by Exchequer,OX15 4AA,"877,555.00",Yes
Communities & Local Government,DCLG,11/04/2013,Revenue Support grant payable,Localism,CHESHIRE EAST COUNCIL,,,,5000223650,Grant Payable by Exchequer,CH1 1SG,"10,707,494.00",Yes
Communities & Local Government,DCLG,11/04/2013,Revenue Support grant payable,Localism,CHESHIRE FIRE AUTHORITY,,,,5000223755,Grant Payable by Exchequer,CW7 2FQ,"2,590,025.00",Yes
Communities & Local Government,DCLG,11/04/2013,Revenue Support grant payable,Localism,CHESHIRE WEST AND CHESTER,,Large,,5000223653,Grant Payable by Exchequer,CH1 2NP,"12,168,347.00",Yes
Communities & Local Government,DCLG,11/04/2013,Revenue Support grant payable,Localism,CHESTERFIELD BC,,,,5000223756,Grant Payable by Exchequer,S40 1LP,"701,245.00",Yes
Communities & Local Government,DCLG,11/04/2013,Revenue Support grant payable,Localism,CHICHESTER DC,,,,5000223757,Grant Payable by Exchequer,PO19 1TY,"566,861.00",Yes
Communities & Local Government,DCLG,11/04/2013,Revenue Support grant payable,Localism,CHILTERN DC,,,,5000223758,Grant Payable by Exchequer,HP6 5AW,"506,464.00",Yes
Communities & Local Government,DCLG,11/04/2013,Revenue Support grant payable,Localism,CHORLEY DC,,,,5000223759,Grant Payable by Exchequer,PR7 1DP,"675,843.00",Yes
Communities & Local Government,DCLG,11/04/2013,Revenue Support grant payable,Localism,CHRISTCHURCH BC,,,,5000223760,Grant Payable by Exchequer,BH23 1AZ,"250,585.00",Yes
Communities & Local Government,DCLG,11/04/2013,Revenue Support grant payable,Localism,CITY OF LINCOLN COUNCIL,,,,5000223518,Grant Payable by Exchequer,LN1 1DB,"792,845.00",Yes
Communities & Local Government,DCLG,11/04/2013,Revenue Support grant payable,Localism,CITY OF WAKEFIELD MDC,,,,5000223526,Grant Payable by Exchequer,WF1 2QW,"16,576,316.00",Yes
Communities & Local Government,DCLG,11/04/2013,Revenue Support grant payable,Localism,CLEVELAND FIRE AUTHORITY,,,,5000223763,Grant Payable by Exchequer,TS25 5TB,"1,946,694.00",Yes
Communities & Local Government,DCLG,11/04/2013,Revenue Support grant payable,Localism,CO DURHAM & DARLINGTON FIRE AND RES,,,,5000223788,Grant Payable by Exchequer,DH1 5UE,"1,793,032.00",Yes
Communities & Local Government,DCLG,11/04/2013,Revenue Support grant payable,Localism,COLCHESTER BC,,,,5000223764,Grant Payable by Exchequer,CO3 3WG,"994,308.00",Yes
Communities & Local Government,DCLG,11/04/2013,Revenue Support grant payable,Localism,COPELAND BC,,,,5000223765,Grant Payable by Exchequer,CA28 7NY,"524,208.00",Yes
Communities & Local Government,DCLG,11/04/2013,Revenue Support grant payable,Localism,CORBY BC,,,,5000223766,Grant Payable by Exchequer,NN17 1GD,"439,542.00",Yes
Communities & Local Government,DCLG,11/04/2013,Revenue Support grant payable,Localism,CORNWALL COUNCIL,,,,5000223656,Grant Payable by Exchequer,TR1 3AY,"30,671,751.00",Yes
Communities & Local Government,DCLG,11/04/2013,Revenue Support grant payable,Localism,CORPORATION OF LONDON,,,,5000223761,Grant Payable by Exchequer,EC2P 2EJ,"3,102,489.00",Yes
Communities & Local Government,DCLG,11/04/2013,Revenue Support grant payable,Localism,COTSWOLD DC,,,,5000223767,Grant Payable by Exchequer,GL7 1PX,"513,763.00",Yes
Communities & Local Government,DCLG,11/04/2013,Revenue Support grant payable,Localism,COVENTRY CITY CNCL,,,,5000223768,Grant Payable by Exchequer,CV1 2QL,"18,582,036.00",Yes
Communities & Local Government,DCLG,11/04/2013,Revenue Support grant payable,Localism,CRAVEN DISTRICT COUNCIL,,,,5000223769,Grant Payable by Exchequer,BD23 1PS,"373,946.00",Yes
Communities & Local Government,DCLG,11/04/2013,Revenue Support grant payable,Localism,CRAWLEY BC,,,,5000223770,Grant Payable by Exchequer,RH10 1UZ,"757,245.00",Yes
Communities & Local Government,DCLG,11/04/2013,Revenue Support grant payable,Localism,CROYDON LB,,,,5000223771,Grant Payable by Exchequer,CR9 3JS,"18,638,819.00",Yes
Communities & Local Government,DCLG,11/04/2013,Revenue Support grant payable,Localism,CUMBRIA COUNTY CNCL,,,,5000223772,Grant Payable by Exchequer,CA3 8NA,"26,250,701.00",Yes
Communities & Local Government,DCLG,11/04/2013,Revenue Support grant payable,Localism,DACORUM BC,,,,5000223773,Grant Payable by Exchequer,HP1 1HH,"693,326.00",Yes
Communities & Local Government,DCLG,11/04/2013,Revenue Support grant payable,Localism,DARLINGTON BC,,,,5000223774,Grant Payable by Exchequer,TS19 1JA,"5,766,235.00",Yes
Communities & Local Government,DCLG,11/04/2013,Revenue Support grant payable,Localism,DARTFORD BC,,,,5000223775,Grant Payable by Exchequer,DA1 1DR,"624,105.00",Yes
Communities & Local Government,DCLG,11/04/2013,Revenue Support grant payable,Localism,DAVENTRY DC,,,,5000223776,Grant Payable by Exchequer,NN11 5AF,"486,676.00",Yes
Communities & Local Government,DCLG,11/04/2013,Revenue Support grant payable,Localism,DERBY CITY CNCL,,,,5000223777,Grant Payable by Exchequer,DE1 2FS,"13,263,954.00",Yes
Communities & Local Government,DCLG,11/04/2013,Revenue Support grant payable,Localism,DERBYSHIRE COUNTYCOUNCIL,,,,5000223779,Grant Payable by Exchequer,DE4 3AH,"35,824,308.00",Yes
Communities & Local Government,DCLG,11/04/2013,Revenue Support grant payable,Localism,DERBYSHIRE DALES DC,,,,5000223780,Grant Payable by Exchequer,DE4 3NN,"421,667.00",Yes
Communities & Local Government,DCLG,11/04/2013,Revenue Support grant payable,Localism,DERBYSHIRE FIRE AUTHORITY,,,,5000223778,Grant Payable by Exchequer,DE55 1RH,"2,261,291.00",Yes
Communities & Local Government,DCLG,11/04/2013,Revenue Support grant payable,Localism,DEVON & SOMERSET FIRE & RESCUE SERV,,,,5000223782,Grant Payable by Exchequer,EX3 0NW,"4,357,206.00",Yes
Communities & Local Government,DCLG,11/04/2013,Revenue Support grant payable,Localism,DEVON COUNTY CNCL,,,,5000223781,Grant Payable by Exchequer,EX2 4QJ,"34,817,029.00",Yes
Communities & Local Government,DCLG,11/04/2013,Revenue Support grant payable,Localism,DONCASTER MBC,,,,5000223783,Grant Payable by Exchequer,DN1 3QA,"17,548,768.00",Yes
Communities & Local Government,DCLG,11/04/2013,Revenue Support grant payable,Localism,DORSET COUNTY CNCL,,,,5000223784,Grant Payable by Exchequer,DT1 1XJ,"17,549,394.00",Yes
Communities & Local Government,DCLG,11/04/2013,Revenue Support grant payable,Localism,DORSET FIRE AUTHORITY,,,,5000223785,Grant Payable by Exchequer,DT1 1FB,"1,565,071.00",Yes
Communities & Local Government,DCLG,11/04/2013,Revenue Support grant payable,Localism,DOVER DC,,,,5000223786,Grant Payable by Exchequer,CT16 3PD,"770,152.00",Yes
Communities & Local Government,DCLG,11/04/2013,Revenue Support grant payable,Localism,DUDLEY MBC,,,,5000223787,Grant Payable by Exchequer,DY1 1HF,"15,827,593.00",Yes
Communities & Local Government,DCLG,11/04/2013,Revenue Support grant payable,Localism,DURHAM COUNTY COUNCIL,,,,5000223659,Grant Payable by Exchequer,DH1 5UE,"32,044,932.00",Yes
Communities & Local Government,DCLG,11/04/2013,Revenue Support grant payable,Localism,EALING LB,,,,5000223789,Grant Payable by Exchequer,W5 2BY,"17,718,443.00",Yes
Communities & Local Government,DCLG,11/04/2013,Revenue Support grant payable,Localism,EAST CAMBRIDGESHIRE DC,,,,5000223790,Grant Payable by Exchequer,CB7 4PL,"566,701.00",Yes
Communities & Local Government,DCLG,11/04/2013,Revenue Support grant payable,Localism,EAST DEVON DC,,,,5000223791,Grant Payable by Exchequer,EX10 8HL,"671,432.00",Yes
Communities & Local Government,DCLG,11/04/2013,Revenue Support grant payable,Localism,EAST DORSET DC,,,,5000223792,Grant Payable by Exchequer,BH21 4HN,"438,379.00",Yes
Communities & Local Government,DCLG,11/04/2013,Revenue Support grant payable,Localism,EAST HAMPSHIRE DC,,,,5000223793,Grant Payable by Exchequer,GU31 4EX,"518,523.00",Yes
Communities & Local Government,DCLG,11/04/2013,Revenue Support grant payable,Localism,EAST HERTFORDSHIRE DC,,,,5000223794,Grant Payable by Exchequer,SG13 8EQ,"744,125.00",Yes
Communities & Local Government,DCLG,11/04/2013,Revenue Support grant payable,Localism,EAST LINDSEY DC,,,,5000223795,Grant Payable by Exchequer,LN11 8UP,"1,144,518.00",Yes
Communities & Local Government,DCLG,11/04/2013,Revenue Support grant payable,Localism,EAST NORTHAMPTONSHIRE COUNCIL,,,,5000223796,Grant Payable by Exchequer,NN14 4LZ,"553,790.00",Yes
Communities & Local Government,DCLG,11/04/2013,Revenue Support grant payable,Localism,EAST RIDING OF YORKS,,,,5000223797,Grant Payable by Exchequer,HU17 9AB,"15,726,682.00",Yes
Communities & Local Government,DCLG,11/04/2013,Revenue Support grant payable,Localism,EAST STAFFORDSHIRE BC,,,,5000223798,Grant Payable by Exchequer,DE14 2EB,"735,189.00",Yes
Communities & Local Government,DCLG,11/04/2013,Revenue Support grant payable,Localism,EAST SUSSEX COUNTY CNCL,,,,5000223799,Grant Payable by Exchequer,BN7 1SF,"28,752,494.00",Yes
Communities & Local Government,DCLG,11/04/2013,Revenue Support grant payable,Localism,EAST SUSSEX FIRE & RESCUE SERVICE,,,,5000223800,Grant Payable by Exchequer,BN21 1EU,"2,293,771.00",Yes
Communities & Local Government,DCLG,11/04/2013,Revenue Support grant payable,Localism,EASTBOURNE BC,,,,5000223801,Grant Payable by Exchequer,BN21 4TW,"839,259.00",Yes
Communities & Local Government,DCLG,11/04/2013,Revenue Support grant payable,Localism,EASTLEIGH BOROUGH COUNCIL,,,,5000223802,Grant Payable by Exchequer,SO5 9YN,"650,361.00",Yes
Communities & Local Government,DCLG,11/04/2013,Revenue Support grant payable,Localism,EDEN DC,,,,5000223290,Grant Payable by Exchequer,CA11 7QF,"394,247.00",Yes
Communities & Local Government,DCLG,11/04/2013,Revenue Support grant payable,Localism,ELMBRIDGE BOROUGH COUNCIL,,,,5000223293,Grant Payable by Exchequer,KT10 9SD,"738,971.00",Yes
Communities & Local Government,DCLG,11/04/2013,Revenue Support grant payable,Localism,ENFIELD LB,,,,5000223296,Grant Payable by Exchequer,EN1 3XF,"18,668,997.00",Yes
Communities & Local Government,DCLG,11/04/2013,Revenue Support grant payable,Localism,EPPING FOREST DC,,,,5000223299,Grant Payable by Exchequer,CM16 4BZ,"838,314.00",Yes
Communities & Local Government,DCLG,11/04/2013,Revenue Support grant payable,Localism,EPSOM & EWELL BC,,,,5000223302,Grant Payable by Exchequer,KT18 5BY,"357,380.00",Yes
Communities & Local Government,DCLG,11/04/2013,Revenue Support grant payable,Localism,EREWASH BC,,,,5000223305,Grant Payable by Exchequer,DE7 5RP,"690,975.00",Yes
Communities & Local Government,DCLG,11/04/2013,Revenue Support grant payable,Localism,ESSEX COUNTY CNCL,,,,5000223308,Grant Payable by Exchequer,CM1 1JZ,"63,784,858.00",Yes
Communities & Local Government,DCLG,11/04/2013,Revenue Support grant payable,Localism,ESSEX FIRE AUTHORITY,,,,5000223311,Grant Payable by Exchequer,CM8 3HB,"4,518,387.00",Yes
Communities & Local Government,DCLG,11/04/2013,Revenue Support grant payable,Localism,EXETER CITY CNCL,,,,5000223314,Grant Payable by Exchequer,EX1 1JN,"768,472.00",Yes
Communities & Local Government,DCLG,11/04/2013,Revenue Support grant payable,Localism,FAREHAM BC,,,,5000223317,Grant Payable by Exchequer,PO16 7PU,"485,480.00",Yes
Communities & Local Government,DCLG,11/04/2013,Revenue Support grant payable,Localism,FENLAND DC,,,,5000223320,Grant Payable by Exchequer,PE15 8NQ,"850,678.00",Yes
Communities & Local Government,DCLG,11/04/2013,Revenue Support grant payable,Localism,FOREST HEATH DISTRICT COUNCIL,,,,5000223323,Grant Payable by Exchequer,IP28 7EY,"416,587.00",Yes
Communities & Local Government,DCLG,11/04/2013,Revenue Support grant payable,Localism,FOREST OF DEAN DC,,,,5000223326,Grant Payable by Exchequer,GL16 8HG,"595,672.00",Yes
Communities & Local Government,DCLG,11/04/2013,Revenue Support grant payable,Localism,FYLDE BC,,,,5000223328,Grant Payable by Exchequer,FY8 1LW,"444,731.00",Yes
Communities & Local Government,DCLG,11/04/2013,Revenue Support grant payable,Localism,GATESHEAD MBC,,,,5000223331,Grant Payable by Exchequer,NE8 1HH,"13,436,035.00",Yes
Communities & Local Government,DCLG,11/04/2013,Revenue Support grant payable,Localism,GEDLING BC,,,,5000223336,Grant Payable by Exchequer,NG5 6LU,"639,492.00",Yes
Communities & Local Government,DCLG,11/04/2013,Revenue Support grant payable,Localism,GLOUCESTER CITY CNCL,,,,5000223342,Grant Payable by Exchequer,GL1 2EQ,"770,049.00",Yes
Communities & Local Government,DCLG,11/04/2013,Revenue Support grant payable,Localism,GLOUCESTERSHIRE COUNTY CNCL,,,,5000223345,Grant Payable by Exchequer,GL1 2TG,"25,699,338.00",Yes
Communities & Local Government,DCLG,11/04/2013,Revenue Support grant payable,Localism,GOSPORT BOROUGH COUNCIL,,,,5000223347,Grant Payable by Exchequer,PO12 1ED,"575,624.00",Yes
Communities & Local Government,DCLG,11/04/2013,Revenue Support grant payable,Localism,GRAVESHAM BC,,,,5000223350,Grant Payable by Exchequer,DA12 1AU,"616,287.00",Yes
Communities & Local Government,DCLG,11/04/2013,Revenue Support grant payable,Localism,GREAT YARMOUTH BC,,,,5000223353,Grant Payable by Exchequer,NR30 2QG,"798,351.00",Yes
Communities & Local Government,DCLG,11/04/2013,Revenue Support grant payable,Localism,GREATER LONDON AUTHORITY,,Public Bodies,,5000223339,Grant Payable by Exchequer,SE10 1AJ,"37,019,550.00",Yes
Communities & Local Government,DCLG,11/04/2013,Revenue Support grant payable,Localism,GREATER MANCHESTER FIRE,,,,5000223542,Grant Payable by Exchequer,M27 2US,"6,659,352.00",Yes
Communities & Local Government,DCLG,11/04/2013,Revenue Support grant payable,Localism,GREENWICH LB,,,,5000223356,Grant Payable by Exchequer,SE18 6RA,"17,354,152.00",Yes
Communities & Local Government,DCLG,11/04/2013,Revenue Support grant payable,Localism,GUILDFORD BC,,,,5000223359,Grant Payable by Exchequer,GU2 5BB,"737,185.00",Yes
Communities & Local Government,DCLG,11/04/2013,Revenue Support grant payable,Localism,HALTON BC,,,,5000223366,Grant Payable by Exchequer,WA8 7QF,"8,296,525.00",Yes
Communities & Local Government,DCLG,11/04/2013,Revenue Support grant payable,Localism,HAMBLETON DC,,,,5000223369,Grant Payable by Exchequer,DL6 2UU,"433,948.00",Yes
Communities & Local Government,DCLG,11/04/2013,Revenue Support grant payable,Localism,HAMMERSMITH & FULHAM LB,,,,5000223372,Grant Payable by Exchequer,W6 9JU,"12,857,808.00",Yes
Communities & Local Government,DCLG,11/04/2013,Revenue Support grant payable,Localism,HAMPSHIRE COUNTY COUNCIL,,,,5000223375,Grant Payable by Exchequer,SO23 8UB,"52,630,676.00",Yes
Communities & Local Government,DCLG,11/04/2013,Revenue Support grant payable,Localism,HAMPSHIRE FIRE & RESCUE AUTHORITY,,,,5000223378,Grant Payable by Exchequer,SO23 8UB,"3,984,445.00",Yes
Communities & Local Government,DCLG,11/04/2013,Revenue Support grant payable,Localism,HARBOROUGH DC,,Public Bodies,,5000223381,Grant Payable by Exchequer,LE16 7AG,"445,698.00",Yes
Communities & Local Government,DCLG,11/04/2013,Revenue Support grant payable,Localism,HARINGEY LB,,,,5000223384,Grant Payable by Exchequer,N22 7TR,"18,840,829.00",Yes
Communities & Local Government,DCLG,11/04/2013,Revenue Support grant payable,Localism,HARLOW COUNCIL,,,,5000223387,Grant Payable by Exchequer,CM20 1WG,"716,547.00",Yes
Communities & Local Government,DCLG,11/04/2013,Revenue Support grant payable,Localism,HARROGATE BOROUGH COUNCIL,,,,5000223390,Grant Payable by Exchequer,HG1 2SG,"942,095.00",Yes
Communities & Local Government,DCLG,11/04/2013,Revenue Support grant payable,Localism,HARROW LB,,,,5000223392,Grant Payable by Exchequer,HA1 2UZ,"11,722,227.00",Yes
Communities & Local Government,DCLG,11/04/2013,Revenue Support grant payable,Localism,HART DC,,,,5000223395,Grant Payable by Exchequer,GU13 8AE,"438,638.00",Yes
Communities & Local Government,DCLG,11/04/2013,Revenue Support grant payable,Localism,HARTLEPOOL BOROUGH COUNCIL,,,,5000223398,Grant Payable by Exchequer,TS24 7BT,"6,547,114.00",Yes
Communities & Local Government,DCLG,11/04/2013,Revenue Support grant payable,Localism,HASTINGS BC,,,,5000223401,Grant Payable by Exchequer,TN34 3WN,"793,953.00",Yes
Communities & Local Government,DCLG,11/04/2013,Revenue Support grant payable,Localism,HAVANT BC,,,,5000223404,Grant Payable by Exchequer,PO9 2AX,"769,318.00",Yes
Communities & Local Government,DCLG,11/04/2013,Revenue Support grant payable,Localism,HAVERING LB,,,,5000223407,Grant Payable by Exchequer,RM1 3BB,"10,967,973.00",Yes
Communities & Local Government,DCLG,11/04/2013,Revenue Support grant payable,Localism,HEREFORD WORCESTER FIRE BRIGADE,,,,5000223410,Grant Payable by Exchequer,WR1 2HQ,"1,680,444.00",Yes
Communities & Local Government,DCLG,11/04/2013,Revenue Support grant payable,Localism,HEREFORDSHIRE DISTRICT COUNCIL,,,,5000223413,Grant Payable by Exchequer,HR1 1SH,"9,643,822.00",Yes
Communities & Local Government,DCLG,11/04/2013,Revenue Support grant payable,Localism,HERTFORDSHIRE COUNTY CNCL,,,,5000223416,Grant Payable by Exchequer,SG13 9BD,"50,224,930.00",Yes
Communities & Local Government,DCLG,11/04/2013,Revenue Support grant payable,Localism,HERTSMERE BC,,,,5000223419,Grant Payable by Exchequer,WD6 1WA,"625,683.00",Yes
Communities & Local Government,DCLG,11/04/2013,Revenue Support grant payable,Localism,HIGH PEAK BC,,,,5000223422,Grant Payable by Exchequer,SK17 6EL,"544,092.00",Yes
Communities & Local Government,DCLG,11/04/2013,Revenue Support grant payable,Localism,HILLINGDON LB,,,,5000223425,Grant Payable by Exchequer,UB8 1UW,"12,916,108.00",Yes
Communities & Local Government,DCLG,11/04/2013,Revenue Support grant payable,Localism,HINCKLEY & BOSWORTH BC,,,,5000223428,Grant Payable by Exchequer,LE10 1BZ,"597,189.00",Yes
Communities & Local Government,DCLG,11/04/2013,Revenue Support grant payable,Localism,HORSHAM DC,,,,5000223431,Grant Payable by Exchequer,RH12 1RL,"561,307.00",Yes
Communities & Local Government,DCLG,11/04/2013,Revenue Support grant payable,Localism,HOUNSLOW LB,,,,5000223434,Grant Payable by Exchequer,TW3 4DN,"12,410,368.00",Yes
Communities & Local Government,DCLG,11/04/2013,Revenue Support grant payable,Localism,HULL CITY COUNCIL,,,,5000223473,Grant Payable by Exchequer,HU1 2AA,"16,958,116.00",Yes
Communities & Local Government,DCLG,11/04/2013,Revenue Support grant payable,Localism,HUMBERSIDE FIRE & RESCUE SERVICE,,,,5000223437,Grant Payable by Exchequer,HU4 7BB,"2,937,679.00",Yes
Communities & Local Government,DCLG,11/04/2013,Revenue Support grant payable,Localism,HUNTINGDONSHIRE DC,,,,5000223440,Grant Payable by Exchequer,PE18 6TN,"1,053,291.00",Yes
Communities & Local Government,DCLG,11/04/2013,Revenue Support grant payable,Localism,HYNDBURN BC,,,,5000223443,Grant Payable by Exchequer,BB5 1EZ,"748,471.00",Yes
Communities & Local Government,DCLG,11/04/2013,Revenue Support grant payable,Localism,IPSWICH BC,,,,5000223449,Grant Payable by Exchequer,IP1 2EE,"1,096,827.00",Yes
Communities & Local Government,DCLG,11/04/2013,Revenue Support grant payable,Localism,ISLE OF WIGHT CNCL,,,,5000223446,Grant Payable by Exchequer,PO30 1UD,"8,963,371.00",Yes
Communities & Local Government,DCLG,11/04/2013,Revenue Support grant payable,Localism,ISLES OF SCILLY COUNCIL,,,,5000223452,Grant Payable by Exchequer,TR21 0LW,"316,875.00",Yes
Communities & Local Government,DCLG,11/04/2013,Revenue Support grant payable,Localism,ISLINGTON LB,,,,5000223455,Grant Payable by Exchequer,N1 1XR,"17,721,472.00",Yes
Communities & Local Government,DCLG,11/04/2013,Revenue Support grant payable,Localism,KENT & MEDWAY TOWNS FIRE AUTHORITY,,,,5000223464,Grant Payable by Exchequer,ME15 6XB,"4,076,353.00",Yes
Communities & Local Government,DCLG,11/04/2013,Revenue Support grant payable,Localism,KENT COUNTY CNCL,,,,5000223461,Grant Payable by Exchequer,ME14 1XQ,"63,731,116.00",Yes
Communities & Local Government,DCLG,11/04/2013,Revenue Support grant payable,Localism,KETTERING BC,,,,5000223467,Grant Payable by Exchequer,NN15 7QX,"580,084.00",Yes
Communities & Local Government,DCLG,11/04/2013,Revenue Support grant payable,Localism,KINGS LYNN & WEST NORFOLK BC,,,,5000223470,Grant Payable by Exchequer,PE30 1EX,"1,141,445.00",Yes
Communities & Local Government,DCLG,11/04/2013,Revenue Support grant payable,Localism,KINGSTON UPON THAMES,,,,5000223476,Grant Payable by Exchequer,KT1 1EU,"7,483,992.00",Yes
Communities & Local Government,DCLG,11/04/2013,Revenue Support grant payable,Localism,KIRKLEES MBC,,,,5000223479,Grant Payable by Exchequer,HD1 2YU,"20,812,326.00",Yes
Communities & Local Government,DCLG,11/04/2013,Revenue Support grant payable,Localism,KNOWSLEY MBC,,,,5000223482,Grant Payable by Exchequer,L36 9YZ,"12,968,319.00",Yes
Communities & Local Government,DCLG,11/04/2013,Revenue Support grant payable,Localism,LANCASHIRE COMBINED FIRE AUTHORITY,,,,5000223491,Grant Payable by Exchequer,PR2 3LH,"3,603,555.00",Yes
Communities & Local Government,DCLG,11/04/2013,Revenue Support grant payable,Localism,LANCASHIRE COUNTY CNCL,,,,5000223488,Grant Payable by Exchequer,PR1 8RD,"55,981,982.00",Yes
Communities & Local Government,DCLG,11/04/2013,Revenue Support grant payable,Localism,LANCASTER CITY CNCL,,,,5000223494,Grant Payable by Exchequer,LA1 1PJ,"1,192,484.00",Yes
Communities & Local Government,DCLG,11/04/2013,Revenue Support grant payable,Localism,LEEDS CITY CNCL,,,,5000223497,Grant Payable by Exchequer,LS1 1JF,"36,407,648.00",Yes
Communities & Local Government,DCLG,11/04/2013,Revenue Support grant payable,Localism,LEICESTER CITY CNCL,,,,5000223500,Grant Payable by Exchequer,LE1 6ZG,"21,062,451.00",Yes
Communities & Local Government,DCLG,11/04/2013,Revenue Support grant payable,Localism,LEICESTERSHIRE COUNTY CNCL,,,,5000223506,Grant Payable by Exchequer,LE3 8RB,"23,700,311.00",Yes
Communities & Local Government,DCLG,11/04/2013,Revenue Support grant payable,Localism,LEICS LEICESTERSHIRE RUTLAND CFA,,,,5000223503,Grant Payable by Exchequer,LE3 8HD,"2,069,916.00",Yes
Communities & Local Government,DCLG,11/04/2013,Revenue Support grant payable,Localism,LEWES DC,,,,5000223509,Grant Payable by Exchequer,BN7 2DQ,"613,475.00",Yes
Communities & Local Government,DCLG,11/04/2013,Revenue Support grant payable,Localism,LEWISHAM LB,,,,5000223512,Grant Payable by Exchequer,SE6 4RU,"19,779,249.00",Yes
Communities & Local Government,DCLG,11/04/2013,Revenue Support grant payable,Localism,LICHFIELD DC,,,,5000223515,Grant Payable by Exchequer,WS13 6YX,"532,840.00",Yes
Communities & Local Government,DCLG,11/04/2013,Revenue Support grant payable,Localism,LINCOLNSHIRE COUNTY CNCL,,,,5000223521,Grant Payable by Exchequer,LN1 1YT,"30,487,976.00",Yes
Communities & Local Government,DCLG,11/04/2013,Revenue Support grant payable,Localism,LIVERPOOL CITY COUNCIL,,,,5000223524,Grant Payable by Exchequer,L2 2DH,"36,731,545.00",Yes
Communities & Local Government,DCLG,11/04/2013,Revenue Support grant payable,Localism,LONDON BOROUGH OF HACKNEY,,,,5000223362,Grant Payable by Exchequer,E8 4RU,"20,660,452.00",Yes
Communities & Local Government,DCLG,11/04/2013,Revenue Support grant payable,Localism,LONDON BOROUGH OF LAMBETH,,,,5000223485,Grant Payable by Exchequer,SW2 1RL,"23,182,983.00",Yes
Communities & Local Government,DCLG,11/04/2013,Revenue Support grant payable,Localism,LONDON BOROUGH OF NEWHAM,,Large,,5000223598,Grant Payable by Exchequer,E16 2QU,"20,741,254.00",Yes
Communities & Local Government,DCLG,11/04/2013,Revenue Support grant payable,Localism,LONDON BOROUGH OF REDBRIDGE,,,,5000223689,Grant Payable by Exchequer,IG1 1NN,"13,452,211.00",Yes
Communities & Local Government,DCLG,11/04/2013,Revenue Support grant payable,Localism,LUTON BC,,,,5000223527,Grant Payable by Exchequer,LU1 1DX,"11,199,095.00",Yes
Communities & Local Government,DCLG,11/04/2013,Revenue Support grant payable,Localism,MAIDSTONE BC,,,,5000223530,Grant Payable by Exchequer,ME15 6JQ,"891,639.00",Yes
Communities & Local Government,DCLG,11/04/2013,Revenue Support grant payable,Localism,MALDON DC,,,,5000223533,Grant Payable by Exchequer,CM9 7DL,"385,766.00",Yes
Communities & Local Government,DCLG,11/04/2013,Revenue Support grant payable,Localism,MALVERN HILLS DC,,,,5000223536,Grant Payable by Exchequer,WR14 3AF,"460,249.00",Yes
Communities & Local Government,DCLG,11/04/2013,Revenue Support grant payable,Localism,MANCHESTER CITY CNCL,,,,5000223539,Grant Payable by Exchequer,M60 2JR,"37,159,887.00",Yes
Communities & Local Government,DCLG,11/04/2013,Revenue Support grant payable,Localism,MANSFIELD DC,,,,5000223547,Grant Payable by Exchequer,NG19 7BH,"775,766.00",Yes
Communities & Local Government,DCLG,11/04/2013,Revenue Support grant payable,Localism,MEDWAY COUNCIL,,,,5000223550,Grant Payable by Exchequer,ME4 4TR,"12,136,740.00",Yes
Communities & Local Government,DCLG,11/04/2013,Revenue Support grant payable,Localism,MELTON BC,,,,5000223553,Grant Payable by Exchequer,LE13 0UL,"305,084.00",Yes
Communities & Local Government,DCLG,11/04/2013,Revenue Support grant payable,Localism,MENDIP DISTRICT COUNCIL,,,,5000223556,Grant Payable by Exchequer,BA4 5BA,"667,886.00",Yes
Communities & Local Government,DCLG,11/04/2013,Revenue Support grant payable,Localism,MERSEYSIDE FIRE & RESCUE SERVICE,,,,5000223559,Grant Payable by Exchequer,L30 4YD,"4,185,614.00",Yes
Communities & Local Government,DCLG,11/04/2013,Revenue Support grant payable,Localism,MERTON LB,,,,5000223562,Grant Payable by Exchequer,SM4 5DX,"9,836,101.00",Yes
Communities & Local Government,DCLG,11/04/2013,Revenue Support grant payable,Localism,MID DEVON DC,,,,5000223565,Grant Payable by Exchequer,EX16 6PP,"508,556.00",Yes
Communities & Local Government,DCLG,11/04/2013,Revenue Support grant payable,Localism,MID SUFFOLK DC,,,,5000223568,Grant Payable by Exchequer,IP6 8DL,"572,473.00",Yes
Communities & Local Government,DCLG,11/04/2013,Revenue Support grant payable,Localism,MID SUSSEX DC,,,,5000223572,Grant Payable by Exchequer,RH16 1SS,"632,939.00",Yes
Communities & Local Government,DCLG,11/04/2013,Revenue Support grant payable,Localism,MIDDLESBROUGH BC,,,,5000223575,Grant Payable by Exchequer,TS1 9GA,"9,565,620.00",Yes
Communities & Local Government,DCLG,11/04/2013,Revenue Support grant payable,Localism,MILTON KEYNES BC,,,,5000223577,Grant Payable by Exchequer,MK9 3EJ,"11,697,881.00",Yes
Communities & Local Government,DCLG,11/04/2013,Revenue Support grant payable,Localism,MOLE VALLEY DC,,,,5000223580,Grant Payable by Exchequer,RH4 1SJ,"351,809.00",Yes
Communities & Local Government,DCLG,11/04/2013,Revenue Support grant payable,Localism,NEW FOREST DC,,,,5000223586,Grant Payable by Exchequer,SO41 9ZG,"1,093,382.00",Yes
Communities & Local Government,DCLG,11/04/2013,Revenue Support grant payable,Localism,NEWARK & SHERWOOD DC,,,,5000223589,Grant Payable by Exchequer,NG23 5QX,"845,131.00",Yes
Communities & Local Government,DCLG,11/04/2013,Revenue Support grant payable,Localism,NEWCASTLE UNDER LYME BC,,,,5000223595,Grant Payable by Exchequer,ST5 2AG,"776,595.00",Yes
Communities & Local Government,DCLG,11/04/2013,Revenue Support grant payable,Localism,NEWCASTLE UPON TYNE DC,,,,5000223592,Grant Payable by Exchequer,NE99 1RD,"18,789,502.00",Yes
Communities & Local Government,DCLG,11/04/2013,Revenue Support grant payable,Localism,NORFOLK COUNTY COUNCIL,,,,5000223601,Grant Payable by Exchequer,NR1 2DW,"45,800,607.00",Yes
Communities & Local Government,DCLG,11/04/2013,Revenue Support grant payable,Localism,NORTH DEVON DC,,,,5000223604,Grant Payable by Exchequer,EX31 1EA,"687,262.00",Yes
Communities & Local Government,DCLG,11/04/2013,Revenue Support grant payable,Localism,NORTH DORSET DC,,,,5000223607,Grant Payable by Exchequer,DT11 7LL,"381,307.00",Yes
Communities & Local Government,DCLG,11/04/2013,Revenue Support grant payable,Localism,NORTH EAST DERBYSHIRE DC,,,,5000223583,Grant Payable by Exchequer,S40 1LF,"705,313.00",Yes
Communities & Local Government,DCLG,11/04/2013,Revenue Support grant payable,Localism,NORTH EAST LINCOLN COUNCIL,,Public Bodies,,5000223610,Grant Payable by Exchequer,DN35 8LN,"10,001,478.00",Yes
Communities & Local Government,DCLG,11/04/2013,Revenue Support grant payable,Localism,NORTH HERTS DC,,,,5000223613,Grant Payable by Exchequer,SG6 3HN,"686,192.00",Yes
Communities & Local Government,DCLG,11/04/2013,Revenue Support grant payable,Localism,NORTH KESTEVEN DC,,,,5000223616,Grant Payable by Exchequer,NG34 7EF,"715,522.00",Yes
Communities & Local Government,DCLG,11/04/2013,Revenue Support grant payable,Localism,NORTH LINCOLNSHIRE DC,,Public Bodies,,5000223619,Grant Payable by Exchequer,DN16 1AB,"8,349,987.00",Yes
Communities & Local Government,DCLG,11/04/2013,Revenue Support grant payable,Localism,NORTH NORFOLK DC,,,,5000223622,Grant Payable by Exchequer,NR27 9EJ,"741,145.00",Yes
Communities & Local Government,DCLG,11/04/2013,Revenue Support grant payable,Localism,NORTH SOMERSET DC,,,,5000223625,Grant Payable by Exchequer,BS23 1LL,"10,087,352.00",Yes
Communities & Local Government,DCLG,11/04/2013,Revenue Support grant payable,Localism,NORTH TYNESIDE MBC,,,,5000223627,Grant Payable by Exchequer,NE30 1AE,"11,099,466.00",Yes
Communities & Local Government,DCLG,11/04/2013,Revenue Support grant payable,Localism,NORTH WARWICKSHIRE BC,,,,5000223630,Grant Payable by Exchequer,CV9 1DE,"483,729.00",Yes
Communities & Local Government,DCLG,11/04/2013,Revenue Support grant payable,Localism,NORTH WEST LEICESTER DC,,,,5000223660,Grant Payable by Exchequer,LE67 3FJ,"605,052.00",Yes
Communities & Local Government,DCLG,11/04/2013,Revenue Support grant payable,Localism,NORTH YORKSHIRE CC,,,,5000223633,Grant Payable by Exchequer,DL7 8AL,"25,937,940.00",Yes
Communities & Local Government,DCLG,11/04/2013,Revenue Support grant payable,Localism,NORTH YORKSHIRE FIRE & RESCUE AUTH,,,,5000223636,Grant Payable by Exchequer,DL6 1AB,"1,683,458.00",Yes
Communities & Local Government,DCLG,11/04/2013,Revenue Support grant payable,Localism,NORTHAMPTON BOROUGH COUNCIL,,Large,,5000223639,Grant Payable by Exchequer,NN1 12A,"1,569,898.00",Yes
Communities & Local Government,DCLG,11/04/2013,Revenue Support grant payable,Localism,NORTHAMPTONSHIRE COUNTY COUNCIL,,Public Bodies,,5000223642,Grant Payable by Exchequer,NN4 7DB,"27,186,801.00",Yes
Communities & Local Government,DCLG,11/04/2013,Revenue Support grant payable,Localism,NORTHUMBERLAND,,,,5000223662,Grant Payable by Exchequer,NE61 2EF,"18,849,730.00",Yes
Communities & Local Government,DCLG,11/04/2013,Revenue Support grant payable,Localism,NORWICH CITY CNCL,,,,5000223645,Grant Payable by Exchequer,NR2 1NH,"1,244,414.00",Yes
Communities & Local Government,DCLG,11/04/2013,Revenue Support grant payable,Localism,NOTTINGHAM CITY COUNCIL,,,,5000223648,Grant Payable by Exchequer,M33 0DJ,"20,075,517.00",Yes
Communities & Local Government,DCLG,11/04/2013,Revenue Support grant payable,Localism,NOTTINGHAMSHIRE COUNTY CNCL,,,,5000223651,Grant Payable by Exchequer,NG1 4BU,"36,936,157.00",Yes
Communities & Local Government,DCLG,11/04/2013,Revenue Support grant payable,Localism,NOTTS & CITY NOTTINGHAM FIRE AUTH,,,,5000223654,Grant Payable by Exchequer,NG5 8PD,"2,730,319.00",Yes
Communities & Local Government,DCLG,11/04/2013,Revenue Support grant payable,Localism,NUNEATON & BEDWORTH BC,,,,5000223657,Grant Payable by Exchequer,CV11 5AA,"848,345.00",Yes
Communities & Local Government,DCLG,11/04/2013,Revenue Support grant payable,Localism,OADBY & WIGSTON BC,,,,5000223663,Grant Payable by Exchequer,LE8 2DR,"354,408.00",Yes
Communities & Local Government,DCLG,11/04/2013,Revenue Support grant payable,Localism,OLDHAM MBC,,,,5000223666,Grant Payable by Exchequer,OL1 1UH,"14,889,017.00",Yes
Communities & Local Government,DCLG,11/04/2013,Revenue Support grant payable,Localism,OXFORD CITY CNCL,,,,5000223669,Grant Payable by Exchequer,OX1 1DS,"1,301,213.00",Yes
Communities & Local Government,DCLG,11/04/2013,Revenue Support grant payable,Localism,OXFORDSHIRE CC,,,,5000223671,Grant Payable by Exchequer,OX4 2GQ,"27,561,807.00",Yes
Communities & Local Government,DCLG,11/04/2013,Revenue Support grant payable,Localism,PENDLE BC,,,,5000223673,Grant Payable by Exchequer,BB9 OLX,"846,308.00",Yes
Communities & Local Government,DCLG,11/04/2013,Revenue Support grant payable,Localism,PETERBOROUGH CITY CNCL,,,,5000223675,Grant Payable by Exchequer,PE1 1HG,"9,654,007.00",Yes
Communities & Local Government,DCLG,11/04/2013,Revenue Support grant payable,Localism,PLYMOUTH CITY CNCL,,,,5000223677,Grant Payable by Exchequer,PL1 2AA,"13,405,127.00",Yes
Communities & Local Government,DCLG,11/04/2013,Revenue Support grant payable,Localism,POOLE BC,,,,5000223679,Grant Payable by Exchequer,BH15 2RU,"6,645,997.00",Yes
Communities & Local Government,DCLG,11/04/2013,Revenue Support grant payable,Localism,PORTSMOUTH CITY COUNCIL,,,,5000223681,Grant Payable by Exchequer,PO1 2AR,"11,149,940.00",Yes
Communities & Local Government,DCLG,11/04/2013,Revenue Support grant payable,Localism,PRESTON BC,,,,5000223683,Grant Payable by Exchequer,PR1 2RL,"1,155,656.00",Yes
Communities & Local Government,DCLG,11/04/2013,Revenue Support grant payable,Localism,PURBECK DC,,,,5000223685,Grant Payable by Exchequer,BH20 4PP,"290,926.00",Yes
